Workbook

Sheet TOP-full
A1: Table S1. Top-performing catalysts | AA1: Calculations
A2: Index | B2: Electromaterial description | C2: Catalyst type | D2: Majority elements | E2: Polymeric / (in-) organic additives | F2: Electrode "type" | G2: Catalyst shorthand (cathode) | H2: Reactant + supply mode (cathode) | I2: Catholyte | J2: Catholyte agitation | K2: Membrane | L2: Membrane type | M2: Anolyte | N2: Anolyte agitation | O2: Reactant + supply mode (anode) | P2: Catalyst shorthand (anode) | Q2: Temperature | R2: Pressure | S2: Reactant | T2: E | U2: j | V2: FE C2H4 (max) | W2: Reference | X2: Reference | AA2: Alkaline + CO2 | AB2: CORR | AC2: ≥ 55 % FE
A7: =1 -> 1 | B7: 50 μm Cu-exchanged stannosilicate UZAR-S3 'mixed matrix membrane' toplayer, on a PVA/Chitosan midlayer, on a commercial 70 nm Cu NPs with chitosan bio-based polymeric binder underlayer, on Toray TGP-H-60 GDL (exact conditions ambiguously reported) | C7: Overlayer | D7: Cu | E7: Chitosan, Cu exchanged stannosilicate UZAR-S3, polyvinylalcohol | F7: Catalyst on top of porous substrate (GDE) | G7: Complex-overlayer/Cu_NPs | H7: (Gas-phase reactant, supplied from behind) | I7: - | J7: (n/a) | K7: Sustainion X-37 50 grade | L7: (AEM) | M7: 1.0 M KOH (pH 14) | N7: + flow - stirring | O7: (Liquid-phase reactant, supplied in front) | P7: Pt plate | Q7: 25 | R7: 1 | S7: CO2 | T7: -0.87 V vs. RHE | U7: -10 mA/cm2 | V7: 98 | X7: A. Marcos-Madrazo, C. Casado-Coterillo, J. Iniesta, A. Irabien, Use of Chitosan as Copper Binder in the Continuous Electrochemical Reduction of CO2 to Ethylene in Alkaline Medium. Membranes 12, 783 (2022). | Y7: =_xlfn.NUMBERVALUE(LEFT(V7,2)) -> 98 | AA7: =_xlfn.LET(_xlpm.CO_2,IF(S7="CO2",1,0),_xlpm.AEM_dry,INT(AND(IF(J7="(n/a)",1,0),IF(L7="(AEM)",1,0))), _xlpm.alk_electrolyte,IF(SUM(IFERROR(FIND("KOH",I7),0),IFERROR(FIND("NaOH",I7),0),IFERROR(FIND("CsOH",I7),0), IFERROR(FIND("LiOH",I7),0), IFERROR(FIND("RbOH",I7),0))>0,1,0),_xlpm.alkaline,OR(_xlpm.AEM_dry,_xlpm.alk_electrolyte),_xlpm.rslt,INT(AND(_xlpm.CO_2,_xlpm.alkaline)),_xlpm.rslt) -> 1 | AB7: =IF(S7="CO",1,0) -> 0 | AC7: =IF(_xlfn.NUMBERVALUE(LEFT(V7,2))>=55,1,0) -> 1 | AE7: Range
A8: =A7+1 -> 2 | B8: Commercial 70 nm Cu NPs with chitosan bio-based polymeric binder, on Toray TGP-H-60 GDL | C8: Metallic Cu | D8: Cu | E8: Chitosan | F8: Catalyst on top of porous substrate (GDE) | G8: Chitosan/Cu_NPs | H8: (Gas-phase reactant, supplied from behind) | I8: - | J8: (n/a) | K8: Sustainion X-37 50 grade | L8: (AEM) | M8: 1.0 M KOH (pH 14) | N8: + flow - stirring | O8: (Liquid-phase reactant, supplied in front) | P8: Pt plate | Q8: 25 | R8: 1 | S8: CO2 | T8: -0.53 V vs. RHE | U8: -10 mA/cm2 | V8: 94 | X8: A. Marcos-Madrazo, C. Casado-Coterillo, J. Iniesta, A. Irabien, Use of Chitosan as Copper Binder in the Continuous Electrochemical Reduction of CO2 to Ethylene in Alkaline Medium. Membranes 12, 783 (2022). | Y8: 94 | AA8: =_xlfn.LET(_xlpm.CO_2,IF(S8="CO2",1,0),_xlpm.AEM_dry,INT(AND(IF(J8="(n/a)",1,0),IF(L8="(AEM)",1,0))), _xlpm.alk_electrolyte,IF(SUM(IFERROR(FIND("KOH",I8),0),IFERROR(FIND("NaOH",I8),0),IFERROR(FIND("CsOH",I8),0), IFERROR(FIND("LiOH",I8),0), IFERROR(FIND("RbOH",I8),0))>0,1,0),_xlpm.alkaline,OR(_xlpm.AEM_dry,_xlpm.alk_electrolyte),_xlpm.rslt,INT(AND(_xlpm.CO_2,_xlpm.alkaline)),_xlpm.rslt) -> 1 | AB8: =IF(S8="CO",1,0) -> 0 | AC8: =IF(_xlfn.NUMBERVALUE(LEFT(V8,2))>=55,1,0) -> 1 | AE8: =_xlfn.LET(_xlpm.range,AA7:AA873,_xlpm.start,CELL("address",_xlpm.range),_xlpm.end,CELL("address",OFFSET(INDIRECT(_xlpm.start),ROWS(_xlpm.range)-1,0)),_xlpm.start&":"&_xlpm.end) -> $AA$7:$AA$873
A9: =A8+1 -> 3 | B9: Commercial Cu NPs (25 nm), on a GDL with custom MPL, hotpressed onto a Nafion membrane | C9: Metallic Cu | D9: Cu | E9: Nafion | F9: Catalyst on top of porous substrate (GDE) | G9: Commercial/Cu_NPs | H9: (Gas-phase reactant, supplied from behind) | I9: - | J9: (n/a) | K9: Nafion 117 | L9: (CEM) | M9: 0.1 M KHCO3 | N9: - flow - stirring | O9: (Liquid-phase reactant, supplied in front) | P9: DSA | Q9: 25 | R9: 1 | S9: CO2 | T9: -1.7 V vs. Ag/AgCl | U9: -7.5 mA/cm2 | V9: 93 | X9: I. Merino-Garcia, J. Albo, A. Irabien, Tailoring gas-phase CO2 electroreduction selectivity to hydrocarbons at Cu nanoparticles. Nanotechnology 29, 014001 (2018). | Y9: 93 | AA9: 0 | AB9: 0 | AC9: 1
A10: 4 | B10: CuOx supported on ZnO , on carbon paper (TGP-H-60) | C10: Mixed-phase/Janus, A-supports-B | D10: Cu, Zn, O | E10: Nafion | F10: Catalyst on top of porous substrate (GDE) | G10: ZnO-supported/CuOx_NPs | H10: (Gas-phase reactant, supplied from behind) | I10: - | J10: (n/a) | K10: Nafion 117 | L10: (CEM) | M10: 0.1 M KHCO3 (pH 6.8) | N10: + flow - stirring | O10: (Liquid-phase reactant, forced through surface) | P10: Platinized Ti | Q10: 25 | R10: 1 | S10: CO2 | T10: -2.5 V vs. Ag/AgCl | U10: -7.5 mA/cm2 | V10: 91 | X10: I. Merino-Garcia, J. Albo, J. Solla-Gullón, V. Montiel, A. Irabien, Cu oxide/ZnO-based surfaces for a selective ethylene production from gas-phase CO2 electroconversion. Journal of CO2 Utilization 31, 135-142 (2019). | Y10: 91 | AA10: 0 | AB10: 0 | AC10: 1 | AE10: Unique papers
A11: 5 | B11: Nafion overlayer covering a catalyst layer comprised of electroplated Cu modified via grafting an aryl diazonium-based polymeric coating, on GDL | C11: Overlayer | D11: Cu, O | E11: Nafion, Aryl diazonium-based polymer | F11: Catalyst on top of porous substrate (GDE) | G11: Diazonium/CuOx | H11: (Gas-phase reactant, supplied from behind) | I11: - | J11: (n/a) | K11: Sustainion X37-50 | L11: (AEM) | M11: 0.5 M KHCO3 | N11: + flow - stirring | O11: (Liquid-phase reactant, supplied in front) | P11: IrOx/Ti | Q11: 25 | R11: 1 | S11: CO2 | T11: -3.85 V vs. ANODE | U11: -602 mA/cm2 | V11: 89 | X11: H. Wu et al., Selective and energy-efficient electrosynthesis of ethylene from CO2 by tuning the valence of Cu catalysts through aryl diazonium functionalization. Nature Energy, (2024). | Y11: 89 | AA11: 1 | AB11: 0 | AC11: 1 | AE11: =_xlfn.LET(_xlpm.ref_range,INDIRECT(AE8),_xlpm.range,OFFSET(_xlpm.ref_range,0,-3),COUNTA(_xlfn._xlws.FILTER(_xlfn.UNIQUE(_xlpm.range,,FALSE),LEN(_xlfn.UNIQUE(_xlpm.range,,FALSE))>10))) -> 635
A12: 6 | B12: Poly-N-(6-aminohexyl)acrylamide-coated electrodeposited Cu dendrites on GDL | C12: Overlayer | D12: Cu | E12: Poly-N-(6-aminohexyl)acrylamide | F12: Catalyst on top of porous substrate (GDE) | G12: N-polymer/Cu#2-GDE | H12: (Gas-phase reactant, supplied from behind) | I12: 10 M KOH | J12: + flow - stirring | K12: ? | L12: (n/a) | M12: 10 M KOH | N12: + flow - stirring | O12: (Liquid-phase reactant, supplied in front) | P12: ? | Q12: ? | R12: ? | S12: CO2 | T12: -0.47 V -iR vs. RHE | U12: ? | V12: 87 | X12: X. Chen et al., Electrochemical CO2-to-ethylene conversion on polyamine-incorporated Cu electrodes. Nature Catalysis 4, 20-27 (2021). | Y12: 87 | AA12: 1 | AB12: 0 | AC12: 1
A13: 7 | B13: Template-assisted electroplated nanoporous (20 nm pore diameter) CuOx overlayer on Cu foam | C13: Oxide-derived | D13: Cu, O | E13: - | F13: Catalyst on top of porous substrate (GDE) | G13: CuOx_mesoporous | H13: (Gas-phase reactant, supplied from behind) | I13: - | J13: (n/a) | K13: X37-50 Grade 60 | L13: (AEM) | M13: 0.1 M KHCO3 | N13: + flow - stirring | O13: (Liquid-phase reactant, forced through surface) | P13: NiFe/Ni foam | Q13: 25 | R13: ? | S13: CO2 | T13: -3.0 V vs. ANODE | U13: -368 mA/cm2 | V13: 86 | X13: J. Han et al., Structuring Cu Membrane Electrode for Maximizing Ethylene Yield from CO2 Electroreduction. Advanced Materials n/a, 2313926. | Y13: 86 | AA13: 1 | AB13: 0 | AC13: 1 | AE13: Catalyst systems
A14: 8 | B14: Electroplated Cu modified via grafting an aryl diazonium-based polymeric coating (without Nafion toplayer), on GDL | C14: Core/shell (in-)organic | D14: Cu, O | E14: Aryl diazonium-based polymer | F14: Catalyst on top of porous substrate (GDE) | G14: Diazonium/CuOx | H14: (Gas-phase reactant, supplied from behind) | I14: - | J14: (n/a) | K14: Sustainion X37-50 | L14: (AEM) | M14: 0.5 M KHCO3 | N14: + flow - stirring | O14: (Liquid-phase reactant, supplied in front) | P14: IrOx/Ti | Q14: 25 | R14: 1 | S14: CO | T14: -2.5 V vs. ANODE | U14: -179 mA/cm2 | V14: 86 | X14: H. Wu et al., Selective and energy-efficient electrosynthesis of ethylene from CO2 by tuning the valence of Cu catalysts through aryl diazonium functionalization. Nature Energy, (2024). | Y14: 86 | AA14: 0 | AB14: 1 | AC14: 1 | AE14: =_xlfn.LET(_xlpm.ref_range,INDIRECT(AE8),_xlpm.range,OFFSET(_xlpm.ref_range,0,-3),_xlpm.catalysts,COUNTA(_xlpm.range),_xlpm.catalysts) -> 867
A15: 9 | B15: Amorphous CuOx film evaporation-deposited on GDL | C15: Oxide-derived | D15: Cu, O | E15: - | F15: Catalyst on top of porous substrate (GDE) | G15: Evap/CuOx_film | H15: (Solution-phase reactant, supplied in front) | I15: 0.5 M KHCO3 | J15: - flow - stirring | K15: "Nafion" | L15: (CEM) | M15: 0.5 M KHCO3 | N15: - flow - stirring | O15: (Liquid-phase reactant, supplied in front) | P15: Graphite rod | Q15: 25 | R15: 1 | S15: CO2 | T15: -1.3 V - iR vs. RHE | U15: -32 mA/cm2 | V15: 85 | X15: R. Wang et al., Selective Generation of Electroreduction C1–C2 Products Through Self-Regulation of Catalytically Active Cu Sites on the Same Coordination Cluster Catalyst. CCS Chemistry 5, 2237-2250 (2023). | Y15: 85 | AA15: 0 | AB15: 0 | AC15: 1
A16: 10 | B16: KOH anodization-derived CuO nanoplate on Cu-sputtered GDL | C16: Oxide-derived | D16: Cu, O | E16: - | F16: Catalyst on top of porous substrate (GDE) | G16: CuO nanoplate arrays | H16: (Gas-phase reactant, supplied from behind) | I16: - | J16: (n/a) | K16: Sustainion X37-50 | L16: (AEM) | M16: 0.5M KHCO3 | N16: + flow - stirring | O16: (Liquid-phase reactant, forced through surface) | P16: IrO2@Ti mesh | Q16: ? | R16: ? | S16: CO2 | T16: -0.81 V - iR vs. RHE | U16: -100 mA/cm2 | V16: 84 | X16: W. Liu et al., Electrochemical CO2 reduction to ethylene by ultrathin CuO nanoplate arrays. Nature Communications 13, 1877 (2022). | Y16: 84 | AA16: 1 | AB16: 0 | AC16: 1 | AE16: Alkaline CO2 systems
A17: 11 | B17: TiO2 NPs supported on V/Cu-based layered double hydroxide, on carbon paper | C17: Mixed-phase/Janus, A-supports-B | D17: Cu, V, Ti, O | E17: Nafion | F17: Catalyst on top of porous substrate (GDE) | G17: TiO2/V,Cu_LDH | H17: (Solution-phase reactant, supplied in front) | I17: 0.1 M KHCO3 | J17: - flow - stirring | K17: Nafion 117 | L17: (CEM) | M17: 0.1 M KHCO3 | N17: - flow - stirring | O17: (Liquid-phase reactant, supplied in front) | P17: Pt foil | Q17: ? | R17: ? | S17: CO2 | T17: -0.4 V vs. RHE | U17: -7 mA/cm2 | V17: 84 | X17: Lavate, S. S. & Srivastava, R. Boosting ethylene yield via a synergistic 2D/0D nanostructured VCu layered double hydroxide/TiO2 catalyst in electrochemical CO2 reduction. Energy Advances, doi:10.1039/D4YA00417E (2024). | Y17: 84 | AA17: 0 | AB17: 0 | AC17: 1 | AE17: =_xlfn.LET(_xlpm.ref_range,INDIRECT(AE8),_xlpm.range,OFFSET(_xlpm.ref_range,0,0),_xlpm.alk_sum,SUM(_xlpm.range),_xlpm.alk_sum) -> 324
A18: 12 | B18: Defective CuO-derived Cu nanosheets, on glassy carbon | C18: Oxide-derived | D18: Cu, O | E18: Nafion | F18: Catalyst on top of solid substrate (NPS) | G18: Defective CuO NSs-1 | H18: (Solution-phase reactant, supplied in front) | I18: 0.1 M K2SO4 | J18: - flow - stirring | K18: Nafion 117 | L18: (CEM) | M18: 0.1 M K2SO4 | N18: - flow - stirring | O18: (Liquid-phase reactant, supplied in front) | P18: Pt gauze | Q18: ? | R18: ? | S18: CO2 | T18: -1.18 V - iR vs. RHE | U18: -60 mA/cm2 | V18: 83 | X18: B. Zhang et al., Highly Electrocatalytic Ethylene Production from CO2 on Nanodefective Cu Nanosheets. Journal of the American Chemical Society 142, 13606-13613 (2020). | Y18: 83 | AA18: 0 | AB18: 0 | AC18: 1
A19: 13 | B19: Pre-reduced, CuO-derived Cu quantum dots (5 nm), on a GDL | C19: Oxide-derived | D19: Cu, O | E19: - | F19: Catalyst on top of porous substrate (GDE) | G19: Cu_quantum-dots | H19: (Gas-phase reactant, supplied from behind) | I19: 1.0 M KOH | J19: + flow - stirring | K19: FAA-3-PK-75 | L19: (AEM) | M19: 1.0 M KOH | N19: + flow - stirring | O19: (Liquid-phase reactant, forced through surface) | P19: Ni foam | Q19: ? | R19: ? | S19: CO2 | T19: -0.93 V -iR vs. RHE | U19: -1100 mA/cm2 | V19: 82 | X19: Wang, Y. et al. Enhanced Local CO Coverage on Cu Quantum Dots for Boosting Electrocatalytic CO2 Reduction to Ethylene. Advanced Functional Materials n/a, 2417764, doi:https://doi.org/10.1002/adfm.202417764. | Y19: 82 | AA19: 1 | AB19: 0 | AC19: 1 | AE19: CORR systems
A20: 14 | B20: CuSiO3 coated on ordered porous CuO prepared from mesoporous SiO2 molecular sieve starting material, supported on carbon, on "GDE" | C20: Core/shell, atomically mixed/crystalline | D20: Cu, Si, O, C | E20: Nafion | F20: Catalyst on top of porous substrate (GDE) | G20: CuSiO3/CuO_sieve | H20: (Gas-phase reactant, supplied from behind) | I20: 1.0 M KOH | J20: + flow - stirring | K20: FAA-PK-130 | L20: (AEM) | M20: 1.0 M KOH | N20: + flow - stirring | O20: (Liquid-phase reactant, supplied in front) | P20: Ni foam | Q20: ? | R20: ? | S20: CO2 | T20: -1.18 V vs. RHE | U20: -400 mA/cm2 | V20: 82 | X20: Q. Li et al., Efficient CO2 Electroreduction to Multicarbon Products at CuSiO3/CuO Derived Interfaces in Ordered Pores. Advanced Materials n/a, 2305508. | Y20: 82 | AA20: 1 | AB20: 0 | AC20: 1 | AE20: =_xlfn.LET(_xlpm.ref_range,INDIRECT(AE8),_xlpm.range,OFFSET(_xlpm.ref_range,0,1),_xlpm.CORR_sum,SUM(_xlpm.range),_xlpm.CORR_sum) -> 105
A21: 15 | B21: Ultrathin (ca. 4.8 nm) alloyed hexagonal CuNi nanosheets (ca. 1:1 atom ratio), on Ti mesh | C21: Alloyed/Doped | D21: Cu, Ni | E21: Nafion | F21: Catalyst on top of porous substrate (GDE) | G21: Cu-Ni_NSs | H21: (Solution-phase reactant, supplied in front) | I21: 0.5 M KHCO3 | J21: - flow - stirring | K21: ? | L21: ? | M21: 0.5 M KHCO3 | N21: - flow - stirring | O21: (Liquid-phase reactant, supplied in front) | P21: Pt foil | Q21: ? | R21: ? | S21: CO2 | T21: -1.5 V vs. RHE | U21: -470 mA/cm2 | V21: 81 | X21: Y. Yan et al., Ultrathin CuNi Nanosheets for CO2 Reduction and O2 Reduction Reaction in Fuel Cells. ACS Materials Letters 3, 1143-1150 (2021). | Y21: 81 | AA21: 0 | AB21: 0 | AC21: 1
A22: 16 | B22: Ultrathin (ca. 46.3 nm) alloyed hexagonal CuCo nanosheets (ca. 1:1 atom ratio), on glassy carbon | C22: Alloyed/Doped | D22: Cu, Co | E22: Nafion | F22: Catalyst on top of solid substrate (NPS) | G22: Cu-Co_NSs | H22: (Solution-phase reactant, supplied in front) | I22: 0.5 M KHCO3 | J22: - flow - stirring | K22: Nafion 117 | L22: (CEM) | M22: 0.5 M KHCO3 | N22: - flow - stirring | O22: (Liquid-phase reactant, supplied in front) | P22: Pt foil | Q22: ? | R22: ? | S22: CO2 | T22: -1.5 V vs. RHE | U22: -400 mA/cm2 | V22: 81 | X22: Y. Yan et al., Atomic-thin hexagonal CuCo nanocrystals with d-band tuning for CO2 reduction. Journal of Materials Chemistry A 9, 7496-7502 (2021). | Y22: 81 | AA22: 0 | AB22: 0 | AC22: 1 | AE22: ≥ 55% FE (with alkaline CO2)
A23: 17 | B23: Cu NPs supported on Cu/SAC-graphitic carbon nitride (g-C3N4), on carbon paper | C23: SAC, supported | D23: Cu, C | E23: - | F23: Catalyst on top of porous substrate (GDE) | G23: Cu_NPs/Cu-SAC_C3N4 | H23: (Gas-phase reactant, supplied from behind) | I23: 0.1 M KHCO3 (pH 6.8) | J23: + flow - stirring | K23: Fumasep FAA-3-PK-130 | L23: (AEM) | M23: 0.1 M KHCO3 (pH 6.8) | N23: + flow - stirring | O23: (Liquid-phase reactant, forced through surface) | P23: Ni foam | Q23: ? | R23: ? | S23: CO2 | T23: -1.28 V vs. RHE | U23: -45†_Cu-C-supported,8 mA/cm2 | V23: 81 | X23: H. Zhang et al., Insight into the island-sea effect of Cu−N−C for enhanced CO2 eletroreduction selectively towards C2H4. Applied Catalysis B: Environmental 343, 123566 (2024). | Y23: 81 | AA23: 0 | AB23: 0 | AC23: 1 | AE23: =_xlfn.LET(_xlpm.ref_range,INDIRECT(AE8),_xlpm.range,OFFSET(_xlpm.ref_range,0,2),_xlpm.range_filter,_xlpm.range,_xlpm.hi_sum,SUM(_xlfn._xlws.FILTER(_xlpm.range,_xlpm.range_filter)),_xlpm.hi_sum) -> 255
A24: 18 | B24: 60 nm step site-rich Cu NPs blow-dried with Ar, on GDL | C24: Metallic Cu | D24: Cu | E24: Sustainion XA-9 | F24: Catalyst on top of porous substrate (GDE) | G24: Stepped/Cu_NPs | H24: (Gas-phase reactant, supplied from behind) | I24: 1.0 M KOH (pH 14) | J24: + flow - stirring | K24: Fumasep FAA-3-PK-75 | L24: (AEM) | M24: 1.0 M KOH (pH 14) | N24: + flow - stirring | O24: (Liquid-phase reactant, supplied in front) | P24: Pt/Ti felt | Q24: 25 | R24: ? | S24: CO2 | T24: -0.58 V - iR vs. RHE | U24: -710 mA/cm2 | V24: 80 | X24: X. She et al., Pure-water-fed, electrocatalytic CO2 reduction to ethylene beyond 1,000 h stability at 10 A. Nature Energy, (2024). | Y24: 80 | AA24: 1 | AB24: 0 | AC24: 1
A25: 19 | B25: CNP and graphite layer on top of chemically etched co-sputtered Cu/Al layer on PTFE GDL | C25: Overlayer, Alloyed/Doped | D25: Cu, Al, C | E25: Nafion | F25: Catalyst on top of porous substrate (GDE) | G25: Dealloyed/Al/Cu | H25: (Gas-phase reactant, supplied from behind) | I25: 1.0 M KOH | J25: + flow - stirring | K25: FAA-3-PK-130 | L25: (AEM) | M25: 1.0 M KOH | N25: + flow - stirring | O25: (Liquid-phase reactant, supplied in front) | P25: Pt wire | Q25: ? | R25: ? | S25: CO2 | T25: -1.67 V - iR vs. RHE | U25: -400 mA/cm2 | V25: 80 | X25: M. Zhong et al., Accelerated discovery of CO2 electrocatalysts using active machine learning. Nature 581, 178-183 (2020). | Y25: 80 | AA25: 1 | AB25: 0 | AC25: 1 | AE25: ≥ 55% FE (of which alkaline CO2)
A26: 20 | B26: Mg surface-doped CuOx NPs (Mg0.72Cu), on GDL | C26: Alloyed/Doped | D26: Cu, Mg, O | E26: Nafion | F26: Catalyst on top of porous substrate (GDE) | G26: Mg/CuOx_NPs | H26: (Gas-phase reactant, supplied from behind) | I26: 1.0 M KOH | J26: + flow - stirring | K26: NEOSEPTA, AHA | L26: (AEM) | M26: 1.0 M KOH | N26: + flow - stirring | O26: (Liquid-phase reactant, supplied in front) | P26: Foamed Ni | Q26: ? | R26: ? 40% CO, 60% N2 | S26: CO | T26: ? | U26: ? | V26: 80 | X26: M. Xie et al., Fast Screening for Copper-Based Bimetallic Electrocatalysts: Efficient Electrocatalytic Reduction of CO2 to C2+ Products on Magnesium-Modified Copper. Angewandte Chemie International Edition 61, e202213423 (2022). | Y26: 80 | AA26: 0 | AB26: 1 | AC26: 1 | AE26: =_xlfn.LET(_xlpm.ref_range,INDIRECT(AE8),_xlpm.range,OFFSET(_xlpm.ref_range,0,2),_xlpm.range_filter,_xlpm.ref_range,_xlpm.hi_sum,SUM(_xlfn._xlws.FILTER(_xlpm.range,_xlpm.range_filter)),_xlpm.hi_sum) -> 116
A27: 21 | B27: CuO NPs coated with 1-dodecanethiol, on GDL | C27: Core/shell (in-)organic | D27: Cu, O | E27: Nafion, 1-dodecanethiol | F27: Catalyst on top of porous substrate (GDE) | G27: 1-dodecanethiol/CuO_NPs | H27: (Gas-phase reactant, supplied from behind) | I27: 1.0 M KOH (pH 14) | J27: + flow - stirring | K27: ? | L27: (AEM) | M27: 1.0 M KOH (pH 14) | N27: + flow - stirring | O27: (Liquid-phase reactant, forced through surface) | P27: Ni foam | Q27: ? | R27: ? | S27: CO2 | T27: -1.2 V vs. RHE | U27: -304 mA/cm2 | V27: 80 | X27: Y. Yao et al., A surface strategy boosting the ethylene selectivity for CO2 reduction and in situ mechanistic insights. Nature Communications 15, 1257 (2024). | Y27: 80 | AA27: 1 | AB27: 0 | AC27: 1
A28: 22 | B28: CuO NPs supported on Al2CuO4 nanosheets, on glassy carbon | C28: Mixed-phase/Janus, atomically mixed/crystalline, A-supports-B | D28: Cu, Al, O | E28: Nafion | F28: Catalyst on top of solid substrate (NPS) | G28: CuO_NPs/Al2CuO4_NSs | H28: (Solution-phase reactant, supplied in front) | I28: 0.1 M KHCO3 | J28: - flow - stirring | K28: Selemion AMV | L28: (AEM) | M28: 0.1 M KHCO3 | N28: - flow - stirring | O28: (Liquid-phase reactant, supplied in front) | P28: Pt foil | Q28: 25 | R28: ? | S28: CO2 | T28: -0.99 V - iR vs. RHE | U28: -2 mA/cm2 | V28: 79†_Cu-Al,1 | X28: S. Sultan et al., Interface rich CuO/Al2CuO4 surface for selective ethylene production from electrochemical CO2 conversion. Energy & Environmental Science, (2022). | Y28: 79 | AA28: 0 | AB28: 0 | AC28: 1
A29: 23 | B29: Calcined (in Al foil!) electroplated Cu dendrites, on GDL | C29: Oxide-derived | D29: Cu, O, Al (?) | E29: Nafion | F29: Catalyst on top of porous substrate (GDE) | G29: CuOx dendrites | H29: (Gas-phase reactant, supplied from behind) | I29: 3.0 M KOH | J29: + flow - stirring | K29: Sustainion X37-50 Grade T | L29: (AEM) | M29: 3.0 M KOH | N29: + flow - stirring | O29: (Liquid-phase reactant, supplied in front) | P29: Ni foam | Q29: ? | R29: ? | S29: CO | T29: ? | U29: -100 mA/cm2 | V29: 78 | X29: H. P. Duong et al., Highly Selective Copper-Based Catalysts for Electrochemical Conversion of Carbon Monoxide to Ethylene Using a Gas-Fed Flow Electrolyzer. ACS Catal 12, 10285-10293 (2022). | Y29: 78 | AA29: 0 | AB29: 1 | AC29: 1
A30: 24 | B30: Amorphous CuOx film evaporation-deposited on GDL | C30: Oxide-derived | D30: Cu, O | E30: - | F30: Catalyst on top of porous substrate (GDE) | G30: Evap/CuOx_film | H30: (Solution-phase reactant, supplied in front) | I30: - | J30: (n/a) | K30: FBAPK-13 | L30: (AEM) | M30: 0.5 M KHCO3 | N30: - flow + stirring | O30: (Gas-phase reactant, forced through surface) | P30: IrO2/Ti felt | Q30: 25 | R30: 1 | S30: CO2 | T30: -1.75 V vs. ANODE | U30: -113 mA/cm2 | V30: 78 | X30: R. Wang et al., Selective Generation of Electroreduction C1–C2 Products Through Self-Regulation of Catalytically Active Cu Sites on the Same Coordination Cluster Catalyst. CCS Chemistry 5, 2237-2250 (2023). | Y30: 78 | AA30: 1 | AB30: 0 | AC30: 1
A31: 25 | B31: Hollow Cu/CeO2 nanotubes composed of aggregated nanoparticles, on carbon paper - prepared by decorating electrospun polyacrylonitrile (PAN) fibres with metal and burning away the PAN | C31: Mixed-phase/Janus | D31: Cu, Ce, O | E31: Nafion | F31: Catalyst on top of porous substrate (GDE) | G31: CeO2/CuO_hollow-NTs | H31: (Solution-phase reactant, supplied in front) | I31: 1 M KOH | J31: + flow - stirring | K31: FAA-3-PK-130 | L31: (AEM) | M31: 1 M KOH | N31: + flow - stirring | O31: (Liquid-phase reactant, supplied in front) | P31: Pt net | Q31: 25 | R31: 1 | S31: CO2 | T31: -0.7 V vs. RHE | U31: -110 mA/cm2 | V31: 78 | X31: D. Tan, B. Wulan, X. Cao, J. Zhang, Strong interactions of metal-support for efficient reduction of carbon dioxide into ethylene. Nano Energy 89, 106460 (2021). | Y31: 78 | AA31: 1 | AB31: 0 | AC31: 1
A32: 26 | B32: CO2RR pre-activated defective Cu NWs, on glassy carbon (tested in semi-pulsed electrolysis mode) | C32: Metallic Cu | D32: Cu | E32: Nafion | F32: Catalyst on top of solid substrate (NPS) | G32: Defect/Cu_NWs | H32: (Solution-phase reactant, supplied in front) | I32: 0.1 M KHCO3 (pH 6.8) | J32: - flow - stirring | K32: Nafion | L32: (CEM) | M32: 0.1 M KHCO3 (pH 6.8) | N32: - flow - stirring | O32: (Liquid-phase reactant, supplied in front) | P32: Pt coil | Q32: 25 | R32: 1 | S32: CO2 | T32: -1.01 V - iR vs. RHE | U32: -22 mA/cm2 | V32: 77 | X32: C. Choi et al., Highly active and stable stepped Cu surface for enhanced electrochemical CO2 reduction to C2H4. Nature Catalysis 3, 804-812 (2020). | Y32: 77 | AA32: 0 | AB32: 0 | AC32: 1
A33: 27 | B33: Ag/Au (3:1 ratio) alloy, highly defective, cubic wireframe NPs (59 nm) post-modified with epitaxially deposited Cu ‘overlayer’, on GDL | C33: A-supports-B, alloyed/doped | D33: Ag, Au, Cu | E33: - | F33: Catalyst on top of porous substrate (GDE) | G33: Ag3Au-NF/Cu | H33: (Gas-phase reactant, supplied from behind) | I33: 1.0 M KOH (pH 14) | J33: + flow - stirring | K33: Fumasep FAB-PK-130 | L33: (AEM) | M33: 1.0 M KOH (pH 14) | N33: - flow + stirring | O33: (Liquid-phase reactant, forced through surface) | P33: Ni foam | Q33: ? | R33: ? | S33: CO2 | T33: -0.65 V - iR vs. RHE | U33: - 305 mA/cm2 | V33: 77 | X33: L. Xiong et al., Breaking the Linear Scaling Relationship by Compositional and Structural Crafting of Ternary Cu–Au/Ag Nanoframes for Electrocatalytic Ethylene Production. Angewandte Chemie International Edition 60, 2508-2518 (2021). | Y33: 77 | AA33: 1 | AB33: 0 | AC33: 1
A34: 28 | B34: Ionic liquid-coated Cu-MOF (Cu3(1,3,5-Benzenetricarboxylic acid)2), on glassy carbon | C34: Core/shell (in-)organic | D34: Cu | E34: Nafion, 1,3,5-Benzenetricarboxylic acid (BTC), 1-Butyl-3- methylimidazolium nitrate (BmimNO3) | F34: Catalyst on top of solid substrate (NPS) | G34: IL/Cu-MOF | H34: (Solution-phase reactant, supplied in front) | I34: 0.1 M KHCO3 (pH 6.8) | J34: - flow - stirring | K34: Nafion 117 | L34: (CEM) | M34: 0.1 M KHCO3 (pH 6.8) | N34: - flow - stirring | O34: (Liquid-phase reactant, supplied in front) | P34: Pt gauze | Q34: ? | R34: ? | S34: CO2 | T34: -1.49 V vs. RHE | U34: -34 mA/cm2 | V34: 77 | X34: Y. Sha et al., Anchoring Ionic Liquid in Copper Electrocatalyst for Improving CO2 Conversion to Ethylene. Angewandte Chemie International Edition 61, e202200039 (2022). | Y34: 77 | AA34: 0 | AB34: 0 | AC34: 1
A35: 29 | B35: Porous Cu2O microparticles, on PTFE-modified GDL | C35: Oxide-derived | D35: Cu, O | E35: Nafion | F35: Catalyst on top of porous substrate (GDE) | G35: Co-TMC/Cu2O_MPs | H35: (Gas-phase reactant, supplied from behind) | I35: 1.0 M KCl + x M H2SO4 (pH 1.9) | J35: + flow - stirring | K35: Nafion 115 | L35: (CEM) | M35: 0.5 M K2SO4 + x M H2SO4 (pH 1) | N35: + flow - stirring | O35: (Liquid-phase reactant, supplied in front) | P35: Pt plate | Q35: 25 | R35: 1 | S35: CO | T35: ? | U35: -800 mA/cm2 | V35: 76 | X35: Y. Wang, Q. Cheng, H. Zhang, L. Ma, H. Yang, Cobalt(II) tetraphenylporphyrin trapped in the pores of Cu2O to enhance the C2+ selectivity towards acidic CO2 electroreduction. Chemical Engineering Journal 492, 152254 (2024). | Y35: 76 | AA35: 0 | AB35: 1 | AC35: 1
A36: 30 | B36: Dilute Cu/Pd alloy (1.4 at. % Pd) prepared via co-electrodeposition, on glassy carbon | C36: Alloyed/Doped | D36: Cu, Pd | E36: - | F36: Catalyst on top of solid substrate (NPS) | G36: Co-plate/CuPd | H36: (Solution-phase reactant, supplied in front) | I36: 0.1 M KHCO3 | J36: - flow - stirring | K36: FAA-3-PK-75 | L36: (AEM) | M36: 0.1 M KHCO3 | N36: - flow - stirring | O36: (Liquid-phase reactant, supplied in front) | P36: Pt foil | Q36: 25 | R36: 1 | S36: CO2 | T36: -0.7 V vs. RHE | U36: -3 mA/cm2 | V36: 76 | X36: Z.-Y. Zhang et al., Nanocavity enriched CuPd alloy with high selectivity for CO2 electroreduction toward C2H4. Rare Metals, (2024). | Y36: 76 | AA36: 0 | AB36: 0 | AC36: 1
A37: 31 | B37: Co-TMC (tetraphenylporphyrin) confined within the nanopores of porous Cu2O microparticles, on PTFE-modified GDL | C37: A-supports-B, Mixed-phase/Janus | D37: Cu, O, Co | E37: Nafion | F37: Catalyst on top of porous substrate (GDE) | G37: Co-TMC/Cu2O_MPs | H37: (Gas-phase reactant, supplied from behind) | I37: 1.0 M KCl + x M H2SO4 (pH 1.9) | J37: + flow - stirring | K37: Nafion 115 | L37: (CEM) | M37: 0.5 M K2SO4 + x M H2SO4 (pH 1) | N37: + flow - stirring | O37: (Liquid-phase reactant, supplied in front) | P37: Pt plate | Q37: 25 | R37: 1 | S37: CO | T37: ? | U37: -800 mA/cm2 | V37: 76 | X37: Y. Wang, Q. Cheng, H. Zhang, L. Ma, H. Yang, Cobalt(II) tetraphenylporphyrin trapped in the pores of Cu2O to enhance the C2+ selectivity towards acidic CO2 electroreduction. Chemical Engineering Journal 492, 152254 (2024). | Y37: 76 | AA37: 0 | AB37: 1 | AC37: 1
A38: 32 | B38: Ag foil coated with Cu NP Nafion ink | C38: Overlayer | D38: Cu, Ag | E38: Nafion | F38: Catalyst on top of solid substrate (NPS) | G38: Ag/Nafion-Cu2O | H38: (Solution-phase reactant, supplied in front) | I38: 0.1 M NaHCO3 (pH 6.8) | J38: (n/a) | K38: - | L38: (n/a) | M38: One compartment | O38: (Liquid-phase reactant, supplied in front) | P38: Pt wire | Q38: ? | R38: ? | S38: CO2 | T38: -1.9 V vs. RHE | U38: -21 mA/cm2 | V38: 76 | X38: Akter, T., et al. (2022). "Tandem Electrocatalytic CO2 Reduction inside a Membrane with Enhanced Selectivity for Ethylene." The Journal of Physical Chemistry C 126(24): 10045-10052. | Y38: 76 | AA38: 0 | AB38: 0 | AC38: 1
A39: 33 | B39: Prepared by electrodepositing Cu on Ag surfaces | C39: Overlayer | D39: Cu, Ag | E39: Nafion | F39: Catalyst on top of solid substrate (NPS) | G39: Electro/Cu_NPs/Ag | H39: (Solution-phase reactant, supplied in front) | I39: 0.1 M NaHCO3 (pH 6.8) | J39: (n/a) | K39: - | L39: (n/a) | M39: One compartment | O39: (Liquid-phase reactant, supplied in front) | P39: Carbon electrode | Q39: ? | R39: ? | S39: CO2 | T39: -1.9 V vs. RHE | U39: -21 mA/cm2 | V39: 76 | X39: Akter, T. and C. J. Barile (2023). "Membrane-controlled CO2 electrocatalysts with switchable C2 product selectivity and high faradaic efficiency for ethanol." | Y39: 76 | AA39: 0 | AB39: 0 | AC39: 1
A40: 34 | B40: Defect-rich CuO NRs (800 nm) with HCOO- induced pores, on a GDL | C40: Oxide-derived | D40: Cu, O | E40: Nafion | F40: Catalyst on top of porous substrate (GDE) | G40: Porous/CuOx_NWs | H40: (Gas-phase reactant, supplied from behind) | I40: 2.0 M KOH | J40: + flow - stirring | K40: Nafion 117 | L40: (CEM) | M40: 3.0 M KOH | N40: + flow - stirring | O40: (Liquid-phase reactant, forced through surface) | P40: Ni foam | Q40: ? | R40: ? | S40: CO2 | T40: -0.8 V -iR vs. RHE | U40: -144 mA/cm2 | V40: 75 | X40: Zhou, W. et al. Multiple Tuning of the Local Environment Enables Selective CO2 Electroreduction to Ethylene in Neutral Electrolytes. Advanced Functional Materials 34, 2311226, doi:https://doi.org/10.1002/adfm.202311226 (2024). | Y40: 75 | AA40: 1 | AB40: 0 | AC40: 1
A41: 35 | B41: Star shaped {322}-rich Cu2O large NPs, on glassy carbon | C41: Oxide-derived | D41: Cu, O | E41: Nafion D-521 | F41: Catalyst on top of solid substrate (NPS) | G41: {322}-rich Cu2O particles | H41: (Solution-phase reactant, supplied in front) | I41: 0.1 M KHCO3 (pH 6.8) | J41: - flow - stirring | K41: Nafion | L41: (CEM) | M41: 0.1 M KHCO3 (pH 6.8) | N41: - flow - stirring | O41: (Liquid-phase reactant, supplied in front) | P41: Pt foil | Q41: ? | R41: ? | S41: CO2 | T41: -1.2 V vs. RHE | U41: -11 mA/cm2 | V41: 74 | X41: H. Luo, B. Li, J.-G. Ma, P. Cheng, Surface Modification of Nano-Cu2O for Controlling CO2 Electrochemical Reduction to Ethylene and Syngas. Angewandte Chemie International Edition 61, e202116736 (2022). | Y41: 74 | AA41: 0 | AB41: 0 | AC41: 1
A42: 36 | B42: Brass foil (62% Cu, 37% Zn, trace amounts of Fe, Pb, Sn) with Nafion/PVDF (70:30 wt%) overlayer | C42: Alloyed/Doped, Overlayer | D42: Cu, Zn | E42: Nafion, PVDF | F42: Catalyst on top of solid substrate (NPS) | G42: Coated-Brass | H42: (Solution-phase reactant, supplied in front) | I42: 0.1 M NaHCO3 (pH 6.8) | J42: - flow - stirring | K42: - | L42: (n/a) | M42: 0.1 M NaHCO3 (pH 6.8) | N42: - flow - stirring | O42: (Liquid-phase reactant, supplied in front) | P42: ? | Q42: ? | R42: ? | S42: CO2 | T42: -0.89 V vs. RHE | U42: ? | V42: 74 | X42: H. Pan, T. Akter, C. J. Barile, Electrochemical CO2 Reduction on Zinc and Brass with Modulated Proton Transfer Using Membrane-Modified Electrodes. ACS Applied Energy Materials 5, 12860-12868 (2022). | Y42: 74 | AA42: 0 | AB42: 0 | AC42: 1
A43: 37 | B43: N-doped CuOx NPs derived from calcination of Cu(OH)3NO3 precursor at 350 °C, on GDL | C43: Oxide-derived | D43: Cu, O, N | E43: Nafion | F43: Catalyst on top of porous substrate (GDE) | G43: N-doped/CuOx_NPs | H43: (Gas-phase reactant, supplied from behind) | I43: 1 M KOH (pH 14) | J43: + flow - stirring | K43: Fumasep-FAA- 3-PK-130 | L43: (AEM) | M43: 1 M KOH (pH 14) | N43: + flow - stirring | O43: (Liquid-phase reactant, supplied in front) | P43: Ni foam | Q43: ? | R43: ? | S43: CO2 | T43: -1.09 V - iR vs. RHE | U43: -962†_oxidic,2 mA/cm2 | V43: 73 | X43: H. Tao, F. Wang, Z. Zhang, S. Min, Surface N-coordinated Cu catalysts for CO2 electroreduction to ethylene at industry-level current densities. Sustainable Energy & Fuels 7, 2991-2996 (2023). | Y43: 73 | AA43: 1 | AB43: 0 | AC43: 1
A44: 38 | B44: Highly porous Zn/Cu layer (10 at. % Zn) generated through partially leaching of co-sputtered Zn/Cu layer on PTFE substrate | C44: Alloyed/Doped | D44: Cu, Zn | E44: - | F44: Catalyst on top of porous substrate (GDE) | G44: Leach-Zn/CuOx | H44: (Gas-phase reactant, supplied from behind) | I44: 0.75 M KOH | J44: + flow - stirring | K44: Fumasep FAB-PK-130 | L44: (AEM) | M44: 0.75 M KOH | N44: + flow - stirring | O44: (Liquid-phase reactant, forced through surface) | P44: Ni foam | Q44: 25 | R44: 1 | S44: CO2 | T44: -1.1 V vs. RHE | U44: -150 mA/cm2 | V44: 73 | X44: J. Zhang et al., Accelerating electrochemical CO2 reduction to multi-carbon products via asymmetric intermediate binding at confined nanointerfaces. Nature Communications 14, 1298 (2023). | Y44: 73 | AA44: 1 | AB44: 0 | AC44: 1
A45: 39 | B45: N1-/N3-substituted imidazolium-based overlayer on Cu plate | C45: Overlayer | D45: Cu | E45: N1-substituted (1,10- phenanthrolinyl) and N3-substituted (n-butyl) imidazolium | F45: Catalyst on top of solid substrate (NPS) | G45: N1/3-sub_imidazolium/Cu_plate | H45: (Solution-phase reactant, supplied in front) | I45: 0.1 M KHCO3 (pH 6.8) | J45: - flow - stirring | K45: "Hangzhou Huamo Technology Co., Ltd" | L45: (AEM) | M45: 0.1 M KHCO3 (pH 6.8) | N45: - flow - stirring | O45: (Liquid-phase reactant, supplied in front) | P45: Pt foil | Q45: ? | R45: ? | S45: CO2 | T45: -1.24 V vs. RHE | U45: -6 mA/cm2 | V45: 73 | X45: B. Cheng et al., Selective CO2 Reduction to Ethylene Using Imidazolium-Functionalized Copper. ACS Applied Materials & Interfaces 14, 27823-27832 (2022). | Y45: 73 | AA45: 0 | AB45: 0 | AC45: 1
A46: 40 | B46: {220}-facet rich CuI nanodots (5.3 nm) prepared via in-situ reduction of (Cu(OH)2) NPs on carbon paper GDL in 0.1 M KHCO3 + 0.1 M KI | C46: Oxide-derived | D46: Cu, O, I | E46: Nafion | F46: Catalyst on top of porous substrate (GDE) | G46: CuI_nanodot | H46: (Gas-phase reactant, supplied from behind) | I46: 0.5 M KHCO3 + 0.5 M KI | J46: + flow - stirring | K46: FAA-3-PK -130 | L46: (AEM) | M46: 1.0 M KHCO3 | N46: + flow - stirring | O46: (Liquid-phase reactant, supplied in front) | P46: Carbon rod | Q46: ? | R46: ? | S46: CO2 | T46: -2.1 V vs. RHE | U46: -800 mA/cm2 | V46: 72 | X46: W. Xue et al., Operando reconstruction towards stable CuI nanodots with favorable facets for selective CO2 electroreduction to C2H4. Science China Chemistry 66, 1834-1843 (2023). | Y46: 72 | AA46: 0 | AB46: 0 | AC46: 1
A47: 41 | B47: Cu NPs encapsulated in mesoporous Ni-SAC functionalized carbon, on GDL | C47: Mixed-phase/Janus, A-supports-B | D47: Cu, Ni, C, N | E47: - | F47: Catalyst on top of porous substrate (GDE) | G47: Meso-C/Ni/Cu | H47: (Gas-phase reactant, supplied from behind) | I47: 1.0 M KHCO3 | J47: + flow - stirring | K47: "Fuel Cell Store" | L47: (AEM) | M47: 1.0 M KHCO3 | N47: + flow - stirring | O47: (Liquid-phase reactant, supplied in front) | P47: Pt foil | Q47: ? | R47: ? | S47: CO2 | T47: -1.1 V -iR vs. RHE | U47: -406 mA/cm2 | V47: 72 | X47: B. Chen et al., Tandem Catalysis for Enhanced CO2 to Ethylene Conversion in Neutral Media. Advanced Functional Materials n/a, 2310029. | Y47: 72 | AA47: 0 | AB47: 0 | AC47: 1
A48: 42 | B48: Ag-doped La2-xAgxCuO4-δ NPs (x=0.2) with oxygen vacancies, on Toray carbon paper | C48: Atomically mixed/Crystalline, alloyed/doped | D48: Cu, Ag, La | E48: Nafion | F48: Catalyst on top of porous substrate (GDE) | G48: Ag/La2CuO4 | H48: (Solution-phase reactant, supplied in front) | I48: 0.5 M KHCO3 | J48: - flow - stirring | K48: Nafion | L48: (CEM) | M48: 0.5 M KHCO3 | N48: - flow - stirring | O48: (Liquid-phase reactant, supplied in front) | P48: Pt net | Q48: ? | R48: ? | S48: CO2 | T48: -1.1 V vs. RHE | U48: -28 mA/cm2 | V48: 72 | X48: Dong, G. et al. Boosting the CO2 electroreduction performance of La2-xAgxCuO4-δ perovskites via A-site substitution mechanism. Applied Catalysis B: Environmental 342, 123444, doi:https://doi.org/10.1016/j.apcatb.2023.123444 (2024). | Y48: 72 | AA48: 0 | AB48: 0 | AC48: 1
A49: 43 | B49: CuOx NPs (large size distribution) mixed with PTFE, on carbon paper | C49: Core/shell (in-)organic | D49: Cu, O | E49: Nafion, PTFE | F49: Catalyst on top of porous substrate (GDE) | G49: PTFE/CuOx_NPs | H49: (Solution-phase reactant, supplied in front) | I49: 0.5 M KCl + 50 mM benzyl alcohol | J49: - flow - stirring | K49: FKB PK 130 | L49: (AEM) | M49: 0.5 M KCl | N49: - flow - stirring | O49: (Liquid-phase reactant, supplied in front) | P49: Carbon rod | Q49: 25 | R49: ? | S49: CO2 | T49: -1.38 V vs. RHE | U49: -88 mA/cm2 | V49: 72 | X49: Y. Wang et al., Benzyl alcohol promoted electrocatalytic reduction of carbon dioxide and C2 production by Cu2O/Cu. Chemical Engineering Journal 485, 149800 (2024). | Y49: 72 | AA49: 0 | AB49: 0 | AC49: 1
A50: 44 | B50: N-arylpyridinium electrodeposition-modified Cu-sputtered PTFE GDL | C50: Overlayer | D50: Cu | E50: N,N′-(1,4-phenylene) bispyridinium salt | F50: Catalyst on top of porous substrate (GDE) | G50: N-polymer/Cu-GDE | H50: (Gas-phase reactant, supplied from behind) | I50: 1.0 M KHCO3 | J50: + flow - stirring | K50: Fumapem FAA-3-PK-130 | L50: (AEM) | M50: 1.0 M KHCO3 | N50: + flow - stirring | O50: (Liquid-phase reactant, supplied in front) | P50: Ni foam | Q50: ? | R50: ? | S50: CO2 | T50: -0.83 V -iR vs. RHE | U50: -325 mA/cm2 | V50: 72 | X50: F. Li et al., Molecular tuning of CO2-to-ethylene conversion. Nature 577, 509-513 (2020). | Y50: 72 | AA50: 0 | AB50: 0 | AC50: 1
A51: 45 | B51: Poly-N-(6-aminohexyl)acrylamide-coated electrodeposited Cu dendrites on GDL | C51: Overlayer | D51: Cu | E51: Poly-N-(6-aminohexyl)acrylamide | F51: Catalyst on top of porous substrate (GDE) | G51: N-polymer/Cu#2-GDE | H51: (Gas-phase reactant, supplied from behind) | I51: 1.0 M KOH (pH 14) | J51: + flow - stirring | K51: ? | L51: (n/a) | M51: 1.0 M KOH (pH 14) | N51: + flow - stirring | O51: (Liquid-phase reactant, supplied in front) | P51: ? | Q51: ? | R51: ? | S51: CO2 | T51: -0.97 V -iR vs. RHE | U51: -433 mA/cm2 | V51: 72 | X51: X. Chen et al., Electrochemical CO2-to-ethylene conversion on polyamine-incorporated Cu electrodes. Nature Catalysis 4, 20-27 (2021). | Y51: 72 | AA51: 1 | AB51: 0 | AC51: 1
A52: 46 | B52: Grainboundary-rich Cu2CO3(OH)2-derived Cu nanoribbons with Carbon NP midlayer and graphite toplayer, on PTFE GDL | C52: Oxide-derived | D52: Cu, O, C | E52: - | F52: Catalyst on top of porous substrate (GDE) | G52: Cu2CO3(OH)2-derived Cu/PTFE | H52: (Gas-phase reactant, supplied from behind) | I52: 1.0 M KOH (pH 14) | J52: + flow - stirring | K52: Fumapem FAA-3-PK-130 | L52: (AEM) | M52: 1.0 M KOH (pH 14) | N52: + flow - stirring | O52: (Liquid-phase reactant, supplied in front) | P52: SS mesh | Q52: ? | R52: ? | S52: CO2 | T52: -1.6 V vs. RHE | U52: -700 mA/cm2 | V52: 71 | X52: L. Bian et al., Grain boundary-abundant copper nanoribbons on balanced gas-liquid diffusion electrodes for efficient CO2 electroreduction to C2H4. Chinese Journal of Catalysis 54, 199-211 (2023). | Y52: 71 | AA52: 1 | AB52: 0 | AC52: 1
A53: 47 | B53: Cu2O NCs on GDL, electrochemically pre-activated via in-situ reduction in the presence of CO2 | C53: Oxide-derived | D53: Cu, O | E53: Nafion | F53: Catalyst on top of porous substrate (GDE) | G53: CO2-reduced/Cu2O_NCs | H53: (Gas-phase reactant, supplied from behind) | I53: 1.0 M KOH | J53: + flow - stirring | K53: Sustainion® X37-50 grade RT | L53: (AEM) | M53: 1.0 M KOH | N53: + flow - stirring | O53: (Liquid-phase reactant, forced through surface) | P53: Ni foam | Q53: ? | R53: ? | S53: CO2 | T53: -0.6 V vs. RHE | U53: -207 mA/cm2 | V53: 71 | X53: Zhang, C. et al. Exploration of Gas-Dependent Self-Adaptive Reconstruction Behavior of Cu2O for Electrochemical CO2 Conversion to Multi-Carbon Products. Nano-Micro Letters 17, 66, doi:10.1007/s40820-024-01568-1 (2024). | Y53: 71 | AA53: 1 | AB53: 0 | AC53: 1
A54: 48 | B54: Defect-rich CuO NRs (800 nm) with HCOO- induced pores, on a GDL | C54: Oxide-derived | D54: Cu, O | E54: Nafion | F54: Catalyst on top of porous substrate (GDE) | G54: Porous/CuOx_NWs | H54: (Gas-phase reactant, supplied from behind) | I54: 3.0 M KCl | J54: + flow - stirring | K54: Nafion 117 | L54: (CEM) | M54: 3.0 M KOH | N54: + flow - stirring | O54: (Liquid-phase reactant, forced through surface) | P54: Ni foam | Q54: ? | R54: ? | S54: CO2 | T54: -1.07 V -iR vs. RHE | U54: -312 mA/cm2 | V54: 71 | X54: Zhou, W. et al. Multiple Tuning of the Local Environment Enables Selective CO2 Electroreduction to Ethylene in Neutral Electrolytes. Advanced Functional Materials 34, 2311226, doi:https://doi.org/10.1002/adfm.202311226 (2024). | Y54: 71 | AA54: 0 | AB54: 0 | AC54: 1
A55: 49 | B55: CuOx nanocubes/rectangles supported on Al2O3 nanosheets having an Al2CuO2 interface layer, mixed with CNPs, on glassy carbon | C55: Mixed-phase/Janus, atomically mixed/crystalline, A-supports-B | D55: Cu, Al, O, C | E55: Nafion | F55: Catalyst on top of solid substrate (NPS) | G55: Al2CuO2-interface/CuOx_NCs | H55: (Solution-phase reactant, supplied in front) | I55: 0.1 M KHCO3 | J55: + flow - stirring | K55: Nafion 117 | L55: (CEM) | M55: 0.1 M KHCO3 | N55: + flow - stirring | O55: (Liquid-phase reactant, supplied in front) | P55: Pt plate | Q55: 25 | R55: 1 | S55: CO2 | T55: -1.2 V - iR vs. RHE | U55: -60 mA/cm2 | V55: 71 | X55: X. Wang et al., Identifying an Interfacial Stabilizer for Regeneration-Free 300 h Electrochemical CO2 Reduction to C2 Products. Journal of the American Chemical Society 144, 22759-22766 (2022). | Y55: 71 | AA55: 0 | AB55: 0 | AC55: 1
A56: 50 | B56: Cu2O NCs supported on cobalt phthalocyanine-modified-acetylene black, on GDL | C56: A-supports-B, Mixed-phase/Janus | D56: Cu, Co, C | E56: Nafion | F56: Catalyst on top of solid substrate (NPS) | G56: Co-AcB/Cu2O_NCs | H56: (Gas-phase reactant, supplied from behind) | I56: 1.0 M KOH | J56: + flow - stirring | K56: FAA-3-20 | L56: (AEM) | M56: 1.0 M KOH | N56: + flow - stirring | O56: (Liquid-phase reactant, forced through surface) | P56: Ni foam | Q56: ? | R56: ? | S56: CO2 | T56: -0.76 V - iR vs. RHE | U56: -317 mA/cm2 | V56: 71 | X56: J. Liu et al., Integration of Cobalt Phthalocyanine, Acetylene Black and Cu2O Nanocubes for Efficient Electroreduction of CO2 to C2H4. ChemSusChem 16, e202300601 (2023). | Y56: 71 | AA56: 1 | AB56: 0 | AC56: 1
A57: 51 | B57: Single atom Cu supported on ultrathin Ti3C2Tx nanosheets, on carbon paper | C57: Single atom | D57: Cu, C, Ti | E57: Nafion | F57: Catalyst on top of porous substrate (GDE) | G57: Cu-SAC_Ti3C2Tx | H57: (Solution-phase reactant, supplied in front) | I57: 1.0 M KOH (pH 14) | J57: - flow - stirring | K57: Nafion 117 | L57: (CEM) | M57: 1.0 M KOH (pH 14) | N57: - flow - stirring | O57: (Liquid-phase reactant, supplied in front) | P57: Graphite rod | Q57: ? | R57: ? | S57: CO | T57: -0.70 V vs. RHE | U57: -23 mA/cm2 | V57: 71 | X57: H. Bao et al., Isolated copper single sites for high-performance electroreduction of carbon monoxide to multicarbon products. Nature Communications 12, 238 (2021). | Y57: 71 | AA57: 0 | AB57: 1 | AC57: 1
A58: 52 | B58: Cu2O NPs supported on CNTs modified with Cu-based COF, on glassy carbon | C58: COF, supported | D58: Cu, C, O | E58: Nafion | F58: Catalyst on top of solid substrate (NPS) | G58: Cu-COF/CNTs/Cu2O | H58: (Solution-phase reactant, supplied in front) | I58: 0.5 M KHCO3 | J58: - flow - stirring | K58: Nafion 117 | L58: (CEM) | M58: 0.5 M KHCO3 | N58: - flow - stirring | O58: (Liquid-phase reactant, supplied in front) | P58: Pt mesh | Q58: ? | R58: ? | S58: CO2 | T58: -1.1 V vs. RHE | U58: -44 mA/cm2 | V58: 71 | X58: He, Q. et al. Highly Selective CO2 Electroreduction to C2H4 Using a Dual-Sites Cu(II) Porphyrin Framework Coupled with Cu2O Nanoparticles via a Synergetic-Tandem Strategy. Angewandte Chemie International Edition 63, e202407090, doi:https://doi.org/10.1002/anie.202407090 (2024). | Y58: 71 | AA58: 0 | AB58: 0 | AC58: 1
A59: 53 | B59: Thin quasi-graphitic carbon-shell functionalized, N-doped Cu NPs supported on carbon fibers, on GDL | C59: Core/shell | D59: Cu, C, N | E59: Nafion, quasi-graphitic carbon shell | F59: Catalyst on top of porous substrate (GDE) | G59: C-shell_N/Cu-NPs_CNT | H59: (Gas-phase reactant, supplied from behind) | I59: 1.0 M KOH (pH 14) | J59: + flow - stirring | K59: Sustanion X37-50 | L59: (AEM) | M59: 1.0 M KOH (pH 14) | N59: + flow - stirring | O59: (Liquid-phase reactant, supplied in front) | P59: IrO2/Ti frit | Q59: ? | R59: ? | S59: CO2 | T59: -0.69 V -iR vs. RHE | U59: -400 mA/cm2 | V59: 71 | X59: J.-Y. Kim et al., Quasi-graphitic carbon shell-induced Cu confinement promotes electrocatalytic CO2 reduction toward C2+ products. Nature Communications 12, 3765 (2021). | Y59: 71 | AA59: 1 | AB59: 0 | AC59: 1
A60: 54 | B60: Single atom Cu sites enclosed in an Ir-containing Zr-based MOF framework with rod-like morphology, on carbon cloth | C60: Single atom, Atomically mixed/Crystalline | D60: Cu, Ir, Zr | E60: Nafion | F60: Catalyst on top of solid substrate (NPS) | G60: Ir/Zr/Cu_MOF/NRs | H60: (Solution-phase reactant, supplied in front) | I60: 1.0 M phosphate buffer saline | J60: - flow - stirring | K60: Nafion 212 | L60: (CEM) | M60: 1.0 M phosphate buffer saline | N60: - flow - stirring | O60: (Liquid-phase reactant, supplied in front) | P60: Pt wire | Q60: 25 | R60: 1 | S60: CO2 | T60: -1.0 V vs. RHE | U60: -28 mA/cm2 | V60: 71 | X60: Q. Mo et al., Engineering Dual Sites into the Confined Nanospace of the Porphyrinic Metal–Organic Framework for Tandem Transformation of CO2 to Ethylene. ACS Sustainable Chemistry & Engineering, (2024). | Y60: 71 | AA60: 0 | AB60: 0 | AC60: 1
A61: 55 | B61: Sputtered Cu with Carbon NP midlayer and graphite toplayer, on PTFE GDL | C61: Oxide-derived | D61: Cu, C | E61: - | F61: Catalyst on top of porous substrate (GDE) | G61: Cu-S/CNPs/Graph/PTFE | H61: (Gas-phase reactant, supplied from behind) | I61: 7.0 M KOH | J61: + flow - stirring | K61: Fumasep FAB-PK-130 | L61: (AEM) | M61: 7.0 M KOH | N61: + flow - stirring | O61: (Liquid-phase reactant, supplied in front) | P61: NiFeOx | Q61: ? | R61: ? | S61: CO2 | T61: -0.57 V - iR vs. RHE | U61: -100 mA/cm2 | V61: 70 | X61: A. Thevenon, A. Rosas-Hernández, J. C. Peters, T. Agapie, In-Situ Nanostructuring and Stabilization of Polycrystalline Copper by an Organic Salt Additive Promotes Electrocatalytic CO2 Reduction to Ethylene. Angewandte Chemie 131, 17108-17114 (2019). | Y61: 70 | AA61: 1 | AB61: 0 | AC61: 1
A62: 56 | B62: Cu3(PO4)2 particles, on glassy carbon | C62: Oxide-derived | D62: Cu, O, P | E62: Nafion | F62: Catalyst on top of solid substrate (NPS) | G62: Cu3(PO4)2_particles/C | H62: (Solution-phase reactant, supplied in front) | I62: 0.1 M KHCO3 (pH 6.8) | J62: - flow - stirring | K62: Nafion 117 | L62: (CEM) | M62: 0.1 M KHCO3 (pH 6.8) | N62: - flow - stirring | O62: (Liquid-phase reactant, supplied in front) | P62: Pt mesh | Q62: ? | R62: ? | S62: CO2 | T62: -1.45 V vs. RHE | U62: -23 mA/cm2 | V62: 70 | X62: X. Y. Zhang et al., Direct OC-CHO coupling towards highly C2+ products selective electroreduction over stable Cu0/Cu2+ interface. Nature Communications 14, 7681 (2023). | Y62: 70 | AA62: 0 | AB62: 0 | AC62: 1
A63: 57 | B63: Iodine-doped copper oxychloride NPs, on glassy carbon | C63: Oxide-derived | D63: Cu, O, Cl, I | E63: Nafion | F63: Catalyst on top of solid substrate (NPS) | G63: I/CuOCl | H63: (Solution-phase reactant, supplied in front) | I63: 0.05 M KHCO3 | J63: - flow + stirring | K63: - | L63: (n/a) | M63: 0.05 M KHCO3 | N63: - flow + stirring | O63: (Liquid-phase reactant, supplied in front) | P63: Pt foil | Q63: 20 | R63: ? | S63: CO2 | T63: -1.71 V vs. RHE | U63: -29 mA/cm2 | V63: 70 | X63: H. Bai et al., Controllable CO adsorption determines ethylene and methane productions from CO2 electroreduction. Science Bulletin 66, 62-68 (2021). | Y63: 70 | AA63: 0 | AB63: 0 | AC63: 1
A64: 58 | B64: Wet-chemical induced (NaOH / (NH4)2S2O8) high roughness nanoporous CuOx layer on Cu plate | C64: Oxide-derived | D64: Cu, O | E64: - | F64: Catalyst on top of solid substrate (NPS) | G64: Chemical/CuOx_porous | H64: (Solution-phase reactant, supplied in front) | I64: 1.0 M KOH | J64: - flow - stirring | K64: "Nafion" | L64: (CEM) | M64: 1.0 M KOH + 0.1 M L-ascorbate†_oxidic,6 | N64: - flow - stirring | O64: (Liquid-phase reactant, supplied in front) | P64: Pt mesh | Q64: 25 | R64: 40 | S64: CO | T64: -0.8 V vs. RHE | U64: -130 mA/cm2 | V64: 70 | X64: W. Yang et al., Boosting C–C coupling to multicarbon products via high-pressure CO electroreduction. Journal of Energy Chemistry 85, 102-107 (2023). | Y64: 70 | AA64: 0 | AB64: 1 | AC64: 1
A65: 59 | B65: Template-assisted electroplated nanoporous (20 nm pore diameter) CuOx overlayer on Cu plate | C65: Oxide-derived | D65: Cu, O | E65: - | F65: Catalyst on top of solid substrate (NPS) | G65: CuOx_mesoporous | H65: (Solution-phase reactant, supplied in front) | I65: 0.1 M KHCO3 | J65: - flow + stirring | K65: Nafion 117 | L65: (CEM) | M65: 0.1 M KHCO3 | N65: - flow - stirring | O65: (Liquid-phase reactant, supplied in front) | P65: Pt gauze | Q65: 25 | R65: ? | S65: CO2 | T65: -0.99 V vs. RHE | U65: -63 mA/cm2 | V65: 70 | X65: J. Han et al., Structuring Cu Membrane Electrode for Maximizing Ethylene Yield from CO2 Electroreduction. Advanced Materials n/a, 2313926. | Y65: 70 | AA65: 0 | AB65: 0 | AC65: 1
A66: 60 | B66: CuO NPs supported on Al2CuO4 nanosheets, on GDL | C66: Mixed-phase/Janus, atomically mixed/crystalline, A-supports-B | D66: Cu, Al, O | E66: Nafion | F66: Catalyst on top of porous substrate (GDE) | G66: CuO_NPs/Al2CuO4_NSs | H66: (Gas-phase reactant, supplied from behind) | I66: 1.0 M KOH (pH 14) | J66: + flow - stirring | K66: FAA-3- PK-130 | L66: (AEM) | M66: 1.0 M KOH (pH 14) | N66: + flow - stirring | O66: (Liquid-phase reactant, supplied in front) | P66: Ni-Fe-Mo foil | Q66: 25 | R66: ? | S66: CO2 | T66: -2.03 V - iR vs. RHE | U66: -600 mA/cm2 | V66: 70 | X66: S. Sultan et al., Interface rich CuO/Al2CuO4 surface for selective ethylene production from electrochemical CO2 conversion. Energy & Environmental Science, (2022). | Y66: 70 | AA66: 1 | AB66: 0 | AC66: 1
A67: 61 | B67: Mg surface-doped CuOx NPs (Mg0.72Cu), on GDL | C67: Alloyed/Doped | D67: Cu, Mg, O | E67: Nafion | F67: Catalyst on top of porous substrate (GDE) | G67: Mg/CuOx_NPs | H67: (Gas-phase reactant, supplied from behind) | I67: 1.0 M KOH | J67: + flow - stirring | K67: NEOSEPTA, AHA | L67: (AEM) | M67: 1.0 M KOH | N67: + flow - stirring | O67: (Liquid-phase reactant, supplied in front) | P67: Foamed Ni | Q67: ? | R67: ? | S67: CO2 | T67: -0.69 V - iR vs. RHE | U67: -650 mA/cm2 | V67: 70 | X67: M. Xie et al., Fast Screening for Copper-Based Bimetallic Electrocatalysts: Efficient Electrocatalytic Reduction of CO2 to C2+ Products on Magnesium-Modified Copper. Angewandte Chemie International Edition 61, e202213423 (2022). | Y67: 70 | AA67: 1 | AB67: 0 | AC67: 1
A68: 62 | B68: Cold H2 plasma-treated porous mixed CoOx/CuOx, on glassy carbon | C68: Mixed-phase/Janus | D68: Cu, Co | E68: Nafion | F68: Catalyst on top of solid substrate (NPS) | G68: Porous-CoOx/CuOx_NPs | H68: (Solution-phase reactant, supplied in front) | I68: 0.1 M KHCO3 | J68: - flow - stirring | K68: ? | L68: ? | M68: 0.1 M KHCO3 | N68: - flow - stirring | O68: (Liquid-phase reactant, supplied in front) | P68: Pt | Q68: 25 | R68: 1 | S68: CO2 | T68: -1.0 V vs. RHE | U68: -21 mA/cm2 | V68: 70 | X68: J. Wang et al., Cold plasma activated Cu–Co multi-active centers tandem catalysts for efficient electrocatalytic CO2 into C2H4. Vacuum 222, 113017 (2024). | Y68: 70 | AA68: 0 | AB68: 0 | AC68: 1
A69: 63 | B69: Hollow Cu/CeO2 nanotubes composed of aggregated nanoparticles, on carbon paper - prepared by decorating electrospun polyacrylonitrile (PAN) fibres with metal and burning away the PAN | C69: Mixed-phase/Janus | D69: Cu, Ce, O | E69: Nafion | F69: Catalyst on top of porous substrate (GDE) | G69: CeO2/CuO_hollow-NTs | H69: (Solution-phase reactant, supplied in front) | I69: 0.1 M K2SO4 | J69: - flow - stirring | K69: Nafion 117 | L69: (CEM) | M69: 0.1 M K2SO4 | N69: - flow - stirring | O69: (Liquid-phase reactant, supplied in front) | P69: Pt net | Q69: 25 | R69: 1 | S69: CO2 | T69: -1.1 V vs. RHE | U69: -25 mA/cm2 | V69: 70 | X69: D. Tan, B. Wulan, X. Cao, J. Zhang, Strong interactions of metal-support for efficient reduction of carbon dioxide into ethylene. Nano Energy 89, 106460 (2021). | Y69: 70 | AA69: 0 | AB69: 0 | AC69: 1
A70: 64 | B70: Cu3(2,3,6,7,10,11-hexaiminotriphenylene)2 MOF supported on Ketjen Black, on glassy carbon | C70: MOF, supported | D70: Cu, O, C | E70: Nafion | F70: Catalyst on top of solid substrate (NPS) | G70: Semi-conductive/Cu-MOF | H70: (Solution-phase reactant, supplied in front) | I70: 0.1 M KHCO3 (pH 6.8) | J70: - flow - stirring | K70: Nafion | L70: (CEM) | M70: 0.1 M KHCO3 (pH 6.8) | N70: - flow - stirring | O70: (Liquid-phase reactant, supplied in front) | P70: Carbon rod | Q70: ? | R70: ? | S70: CO2 | T70: -1.37 V - iR vs. RHE | U70: -38 mA/cm2 | V70: 70 | X70: H. Sun et al., Promoting ethylene production over a wide potential window on Cu crystallites induced and stabilized via current shock and charge delocalization. Nature Communications 12, 6823 (2021). | Y70: 70 | AA70: 0 | AB70: 0 | AC70: 1
A71: 65 | B71: In-situ formed Cu2O ultra-small NPs derived from CO2RR/KCl electro-activated Cu(Pyrazole)2 MOF, on carbon paper | C71: MOF, supported | D71: Cu, O, C, N | E71: Nafion | F71: Catalyst on top of porous substrate (GDE) | G71: Activated/Cu-MOF | H71: (Solution-phase reactant, supplied in front) | I71: 0.1 M KCl | J71: - flow - stirring | K71: Nafion | L71: (CEM) | M71: 0.1 M KCl | N71: - flow - stirring | O71: (Liquid-phase reactant, supplied in front) | P71: Pt foil | Q71: ? | R71: ? | S71: CO2 | T71: -1.03 V - iR vs. RHE | U71: -18 mA/cm2 | V71: 70 | X71: C. Liu et al., In Situ Reconstruction of Cu–N Coordinated MOFs to Generate Dispersive Cu/Cu2O Nanoclusters for Selective Electroreduction of CO2 to C2H4. ACS Catal 12, 15230-15240 (2022). | Y71: =_xlfn.NUMBERVALUE(LEFT(V71,2)) -> 70 | AA71: 0 | AB71: 0 | AC71: 1
A72: 66 | B72: Sputtered Cu with Carbon NP midlayer and graphite toplayer, on PTFE GDL | C72: Overlayer | D72: Cu, C | E72: CNPs, Graphite | F72: Catalyst on top of porous substrate (GDE) | G72: Cu-S/CNPs/Graph/PTFE | H72: (Gas-phase reactant, supplied from behind) | I72: 7.0 M KOH (pH 14.7) | J72: + flow - stirring | K72: Fumasep FAB-PK-130 | L72: (AEM) | M72: 7.0 M KOH (pH 14.7) | N72: + flow - stirring | O72: (Liquid-phase reactant, supplied in front) | P72: NiFeOx | Q72: ? | R72: ? | S72: CO2 | T72: -0.57 V - iR vs. RHE | U72: -100 mA/cm2 | V72: 70 | X72: C.-T. Dinh et al., CO2 electroreduction to ethylene via hydroxide-mediated copper catalysis at an abrupt interface. Science 360, 783-787 (2018). | Y72: 70 | AA72: =_xlfn.LET(_xlpm.CO_2,IF(S72="CO2",1,0),_xlpm.AEM_dry,INT(AND(IF(J72="(n/a)",1,0),IF(L72="(AEM)",1,0))), _xlpm.alk_electrolyte,IF(SUM(IFERROR(FIND("KOH",I72),0),IFERROR(FIND("NaOH",I72),0),IFERROR(FIND("CsOH",I72),0), IFERROR(FIND("LiOH",I72),0), IFERROR(FIND("RbOH",I72),0))>0,1,0),_xlpm.alkaline,OR(_xlpm.AEM_dry,_xlpm.alk_electrolyte),_xlpm.rslt,INT(AND(_xlpm.CO_2,_xlpm.alkaline)),_xlpm.rslt) -> 1 | AB72: =IF(S72="CO",1,0) -> 0 | AC72: =IF(_xlfn.NUMBERVALUE(LEFT(V72,2))>=55,1,0) -> 1
A73: =A72+1 -> 67 | B73: Electroplated Cu (60 s @ 400 mA/cm2) from CuBr2/tartrate/1 M KOH-containing bath with active CO2 flow (though CO also seems to work), with Carbon NP midlayer and graphite toplayer, on Cu-sputtered PTFE GDL (ambiguously reported) | C73: Overlayer | D73: Cu, C | E73: CNPs/Nafion, Graphite/Nafion | F73: Catalyst on top of porous substrate (GDE) | G73: CO2/plated_Cu | H73: (Gas-phase reactant, supplied from behind) | I73: 7.0 M KOH (pH 14.7) | J73: + flow - stirring | K73: Fumapem FAA-3-PK-130 | L73: (AEM) | M73: 7.0 M KOH (pH 14.7) | N73: + flow - stirring | O73: (Liquid-phase reactant, supplied in front) | P73: NiFe hydroxides/Ni mesh | Q73: ? | R73: ? | S73: CO2 | T73: -0.67 V - iR vs. RHE | U73: -280 mA/cm2 | V73: 70 | X73: Y. Wang et al., Catalyst synthesis under CO2 electroreduction favours faceting and promotes renewable fuels electrosynthesis. Nature Catalysis, (2019). | Y73: 70 | AA73: 1 | AB73: 0 | AC73: 1
A74: 68 | B74: Carbon black NP (XC72R) overlayer on top of Cu-sputtered PTFE GDL | C74: Overlayer | D74: Cu, C | E74: Nafion | F74: Catalyst on top of porous substrate (GDE) | G74: CNP_over/Cu-sputtered | H74: (Gas-phase reactant, supplied from behind) | I74: 0.5 M KHCO3 + 0.5 M KCl | J74: + flow - stirring | K74: Nafion 117 | L74: (CEM) | M74: 0.5 M KHCO3 + 0.5 M KCl | N74: + flow - stirring | O74: (Liquid-phase reactant, supplied in front) | P74: Pt foil | Q74: ? | R74: ? | S74: CO2 | T74: -0.89 V -iR vs. RHE | U74: -500 mA/cm2 | V74: 70 | X74: Z. Wang et al., Localized Alkaline Environment via In Situ Electrostatic Confinement for Enhanced CO2-to-Ethylene Conversion in Neutral Medium. Journal of the American Chemical Society 145, 6339-6348 (2023). | Y74: 70 | AA74: 0 | AB74: 0 | AC74: 1
A75: 69 | B75: 80-100 nm Cu2−xS NPs, on glassy carbon | C75: Oxide-derived | D75: Cu, S | E75: - | F75: Catalyst on top of solid substrate (NPS) | G75: 90nm-Cu2Sx_NPs | H75: (Solution-phase reactant, supplied in front) | I75: 0.1 M KHCO3 (pH 6.8) | J75: - flow + stirring | K75: Nafion 117 | L75: (CEM) | M75: 0.1 M KHCO3 (pH 6.8) | N75: - flow + stirring | O75: (Liquid-phase reactant, supplied in front) | P75: Pt plate (?) | Q75: ? | R75: ? | S75: CO2 | T75: -1.2 V vs. RHE | U75: -51 mA/cm2 | V75: 69 | X75: C. He et al., Cu2−xS derived copper nanoparticles: A platform for unraveling the role of surface reconstruction in efficient electrocatalytic CO2-to-C2H4 conversion. Nano Research 16, 4494-4498 (2021). | Y75: 69 | AA75: 0 | AB75: 0 | AC75: 1
A76: 70 | B76: Cu nanoneedles electrodeposited on Cu-sputtered PTFE GDL | C76: Oxide-derived | D76: Cu, O | E76: - | F76: Catalyst on top of porous substrate (GDE) | G76: Cu_NN | H76: (Gas-phase reactant, supplied from behind) | I76: 3.0 M KCl + x mM HCl (pH 1) | J76: + flow - stirring | K76: Nafion 117 | L76: (CEM) | M76: 0.5 M H2SO4 | N76: + flow - stirring | O76: (Liquid-phase reactant, supplied in front) | P76: IrO2/Ti | Q76: ? | R76: ? | S76: CO2 | T76: -2 V -iR vs. RHE | U76: -1200 mA/cm2 | V76: 69 | X76: X. Zi et al., Breaking K+ Concentration Limit on Cu Nanoneedles for Acidic Electrocatalytic CO2 Reduction to Multi-Carbon Products. Angewandte Chemie International Edition n/a, e202309351. | Y76: 69 | AA76: 0 | AB76: 0 | AC76: 1
A77: 71 | B77: Cu/Ag obtained using magnetron sputtering, on a GDL | C77: Mixed-phase/Janus | D77: Cu, Ag, Al | E77: Nafion | F77: Catalyst on top of porous substrate (GDE) | G77: Cu52Ag48 | H77: (Gas-phase reactant, supplied from behind) | I77: - | J77: (n/a) | K77: Sustainion X37-50 Grade 60 | L77: (AEM) | M77: 1.0 M KOH (pH 14) | N77: + flow - stirring | O77: (Liquid-phase reactant, forced through surface) | P77: Ni foam | Q77: ? | R77: ? | S77: CO2 | T77: - | U77: -451 mA/cm2 | V77: 69 | X77: Zhang, Y., et al. (2024). "Enhanced interfacial effect-induced asymmetric coupling boost electroreduction of CO2 to ethylene." Applied Catalysis B: Environment and Energy 344: 123666. | Y77: 69 | AA77: 1 | AB77: 0 | AC77: 1
A78: 72 | B78: Cu NPs supported on XC-72R, on home-made GDL | C78: Supported | D78: Cu, C | E78: - | F78: Catalyst on top of porous substrate (GDE) | G78: Cu_NPs/custom-GDL | H78: (Gas-phase reactant, supplied from behind) | I78: 1.0 M KOH (pH 14) | J78: - flow - stirring | K78: - | L78: (n/a) | M78: 1.0 M KOH (pH 14) | N78: - flow - stirring | O78: (Liquid-phase reactant, supplied in front) | P78: "Pt" | Q78: 2†_Cu-C-supported,3 | R78: ? | S78: CO2 | T78: -3 V vs. Ag/AgCl | U78: -400 mA/cm2 | V78: 69 | X78: R. L. Cook, R. C. MacDuff, A. F. Sammells, High rate gas phase CO2 reduction to ethylene and methane using gas diffusion electrodes. Journal of The Electrochemical Society 137, 607-608 (1990). | Y78: 69 | AA78: 1 | AB78: 0 | AC78: 1
A79: 73 | B79: Solution-phase Cu phenanthroline complex with carbon paper cathode | C79: TMC, supported | D79: Cu | E79: - | F79: Catalyst on top of porous substrate (GDE) | G79: Phenanthroline/Cu_TMC | H79: (Solution-phase reactant, supplied in front) | I79: 0.1 M KHCO3 (pH 6.8) | J79: - flow - stirring | K79: "Hangzhou Huamo Technology Co., Ltd" | L79: (AEM) | M79: 0.1 M KHCO3 (pH 6.8) | N79: - flow - stirring | O79: (Liquid-phase reactant, supplied in front) | P79: Pt plate | Q79: ? | R79: ? | S79: CO2 | T79: -1.3 V vs. RHE | U79: -7 mA/cm2 | V79: 69 | X79: J. Du, B. Cheng, L. Jiang, Z. Han, Copper phenanthroline for selective electrochemical CO2 reduction on carbon paper. Chemical Communications 59, 4778-4781 (2023). | Y79: 69 | AA79: 0 | AB79: 0 | AC79: 1
A80: 74 | B80: Ag/Au (3:1 ratio) alloy, highly defective, cubic wireframe NPs (59 nm) post-modified with epitaxially deposited Cu ‘overlayer’, on glassy carbon | C80: A-supports-B, alloyed/doped | D80: Ag, Au, Cu | E80: Nafion | F80: Catalyst on top of solid substrate (NPS) | G80: Ag3Au-NF/Cu | H80: (Solution-phase reactant, supplied in front) | I80: 0.1 M KHCO3 | J80: - flow - stirring | K80: "Nafion" | L80: (CEM) | M80: 0.1 M KHCO3 | N80: - flow - stirring | O80: (Liquid-phase reactant, supplied in front) | P80: Pt net | Q80: ? | R80: ? | S80: CO2 | T80: -1.2 V vs. RHE | U80: -13 mA/cm2 | V80: 69 | X80: L. Xiong et al., Breaking the Linear Scaling Relationship by Compositional and Structural Crafting of Ternary Cu–Au/Ag Nanoframes for Electrocatalytic Ethylene Production. Angewandte Chemie International Edition 60, 2508-2518 (2021). | Y80: 69 | AA80: 0 | AB80: 0 | AC80: 1
A81: 75 | B81: Aquivion toplayer on N,N’-ethylene-phenanthrolinium electrodeposition-modified Cu-sputtered PTFE GDL | C81: Overlayer | D81: Cu | E81: Aquivion D79-25BS, N,N’-ethylene-phenanthrolinium dibromide | F81: Catalyst on top of porous substrate (GDE) | G81: Multi-functionalized/Cu_PTFE | H81: (Gas-phase reactant, supplied from behind) | I81: 0.1 M KHCO3 (pH 6.8) | J81: + flow - stirring | K81: Sustainion X37-50 | L81: (AEM) | M81: 0.1 M KHCO3 (pH 6.8) | N81: + flow - stirring | O81: (Liquid-phase reactant, supplied in front) | P81: IrO2/Ti mesh | Q81: ? | R81: ? | S81: CO2 | T81: -4.4 V vs. ANODE | U81: -330 mA/cm2 | V81: 69 | X81: A. Ozden et al., High-Rate and Efficient Ethylene Electrosynthesis Using a Catalyst/Promoter/Transport Layer. ACS Energy Letters 5, 2811-2818 (2020). | Y81: 69 | AA81: 0 | AB81: 0 | AC81: 1
A82: 76 | B82: Branched/'spikey' CuO NPs derived from NH3-treated Cu2O NCs supported on Ketjen black, on on glassy carbon | C82: Oxide-derived | D82: Cu, O, C | E82: Nafion (top-coat) | F82: Catalyst on top of solid substrate (NPS) | G82: Branched_CuO_NPs-NH3 | H82: (Solution-phase reactant, supplied in front) | I82: 0.1 M KHCO3 (pH 6.8) | J82: - flow - stirring | K82: Nafion 117 | L82: (CEM) | M82: 0.1 M KHCO3 (pH 6.8) | N82: - flow - stirring | O82: (Liquid-phase reactant, supplied in front) | P82: Pt | Q82: ? | R82: ? | S82: CO2 | T82: -1.05 V -iR vs. RHE | U82: -26 mA/cm2 | V82: 68 | X82: J. Kim et al., Branched Copper Oxide Nanoparticles Induce Highly Selective Ethylene Production by Electrochemical Carbon Dioxide Reduction. Journal of the American Chemical Society 141, 6986-6994 (2019). | Y82: 68 | AA82: 0 | AB82: 0 | AC82: 1
A83: 77 | B83: Calcined (in Al foil!) electroplated Cu dendrites, on GDL | C83: Oxide-derived | D83: Cu, O, Al (?) | E83: Nafion | F83: Catalyst on top of porous substrate (GDE) | G83: CuOx dendrites | H83: (Gas-phase reactant, supplied from behind) | I83: - | J83: (n/a) | K83: Sustainion X37-59 Grade 60 | L83: (AEM) | M83: 0.1 M KOH (pH 13) | N83: + flow - stirring | O83: (Liquid-phase reactant, supplied in front) | P83: NiFe/SS | Q83: ? | R83: ? | S83: CO | T83: -3.1 V vs. ANODE | U83: -100 mA/cm2 | V83: 68 | X83: N.-H. Tran et al., Selective Ethylene Production from CO2 and CO Reduction via Engineering Membrane Electrode Assembly with Porous Dendritic Copper Oxide. ACS Applied Materials & Interfaces 14, 31933-31941 (2022). | Y83: 68 | AA83: 0 | AB83: 1 | AC83: 1
A84: 78 | B84: Electrochemical-assisted iodine-reconstructed Cu foil | C84: Oxide-derived | D84: Cu, O, I | E84: - | F84: Catalyst on top of solid substrate (NPS) | G84: I/CuOx | H84: (Solution-phase reactant, supplied in front) | I84: 1.0 M KOH (pH 14) | J84: - flow - stirring | K84: Nafion 117 | L84: (CEM) | M84: 1.0 M KOH (pH 14) | N84: - flow - stirring | O84: (Liquid-phase reactant, supplied in front) | P84: Pt gauze | Q84: ? | R84: ? | S84: CO | T84: -0.56 V vs. RHE | U84: -8 mA/cm2 | V84: 68 | X84: J. Han et al., A reconstructed porous copper surface promotes selectivity and efficiency toward C2 products by electrocatalytic CO2 reduction. Chemical Science 11, 10698-10704 (2020). | Y84: 68 | AA84: 0 | AB84: 1 | AC84: 1
A85: 79 | B85: Thin quasi-graphitic carbon-shell functionalized, B-doped Cu NPs supported on carbon fibers, on GDL | C85: Alloyed/Doped, Core/Shell | D85: Cu, C, B | E85: Nafion | F85: Catalyst on top of porous substrate (GDE) | G85: C-shell_B/Cu-NPs_CNT | H85: (Gas-phase reactant, supplied from behind) | I85: 1.0 M KOH (pH 14) | J85: + flow - stirring | K85: Sustanion X37-50 | L85: (AEM) | M85: 1.0 M KOH (pH 14) | N85: + flow - stirring | O85: (Liquid-phase reactant, supplied in front) | P85: IrO2/Ti frit | Q85: ? | R85: ? | S85: CO2 | T85: -0.55 V -iR vs. RHE | U85: -300 mA/cm2 | V85: 68 | X85: J.-Y. Kim et al., Quasi-graphitic carbon shell-induced Cu confinement promotes electrocatalytic CO2 reduction toward C2+ products. Nature Communications 12, 3765 (2021). | Y85: 68 | AA85: 1 | AB85: 0 | AC85: 1
A86: 80 | B86: Ag flakes (10 mass% vs. Cu) supported on Cu2O NPs (12 nm), on a GDL (YLS-30 T) | C86: Mixed-phase/Janus, A-supports-B | D86: Cu, Ag, O | E86: Nafion | F86: Catalyst on top of porous substrate (GDE) | G86: Ag/CuO_NPs | H86: (Gas-phase reactant, supplied from behind) | I86: 3.0 M KOH | J86: + flow - stirring | K86: Nafion 117 | L86: (CEM) | M86: 3.0 M KOH | N86: + flow - stirring | O86: (Liquid-phase reactant, supplied in front) | P86: Pt sheet | Q86: ? | R86: ? | S86: CO2 | T86: ? | U86: -650 mA/cm2 | V86: 68 | X86: Wei, Z. et al. Constructing Ag/Cu2O Interface for Efficient Neutral CO2 Electroreduction to C2H4. Angewandte Chemie International Edition n/a, e202417066, doi:https://doi.org/10.1002/anie.202417066. | Y86: 68 | AA86: 1 | AB86: 0 | AC86: 1
A87: 81 | B87: Right bipyramidal {100}-rich Cu NPs with stacking faults, on GDL | C87: Metallic Cu | D87: Cu | E87: Nafion | F87: Catalyst on top of porous substrate (GDE) | G87: Bipyramidal/Cu-NPs | H87: (Gas-phase reactant, supplied from behind) | I87: 1.0 M KOH (pH 14) | J87: + flow - stirring | K87: FAA-3-PK-75 | L87: (AEM) | M87: 1.0 M KOH (pH 14) | N87: + flow - stirring | O87: (Liquid-phase reactant, supplied in front) | P87: Ni foam | Q87: 25 | R87: 1 | S87: CO2 | T87: -0.63 V - iR vs. RHE | U87: -325 mA/cm2 | V87: 67 | X87: Z. Li et al., Planar defect-driven electrocatalysis of CO2-to-C2H4 conversion. Journal of Materials Chemistry A 9, 19932-19939 (2021). | Y87: 67 | AA87: 1 | AB87: 0 | AC87: 1
A88: 82 | B88: Metallic Cu NPs mixed with PTFE, dropcast on GDL | C88: Metallic Cu | D88: Cu | E88: Nafion, PTFE | F88: Catalyst on top of porous substrate (GDE) | G88: PTFE/Cu_NPs | H88: (Gas-phase reactant, supplied from behind) | I88: 1.0 M KHCO3 | J88: + flow - stirring | K88: Selemion DSVN | L88: (AEM) | M88: 1.0 M KHCO3 | N88: + flow - stirring | O88: (Liquid-phase reactant, supplied in front) | P88: IrO2/Ti sheet | Q88: ? | R88: ? | S88: CO | T88: -1.38 V - iR vs. RHE | U88: -600 mA/cm2 | V88: 67 | X88: M. Liu et al., Potential Alignment in Tandem Catalysts Enhances CO2-to-C2H4 Conversion Efficiencies. Journal of the American Chemical Society 146, 468-475 (2024). | Y88: 67 | AA88: 0 | AB88: 1 | AC88: 1
A89: 83 | B89: Cu3(PO4)2-derived Cu NPs on glassy carbon | C89: Oxide-derived | D89: Cu | E89: Nafion | F89: Catalyst on top of solid substrate (NPS) | G89: Cu3(PO4)2 NS-derived Cu | H89: (Solution-phase reactant, supplied in front) | I89: 0.1 M KHCO3 (pH 6.8) | J89: - flow - stirring | K89: Nafion 117 | L89: (CEM) | M89: 0.1 M KHCO3 (pH 6.8) | N89: - flow - stirring | O89: (Liquid-phase reactant, supplied in front) | P89: Pt gauze | Q89: ? | R89: ? | S89: CO2 | T89: -1.48 V vs. RHE | U89: -33 mA/cm2 | V89: 67 | X89: B. Zhang et al., Steering CO2 electroreduction toward methane or ethylene production. Nano Energy 88, 106239 (2021). | Y89: 67 | AA89: 0 | AB89: 0 | AC89: 1
A90: 84 | B90: Grainboundary-rich Cu2CO3(OH)2-derived Cu nanoribbons, on carbon paper | C90: Oxide-derived | D90: Cu, O, C | E90: - | F90: Catalyst on top of porous substrate (GDE) | G90: Cu2CO3(OH)2-derived Cu/C | H90: (Gas-phase reactant, supplied from behind) | I90: 1.0 M KOH (pH 14) | J90: + flow - stirring | K90: Fumapem FAA-3-PK-130 | L90: (AEM) | M90: 1.0 M KOH (pH 14) | N90: + flow - stirring | O90: (Liquid-phase reactant, supplied in front) | P90: SS mesh | Q90: ? | R90: ? | S90: CO2 | T90: -1.27 V vs. RHE | U90: -700 mA/cm2 | V90: 67 | X90: L. Bian et al., Grain boundary-abundant copper nanoribbons on balanced gas-liquid diffusion electrodes for efficient CO2 electroreduction to C2H4. Chinese Journal of Catalysis 54, 199-211 (2023). | Y90: 67 | AA90: 1 | AB90: 0 | AC90: 1
A91: 85 | B91: {111}-facet rich octahedral Cu2O NPs supported on hydroxl-rich acetylene black carbon, on glassy carbon | C91: Oxide-derived | D91: Cu, O, C | E91: Nafion | F91: Catalyst on top of solid substrate (NPS) | G91: OH-C/Cu2O | H91: (Solution-phase reactant, supplied in front) | I91: 0.5 M KHCO3 | J91: - flow - stirring | K91: ? | L91: (AEM) | M91: 0.5 M KHCO3 | N91: - flow - stirring | O91: (Liquid-phase reactant, supplied in front) | P91: Carbon rod | Q91: ? | R91: ? | S91: CO2 | T91: -1.1 V vs. RHE | U91: -67 mA/cm2 | V91: 67 | X91: Y. Gao et al., Promoting Electrocatalytic Reduction of CO2 to C2H4 Production by Inhibiting C2H5OH Desorption from Cu2O/C Composite. Small 18, 2105212 (2022). | Y91: 67 | AA91: 0 | AB91: 0 | AC91: 1
A92: 86 | B92: Electroplated (1 C/cm2) Cu2O from lactic-acid containing bath, on GDL | C92: Oxide-derived | D92: Cu, O | E92: - | F92: Catalyst on top of porous substrate (GDE) | G92: Lactate/Cu2O | H92: (Gas-phase reactant, supplied from behind) | I92: 1 M KOH (pH 14) | J92: + flow - stirring | K92: - | L92: (n/a) | M92: 1 M KOH (pH 14) | N92: + flow - stirring | O92: (Liquid-phase reactant, supplied in front) | P92: IrO2/C | Q92: 25 | R92: 1 | S92: CO2 | T92: -0.8 V vs. RHE | U92: -183 mA/cm2 | V92: 67 | X92: D. Anastasiadou, M. Schellekens, M. de Heer, S. Verma, E. Negro, Electrodeposited Cu2O Films on Gas Diffusion Layers for Selective CO2 Electroreduction to Ethylene in an Alkaline Flow Electrolyzer. ChemElectroChem 6, 3928-3932 (2019). | Y92: 67 | AA92: 1 | AB92: 0 | AC92: 1
A93: 87 | B93: Vulcan XC-72 toplayer on Co-TMC midlayer, on Cu-sputtered PTFE GDL | C93: Overlayer | D93: Cu, Co, C | E93: Nafion | F93: Catalyst on top of porous substrate (GDE) | G93: Co-TMC/Cu_sputtered | H93: (Gas-phase reactant, supplied from behind) | I93: 1.0 M KOH | J93: + flow - stirring | K93: Nafion 115 | L93: (CEM) | M93: 1.0 M KOH | N93: + flow - stirring | O93: (Liquid-phase reactant, forced through surface) | P93: Ni foam | Q93: ? | R93: ? | S93: CO2 | T93: -0.79 V - iR vs. RHE | U93: -420 mA/cm2 | V93: 67 | X93: X. Kong et al., Understanding the Effect of *CO Coverage on C–C Coupling toward CO2 Electroreduction. Nano Letters 22, 3801-3808 (2022). | Y93: 67 | AA93: 1 | AB93: 0 | AC93: 1
A94: 88 | B94: Cu NCs doped with AgNO3, on solid substrate | C94: Cubes, Mixed-phase/Janus | D94: Cu, Ag | E94: Nafion | F94: Catalyst on top of solid substrate (NPS) | G94: 0-Cu2O/Ag | H94: (Solution-phase reactant, supplied in front) | I94: 0.5 M KHCO3 (pH 6.8) | J94: - flow - stirring | K94: Nafion 115 | L94: (CEM) | M94: ? | O94: (Liquid-phase reactant, forced through surface) | P94: Pt mesh | Q94: ? | R94: ? | S94: CO2 | T94: -1.2 V vs. RHE | U94: -27 mA/cm2 | V94: 67 | X94: Dong, G., et al. (2023). "Synergetic enhancement of selectivity for electroreduction of CO2 to C2H4 by crystal facet engineering and tandem catalysis over silver-incorporated-cuprous oxides." Materials Reports: Energy 3(2): 100195. | Y94: 67 | AA94: 0 | AB94: 0 | AC94: 1
A95: 89 | B95: Water-etched Cu MOF ([Cu2(benzene-1,3,5-tricarboxylic acid,)(OH)(H2O)]n·2nH2O), on glassy carbon | C95: MOF, supported | D95: Cu | E95: - | F95: Catalyst on top of solid substrate (NPS) | G95: H2O-etch/Cu_MOF | H95: (Solution-phase reactant, supplied in front) | I95: 0.1 M KHCO3 + 0.1 M KCl (pH 6.8) | J95: - flow - stirring | K95: Nafion 117 | L95: (CEM) | M95: 0.1 M KHCO3 + 0.1 M KCl (pH 6.8) | N95: - flow - stirring | O95: (Liquid-phase reactant, supplied in front) | P95: Pt mesh | Q95: ? | R95: ? | S95: CO2 | T95: -1.40 V vs. RHE | U95: -23 mA/cm2 | V95: 67 | X95: C. F. Wen et al., A copper coordination polymer precatalyst with asymmetric building units for selective CO2-to-C2H4 electrolysis. Journal of Materials Chemistry A 11, 12121-12129 (2023). | Y95: 67 | AA95: 0 | AB95: 0 | AC95: 1
A96: 90 | B96: Single atom Cu sites enclosed in an Ir-containing Zr-based MOF framework with rod-like morphology, on GDL | C96: Single atom, Atomically mixed/Crystalline | D96: Cu, Ir, Zr | E96: Nafion | F96: Catalyst on top of porous substrate (GDE) | G96: Ir/Zr/Cu_MOF/NRs | H96: (Gas-phase reactant, supplied from behind) | I96: 1.0 M phosphate buffer saline | J96: + flow - stirring | K96: Nafion 212 | L96: (CEM) | M96: 1.0 M phosphate buffer saline | N96: + flow - stirring | O96: (Liquid-phase reactant, supplied in front) | P96: Pt wire | Q96: 25 | R96: 1 | S96: CO2 | T96: -1.0 V vs. RHE | U96: -80†_Cu-multi_element,1 mA/cm2 | V96: 67 | X96: Q. Mo et al., Engineering Dual Sites into the Confined Nanospace of the Porphyrinic Metal–Organic Framework for Tandem Transformation of CO2 to Ethylene. ACS Sustainable Chemistry & Engineering, (2024). | Y96: 67 | AA96: 0 | AB96: 0 | AC96: 1
A97: 91 | B97: Hydrophobic Cu NPs electroplated from a PTFE-containing solution, on carbon paper | C97: Core/shell (in-)organic | D97: Cu | E97: PTFE | F97: Catalyst on top of porous substrate (GDE) | G97: PTFE/CuOx | H97: (Solution-phase reactant, supplied in front) | I97: 0.1 M CsI | J97: - flow - stirring | K97: Nafion 117 | L97: (CEM) | M97: 0.1 M CsI | N97: - flow - stirring | O97: (Liquid-phase reactant, supplied in front) | P97: Pt gauze | Q97: 25 | R97: ? | S97: CO2 | T97: -1.25 V vs. RHE | U97: -35 mA/cm2 | V97: 67 | X97: T. Deng et al., Polymer Modification Strategy to Modulate Reaction Microenvironment for Enhanced CO2 Electroreduction to Ethylene. Angewandte Chemie International Edition 63, e202313796 (2024). | Y97: 67 | AA97: 0 | AB97: 0 | AC97: 1
A98: 92 | B98: 25 nm-thick Cu layer, evaporated on GDL | C98: Metallic Cu | D98: Cu | E98: - | F98: Catalyst on top of porous substrate (GDE) | G98: 25 nm Cu layer | H98: (Gas-phase reactant, supplied from behind) | I98: 10 M KOH | J98: + flow - stirring | K98: Fumasep FAB-PK-130 | L98: (AEM) | M98: 10 M KOH | N98: + flow - stirring | O98: (Liquid-phase reactant, supplied in front) | P98: Ni foam | Q98: ? | R98: ? | S98: CO2 | T98: -0.54 V - iR vs. RHE | U98: -275 mA/cm2 | V98: 66 | X98: C.-T. Dinh et al., CO2 electroreduction to ethylene via hydroxide-mediated copper catalysis at an abrupt interface. Science 360, 783-787 (2018). | Y98: 66 | AA98: 1 | AB98: 0 | AC98: 1
A99: 93 | B99: 25 nm-thick Cu layer, evaporated on GDL | C99: Oxide-derived | D99: Cu | E99: - | F99: Catalyst on top of porous substrate (GDE) | G99: 25 nm Cu layer | H99: (Gas-phase reactant, supplied from behind) | I99: 10.0 M KOH | J99: + flow - stirring | K99: Fumasep FAB-PK-130 | L99: (AEM) | M99: 10.0 M KOH | N99: + flow - stirring | O99: (Liquid-phase reactant, supplied in front) | P99: Ni foam | Q99: ? | R99: ? | S99: CO2 | T99: -0.54 V - iR vs. RHE | U99: -275 mA/cm2 | V99: 66 | X99: A. Thevenon, A. Rosas-Hernández, J. C. Peters, T. Agapie, In-Situ Nanostructuring and Stabilization of Polycrystalline Copper by an Organic Salt Additive Promotes Electrocatalytic CO2 Reduction to Ethylene. Angewandte Chemie 131, 17108-17114 (2019). | Y99: 66 | AA99: 1 | AB99: 0 | AC99: 1
A100: 94 | B100: Cu3N-derived Cu NWs, on copper foam | C100: Oxide-derived | D100: Cu, N | E100: - | F100: Catalyst on top of porous substrate (GDE) | G100: N-doped/Cu NWs | H100: (Solution-phase reactant, supplied in front) | I100: 0.1 M KHCO3 (pH 6.8) | J100: - flow - stirring | K100: Nafion 115 | L100: (CEM) | M100: 0.1 M KHCO3 (pH 6.8) | N100: - flow - stirring | O100: (Liquid-phase reactant, supplied in front) | P100: Pt foil | Q100: 25 | R100: ? | S100: CO2 | T100: -1.0 V vs. RHE | U100: -51 mA/cm2 | V100: 66 | X100: Y. Mi et al., Selective Electroreduction of CO2 to C2 Products over Cu3N-Derived Cu Nanowires. ChemElectroChem 6, 2393-2397 (2019). | Y100: 66 | AA100: 0 | AB100: 0 | AC100: 1
A101: 95 | B101: CuOx NPs electrodeposited in the presence of CTAB, on Cu plate | C101: Oxide-derived | D101: Cu, O | E101: - | F101: Catalyst on top of solid substrate (NPS) | G101: CTAB/plate/CuOx_NPs | H101: (Solution-phase reactant, supplied in front) | I101: 0.5 M KCl | J101: - flow - stirring | K101: Nafion 115 | L101: (CEM) | M101: 0.5 M KCl | N101: - flow - stirring | O101: (Liquid-phase reactant, supplied in front) | P101: Platinized Ti | Q101: ? | R101: ? | S101: CO2 | T101: -1.0 V vs. RHE | U101: -18 mA/cm2 | V101: 66 | X101: A. Stalinraja, K. Gopalram, Electrochemical reduction of CO2 to C2 products—effect of surfactant on copper electrodeposition. Journal of Solid State Electrochemistry, (2023). | Y101: 66 | AA101: 0 | AB101: 0 | AC101: 1
A102: 96 | B102: In-situ reduced porous CuOx NPs derived from hydrothermal synthesis with tetrapropylammonium, on a GDL | C102: Oxide-derived | D102: Cu, O | E102: Nafion | F102: Catalyst on top of porous substrate (GDE) | G102: CuOx_NPs | H102: (Gas-phase reactant, supplied from behind) | I102: 3.0 M KOH | J102: + flow - stirring | K102: FUMA-FAA-3-PK-130 | L102: (AEM) | M102: 3.0 M KOH | N102: + flow - stirring | O102: (Liquid-phase reactant, forced through surface) | P102: Ni foam | Q102: 25 | R102: ? | S102: CO2 | T102: -1.25 V -iR vs. RHE | U102: -536 mA/cm2 | V102: 66 | X102: Jiao, J. et al. Lattice Strain Engineering Boosts CO2 Electroreduction to C2+ Products. Angewandte Chemie International Edition 63, e202409563, doi:https://doi.org/10.1002/anie.202409563 (2024). | Y102: 66 | AA102: 1 | AB102: 0 | AC102: 1
A103: 97 | B103: {100}-facet rich Cu NWs mixed with Ni-SAC and CNPs, on carbon paper | C103: Mixed-phase/Janus, A-supports-B | D103: Cu, Ni, C, N | E103: PVDF, NMP | F103: Catalyst on top of porous substrate (GDE) | G103: Ni-SAC/Cu_NWs | H103: (Gas-phase reactant, supplied from behind) | I103: 10 M KOH | J103: + flow - stirring | K103: - | L103: (n/a) | M103: 10 M KOH | N103: + flow - stirring | O103: (Liquid-phase reactant, forced through surface) | P103: Ni foam | Q103: ? | R103: ? | S103: CO2 | T103: -0.5 V vs. RHE | U103: -101 mA/cm2 | V103: 66 | X103: Z. Yin et al., Hybrid Catalyst Coupling Single-Atom Ni and Nanoscale Cu for Efficient CO2 Electroreduction to Ethylene. Journal of the American Chemical Society 144, 20931-20938 (2022). | Y103: 66 | AA103: 1 | AB103: 0 | AC103: 1
A104: 98 | B104: Ag flakes (10 mass% vs. Cu) supported on Cu2O NPs (12 nm), on a GDL (YLS-30 T) | C104: Mixed-phase/Janus, A-supports-B | D104: Cu, Ag, O | E104: Nafion | F104: Catalyst on top of porous substrate (GDE) | G104: Ag/CuO_NPs | H104: (Gas-phase reactant, supplied from behind) | I104: 3.0 M KCl | J104: + flow - stirring | K104: Nafion 117 | L104: (CEM) | M104: 3.0 M KOH | N104: + flow - stirring | O104: (Liquid-phase reactant, supplied in front) | P104: Pt sheet | Q104: ? | R104: ? | S104: CO2 | T104: ? | U104: -650 mA/cm2 | V104: 66 | X104: Wei, Z. et al. Constructing Ag/Cu2O Interface for Efficient Neutral CO2 Electroreduction to C2H4. Angewandte Chemie International Edition n/a, e202417066, doi:https://doi.org/10.1002/anie.202417066. | Y104: 66 | AA104: 0 | AB104: 0 | AC104: 1
A105: 99 | B105: 25 nm-thick Cu layer, evaporated on GDL | C105: Metallic Cu | D105: Cu | E105: - | F105: Catalyst on top of porous substrate (GDE) | G105: 25 nm Cu layer | H105: (Gas-phase reactant, supplied from behind) | I105: 5.5 M KOH + 4 M KI | J105: + flow - stirring | K105: Fumasep FAB-PK-130 | L105: (AEM) | M105: 5.5 M KOH + 4 M KI | N105: + flow - stirring | O105: (Liquid-phase reactant, supplied in front) | P105: Ni foam | Q105: ? | R105: ? | S105: CO2 | T105: -0.62 V - iR vs. RHE | U105: -500 mA/cm2 | V105: 65 | X105: C.-T. Dinh et al., CO2 electroreduction to ethylene via hydroxide-mediated copper catalysis at an abrupt interface. Science 360, 783-787 (2018). | Y105: 65 | AA105: 1 | AB105: 0 | AC105: 1
A106: 100 | B106: Cu(OH)F-derived Cu/F, on GDL | C106: Oxide-derived | D106: Cu, O, F | E106: - | F106: Catalyst on top of porous substrate (GDE) | G106: Cu/F | H106: (Gas-phase reactant, supplied from behind) | I106: 2.5 M KOH | J106: - flow - stirring | K106: NEOSEPTA | L106: (AEM) | M106: 2.5 M KOH | N106: (+ flow, - stirring) | O106: (Liquid-phase reactant, forced through surface) | P106: NiFeOx on Nickel foam | Q106: 25 | R106: 1 | S106: CO2 | T106: -0.89 V - iR vs. RHE | U106: -1600 mA/cm2 | V106: 65 | X106: W. Ma et al., Electrocatalytic reduction of CO2 to ethylene and ethanol through hydrogen-assisted C–C coupling over fluorine-modified copper. Nature Catalysis 3, 478-487 (2020). | Y106: 65 | AA106: 1 | AB106: 0 | AC106: 1
A107: 101 | B107: Non-swelling anion exchange ionomer (AEI)-modified electroreduced CuO nanosheets, on GDL | C107: Oxide-derived | D107: Cu, O | E107: AEI: Xenergy Pention D 18, PTFE | F107: Catalyst on top of porous substrate (GDE) | G107: CuO nanosheets with AEI binder | H107: (Gas-phase reactant, supplied from behind) | I107: 1.0 M KOH (pH 14) | J107: + flow - stirring | K107: Fumasep FAA PK 130 | L107: (AEM) | M107: 1.0 M KOH (pH 14) | N107: + flow - stirring | O107: (Liquid-phase reactant, forced through surface) | P107: Ni foam | Q107: ? | R107: ? | S107: CO2 | T107: -0.78 V - iR vs. RHE | U107: -800 mA/cm2 | V107: 65 | X107: Y. Zhao et al., Industrial-Current-Density CO2-to-C2+ Electroreduction by Anti-swelling Anion-Exchange Ionomer-Modified Oxide-Derived Cu Nanosheets. Journal of the American Chemical Society 144, 10446-10454 (2022). | Y107: 65 | AA107: 1 | AB107: 0 | AC107: 1
A108: 102 | B108: 25 nm-thick Cu layer, evaporated on GDL | C108: Oxide-derived | D108: Cu | E108: - | F108: Catalyst on top of porous substrate (GDE) | G108: 25 nm Cu layer | H108: (Gas-phase reactant, supplied from behind) | I108: 5.5 M KOH + 4 M KI | J108: + flow - stirring | K108: Fumasep FAB-PK-130 | L108: (AEM) | M108: 5.5 M KOH + 4 M KI | N108: + flow - stirring | O108: (Liquid-phase reactant, supplied in front) | P108: Ni foam | Q108: ? | R108: ? | S108: CO2 | T108: -0.62 V - iR vs. RHE | U108: -500 mA/cm2 | V108: 65 | X108: A. Thevenon, A. Rosas-Hernández, J. C. Peters, T. Agapie, In-Situ Nanostructuring and Stabilization of Polycrystalline Copper by an Organic Salt Additive Promotes Electrocatalytic CO2 Reduction to Ethylene. Angewandte Chemie 131, 17108-17114 (2019). | Y108: 65 | AA108: 1 | AB108: 0 | AC108: 1
A109: 103 | B109: CuOx NP nanospheres, on GDL | C109: Oxide-derived | D109: Cu, O | E109: Nafion | F109: Catalyst on top of porous substrate (GDE) | G109: CuOx nanospheres | H109: (Gas-phase reactant, supplied from behind) | I109: 1.0 M KOH (pH 14) | J109: + flow - stirring | K109: Fumasep FAA-PK-130 | L109: (AEM) | M109: 1.0 M KOH (pH 14) | N109: + flow - stirring | O109: (Liquid-phase reactant, supplied in front) | P109: Ni foam | Q109: ? | R109: 1 | S109: CO | T109: -0.72 V - iR vs. RHE | U109: -1250 mA/cm2 | V109: 65 | X109: J. Li et al., Constraining CO coverage on copper promotes high-efficiency ethylene electroproduction. Nature Catalysis 2, 1124-1131 (2019). | Y109: 65 | AA109: 0 | AB109: 1 | AC109: 1
A110: 104 | B110: Anodization-dirived Cu2O NWs on Cu-sputtered FTO glass | C110: Oxide-derived | D110: Cu, O | E110: - | F110: Catalyst on top of solid substrate (NPS) | G110: CuOx_NWs | H110: (Solution-phase reactant, supplied in front) | I110: 0.1 M KHCO3 (pH 6.8) | J110: - flow - stirring | K110: - | L110: (n/a) | M110: 0.1 M KHCO3 (pH 6.8) | N110: - flow - stirring | O110: (Liquid-phase reactant, supplied in front) | P110: Pt foil | Q110: ? | R110: ? | S110: CO2 | T110: -0.8 V vs. RHE | U110: -2 mA/cm2 | V110: 65 | X110: A. H. Shah et al., New aspects of C2 selectivity in electrochemical CO2 reduction over oxide-derived copper. Physical Chemistry Chemical Physics 22, 2046-2053 (2020). | Y110: 65 | AA110: 0 | AB110: 0 | AC110: 1
A111: 105 | B111: Electrochemical-assisted chlorine-reconstructed Cu NCs on hollow tubular novelty GDE | C111: Oxide-derived | D111: Cu, O, Cl | E111: - | F111: Catalyst on top of porous substrate (GDE) | G111: Tubular/Cu_NCs | H111: (Gas-phase reactant, forced through surface) | I111: 5.0 M KOH | J111: + flow - stirring | K111: Fumasep FAB-PK-130 | L111: (AEM) | M111: 5.0 M KOH | N111: + flow - stirring | O111: (Liquid-phase reactant, supplied in front) | P111: Pt wire | Q111: ? | R111: 1.7 | S111: CO | T111: -0.8 V vs. RHE | U111: -740 mA/cm2 | V111: 65 | X111: H. Rabiee et al., Tuning flow-through cu-based hollow fiber gas-diffusion electrode for high-efficiency carbon monoxide (CO) electroreduction to C2+products. Applied Catalysis B: Environmental 330, 122589 (2023). | Y111: 65 | AA111: 0 | AB111: 1 | AC111: 1
A112: 106 | B112: Homogeneously dispersed Si(II)Ox clusters with Cu NPs, on Cu-sputtered PTFE GDL | C112: Mixed-phase/Janus | D112: Cu, Si, O | E112: Aquivion | F112: Catalyst on top of porous substrate (GDE) | G112: SiOx/Cu_NPs | H112: (Gas-phase reactant, supplied from behind) | I112: - | J112: (n/a) | K112: Sustainion X37-50 Grade RT | L112: (AEM) | M112: 0.1 M KHCO3 | N112: + flow - stirring | O112: (Liquid-phase reactant, supplied in front) | P112: IrOx/Ti | Q112: ? | R112: ? | S112: CO2 | T112: -4.1 V vs. ANODE | U112: -331 mA/cm2 | V112: 65 | X112: J. Li et al., Silica-copper catalyst interfaces enable carbon-carbon coupling towards ethylene electrosynthesis. Nature Communications 12, 2808 (2021). | Y112: 65 | AA112: 1 | AB112: 0 | AC112: 1
A113: 107 | B113: Water-etched Cu MOF ([Cu2(benzene-1,3,5-tricarboxylic acid,)(OH)(H2O)]n·2nH2O), on a GDL | C113: MOF, supported | D113: Cu | E113: - | F113: Catalyst on top of porous substrate (GDE) | G113: H2O-etch/Cu_MOF#2 | H113: (Gas-phase reactant, supplied from behind) | I113: 1.0 M KOH (pH 14) | J113: + flow - stirring | K113: FAB-PK-130 | L113: (AEM) | M113: 1.0 M KOH (pH 14) | N113: + flow - stirring | O113: (Liquid-phase reactant, supplied in front) | P113: Ni foam | Q113: ? | R113: ? | S113: CO2 | T113: -0.73 V - iR vs. RHE | U113: -350 mA/cm2 | V113: 65 | X113: C. F. Wen et al., A copper coordination polymer precatalyst with asymmetric building units for selective CO2-to-C2H4 electrolysis. Journal of Materials Chemistry A 11, 12121-12129 (2023). | Y113: 65 | AA113: 1 | AB113: 0 | AC113: 1
A114: 108 | B114: Electroplated Cu (90 s @ 400 mA/cm2) from CuBr2/tartrate/1 M KOH-containing bath with active CO2 flow (though CO also seems to work[insert ref]), with N-tolyl substituted tetrahydro-bipyridine (Py) midlayer and hydrophobic (C4HF7O4S.C2F4)x short sidechain (SSC) ionomer toplayer, on Cu-sputtered PTFE GDL | C114: Overlayer | D114: Cu | E114: N-tolyl substituted tetrahydro-bipyridine, (C4HF7O4S.C2F4)x | F114: Catalyst on top of porous substrate (GDE) | G114: Electroplated Cu:Py:SCC | H114: (Gas-phase reactant, supplied from behind) | I114: - | J114: (n/a) | K114: Sustainion X37–50 grade 60 | L114: (AEM) | M114: 3.0 M KOH | N114: + flow - stirring | O114: (Liquid-phase reactant, supplied in front) | P114: IrO2/Ti mesh | Q114: 25 | R114: ? | S114: CO | T114: -2.5 V vs. ANODE | U114: -164 mA/cm2 | V114: 65 | X114: A. Ozden et al., Cascade CO2 electroreduction enables efficient carbonate-free production of ethylene. Joule 5, 706-719 (2021). | Y114: 65 | AA114: 0 | AB114: 1 | AC114: 1
A115: 109 | B115: Cu2P2O7 particles, on glassy carbon | C115: Oxide-derived | D115: Cu, O, P | E115: Nafion | F115: Catalyst on top of solid substrate (NPS) | G115: Cu2P2O7_particles/C | H115: (Solution-phase reactant, supplied in front) | I115: 0.1 M KHCO3 (pH 6.8) | J115: - flow - stirring | K115: Nafion 117 | L115: (CEM) | M115: 0.1 M KHCO3 (pH 6.8) | N115: - flow - stirring | O115: (Liquid-phase reactant, supplied in front) | P115: Pt mesh | Q115: ? | R115: ? | S115: CO2 | T115: -1.40 V vs. RHE | U115: -18 mA/cm2 | V115: 64 | X115: X. Y. Zhang et al., Direct OC-CHO coupling towards highly C2+ products selective electroreduction over stable Cu0/Cu2+ interface. Nature Communications 14, 7681 (2023). | Y115: 64 | AA115: 0 | AB115: 0 | AC115: 1
A116: 110 | B116: Highly porous Zn/Cu layer (10 at. % Zn) generated through partially leaching of co-sputtered Zn/Cu layer on PTFE substrate | C116: Alloyed/Doped | D116: Cu, Zn | E116: - | F116: Catalyst on top of porous substrate (GDE) | G116: Leach-Zn/CuOx | H116: (Gas-phase reactant, supplied from behind) | I116: 3.0 M KCl | J116: + flow - stirring | K116: Nafion 117 | L116: (CEM) | M116: 1.0 M KHCO3 | N116: + flow - stirring | O116: (Liquid-phase reactant, supplied in front) | P116: Pt plate | Q116: 25 | R116: 1 | S116: CO2 | T116: -1.6 V vs. RHE | U116: -300 mA/cm2 | V116: 64 | X116: J. Zhang et al., Accelerating electrochemical CO2 reduction to multi-carbon products via asymmetric intermediate binding at confined nanointerfaces. Nature Communications 14, 1298 (2023). | Y116: 64 | AA116: 0 | AB116: 0 | AC116: 1
A117: 111 | B117: Pd NP-decorated (50 nm) cubic Cu2O microparticles (1 μm) supported on carbon black, on glassy carbon | C117: Mixed-phase/Janus, A-supports-B | D117: Cu, Pd, C, O | E117: Nafion | F117: Catalyst on top of solid substrate (NPS) | G117: Pd_50nm/Cu2O_1um/CNPs | H117: (Solution-phase reactant, supplied in front) | I117: 0.5 M KHCO3 | J117: - flow - stirring | K117: Nafion 117 | L117: (CEM) | M117: 0.5 M KHCO3 | N117: - flow - stirring | O117: (Liquid-phase reactant, supplied in front) | P117: Graphite rod | Q117: ? | R117: ? | S117: CO2 | T117: -1.1 V vs. RHE | U117: -22 mA/cm2 | V117: 64 | X117: D. Xiao et al., Stabilizing Cu2O for enhancing selectivity of CO2 electroreduction to C2H4 with the modification of Pd nanoparticles. Chemical Engineering Journal 452, 139358 (2023). | Y117: 64 | AA117: 0 | AB117: 0 | AC117: 1
A118: 112 | B118: Cu NP layer (0.8 mg/cm2) with Fe-N/C overlayer (only present near CO2 inlet, 5% of total area), on GDL | C118: Overlayer, Tandem catalyst | D118: Cu, Fe, C, N | E118: Sustainion XA-9 | F118: Catalyst on top of porous substrate (GDE) | G118: ZnO-partial-over-Cu_NPs | H118: (Gas-phase reactant, supplied from behind) | I118: - | J118: (n/a) | K118: "Sustainion" | L118: (AEM) | M118: 0.05 M KOH | N118: + flow - stirring | O118: (Liquid-phase reactant, supplied in front) | P118: Ni/FE LDH Ni foam | Q118: ? | R118: ? | S118: CO2 | T118: -3.38 V vs. ANODE | U118: -1200 mA/cm2 | V118: 64 | X118: T. Zhang et al., Highly selective and productive reduction of carbon dioxide to multicarbon products via in situ CO management using segmented tandem electrodes. Nature Catalysis 5, 202-211 (2022). | Y118: 64 | AA118: 1 | AB118: 0 | AC118: 1
A119: 113 | B119: CeO2 NPs supported on CuO NSs (Cu:Ce ratio of 7:1), on carbon paper | C119: Mixed-phase/Janus, A-supports-B | D119: Cu, Ce, O, C | E119: ? | F119: Catalyst on top of porous substrate (GDE) | G119: CeO2/CuO_NSs | H119: (Gas-phase reactant, supplied from behind) | I119: 1 M KOH (pH 14) | J119: + flow - stirring | K119: ? | L119: (AEM) | M119: 1 M KOH (pH 14) | N119: + flow - stirring | O119: (Liquid-phase reactant, supplied in front) | P119: Pt sheet | Q119: ? | R119: ? | S119: CO2 | T119: ? | U119: -600 mA/cm2 | V119: 64 | X119: Yang, S., Sun, F., Cao, R. & Cao, M. Surface modification of copper oxide nanosheets with CeO2 for enhanced CO2 reduction to C2H4. Journal of Materials Chemistry A, doi:10.1039/D4TA07887J (2025). | Y119: 64 | AA119: 1 | AB119: 0 | AC119: 1
A120: 114 | B120: Impregnation-derived Cu NPs supported on N-functionalized carbon, on carbon paper (ill-defined carbon support derived from biological source) | C120: Supported | D120: Cu, C, N | E120: Nafion | F120: Catalyst on top of porous substrate (GDE) | G120: N-C(bio)/Cu-NPs | H120: (Solution-phase reactant, supplied in front) | I120: 0.1 M KHCO3/CO (pH 8.3) | J120: - flow - stirring | K120: Nafion 115 | L120: (CEM) | M120: 0.1 M KHCO3/CO (pH 8.3) | N120: - flow - stirring | O120: (Liquid-phase reactant, supplied in front) | P120: Pt foil | Q120: 25 | R120: ? | S120: CO2 | T120: -1.0 V vs. RHE | U120: -50 mA/cm2 | V120: 64 | X120: Y. Huo, X. Peng, X. Liu, H. Li, J. Luo, High Selectivity Toward C2H4 Production over Cu Particles Supported by Butterfly-Wing-Derived Carbon Frameworks. ACS Applied Materials & Interfaces 10, 12618-12625 (2018). | Y120: 64 | AA120: 0 | AB120: 0 | AC120: 1
A121: 115 | B121: Pre-reduced CuOx NPs supported on sheet-like tannic acid substrate, on GDL | C121: Supported | D121: Cu, O | E121: Nafion | F121: Catalyst on top of porous substrate (GDE) | G121: Tannic/CuOx_NPs | H121: (Gas-phase reactant, supplied from behind) | I121: 1.0 M KOH (pH 14) | J121: + flow - stirring | K121: Nafion 117 | L121: (CEM) | M121: 1.0 M KOH (pH 14) | N121: + flow - stirring | O121: (Liquid-phase reactant, supplied in front) | P121: Ni foam | Q121: 25 | R121: ? | S121: CO2 | T121: -0.7 V - iR vs. RHE | U121: -500 mA/cm2 | V121: 64 | X121: S. Chen et al., Selective CO2 Reduction to Ethylene Mediated by Adaptive Small-molecule Engineering of Copper-based Electrocatalysts. Angewandte Chemie International Edition n/a, e202315621 (2023). | Y121: 64 | AA121: 1 | AB121: 0 | AC121: 1
A122: 116 | B122: Partially reduced, thermally annealed/oxidized electroplated Cu nanodendrites, on carbon paper | C122: Oxide-derived | D122: Cu, O | E122: - | F122: Catalyst on top of porous substrate (GDE) | G122: CuOx-Vo-dendrites | H122: (Solution-phase reactant, supplied in front) | I122: 0.1 M KHCO3 (pH 6.8) | J122: - flow - stirring | K122: Nafion 115 | L122: (CEM) | M122: 0.1 M KHCO3 (pH 6.8) | N122: - flow - stirring | O122: (Liquid-phase reactant, supplied in front) | P122: Pt wire | Q122: 25 | R122: ? | S122: CO2 | T122: -1.4 V (no iR) vs. RHE | U122: -27 mA/cm2 | V122: 63 | X122: Z. Gu et al., Oxygen Vacancy Tuning toward Efficient Electrocatalytic CO2 Reduction to C2H4. Small Methods 3, 1800449 (2019). | Y122: 63 | AA122: 0 | AB122: 0 | AC122: 1
A123: 117 | B123: Ultrasonic-assisted defective CuO-derived Cu nanosheets, on GDL | C123: Oxide-derived | D123: Cu, O | E123: - | F123: Catalyst on top of porous substrate (GDE) | G123: Defective CuO NSs-3 | H123: (Gas-phase reactant, supplied from behind) | I123: 1.0 M KOH (pH 14) | J123: + flow - stirring | K123: Fumasep FAA-3-PK-75 | L123: (AEM) | M123: 1.0 M KOH (pH 14) | N123: + flow - stirring | O123: (Liquid-phase reactant, supplied in front) | P123: Ni foam/CP | Q123: ? | R123: ? | S123: CO2 | T123: -0.52 V - iR vs. RHE | U123: -300 mA/cm2 | V123: 63 | X123: J. Zhang et al., Grain Boundary-Derived Cu+/Cu0 Interfaces in CuO Nanosheets for Low Overpotential Carbon Dioxide Electroreduction to Ethylene. Advanced Science 9, 2200454 (2022). | Y123: 63 | AA123: 1 | AB123: 0 | AC123: 1
A124: 118 | B124: In-situ formed Cu NPs supported on CuO nanosheets, on hydrophobic carbon cloth | C124: Oxide-derived | D124: Cu, O | E124: Nafion | F124: Catalyst on top of porous substrate (GDE) | G124: C_cloth/CuO_NSs | H124: (Gas-phase reactant, supplied from behind) | I124: 2.0 M KCl + 0.01 M HCl | J124: + flow - stirring | K124: "from Fumasep" | L124: (CEM) | M124: 2.0 M KCl + 0.01 M HCl | N124: + flow - stirring | O124: (Liquid-phase reactant, supplied in front) | P124: Home-made DSA | Q124: ? | R124: ? | S124: CO2 | T124: -2.82 V vs. RHE | U124: -700 mA/cm2 | V124: 63 | X124: C. Kang et al., Acidic chloride electrolyte mediates the high conversion ratio of CO2-to-C2H4 and direct production of Cl2. Sustainable Energy & Fuels 8, 1730-1739 (2024). | Y124: 63 | AA124: 0 | AB124: 0 | AC124: 1
A125: 119 | B125: Ni-SAC layer on top of sputtered Cu layer, on GDL | C125: Overlayer, Tandem catalyst | D125: Cu, Ni, C, N | E125: Nafion (?) | F125: Catalyst on top of porous substrate (GDE) | G125: Ni-SAC/Cu_sputter | H125: (Gas-phase reactant, supplied from behind) | I125: 1.0 M KOH | J125: + flow - stirring | K125: ? | L125: ? | M125: 1.0 M KOH | N125: + flow - stirring | O125: (Liquid-phase reactant, supplied in front) | P125: Ni foil | Q125: ? | R125: ? | S125: CO2 | T125: -0.72 V -iR vs. RHE | U125: -160 mA/cm2 | V125: 63 | X125: J. Chen et al., Accelerated Transfer and Spillover of Carbon Monoxide through Tandem Catalysis for Kinetics-boosted Ethylene Electrosynthesis. Angewandte Chemie International Edition 62, e202215406 (2023). | Y125: 63 | AA125: 1 | AB125: 0 | AC125: 1
A126: 120 | B126: ZrO2 supported on Cu-Cu2O NPs prepared via co-precipitation, on carbon paper | C126: Bi-phasic/Janus, A-supports-B | D126: Cu, Zr, O | E126: Nafion | F126: Catalyst on top of porous substrate (GDE) | G126: ZrO2/Cu-Cu2O_NP | H126: (Solution-phase reactant, supplied in front) | I126: 0.1 M KCl | J126: - flow - stirring | K126: Nafion 117 | L126: (CEM) | M126: 0.1 M KCl | N126: - flow - stirring | O126: (Liquid-phase reactant, supplied in front) | P126: Pt | Q126: 25 | R126: 1 | S126: CO2 | T126: -0.70 V vs. RHE | U126: -24 mA/cm2 | V126: 63 | X126: P.-P. Guo et al., Electrocatalytic CO2 reduction to ethylene over ZrO2/Cu-Cu2O catalysts in aqueous electrolytes. Green Chemistry 24, 1527-1533 (2022). | Y126: 63 | AA126: 0 | AB126: 0 | AC126: 1
A127: 121 | B127: Co-precipitated HfOx and CuOx (2:3 ratio) mixed NPs, on carbon paper | C127: Mixed-phase/Janus | D127: Cu, Hf, O | E127: Nafion | F127: Catalyst on top of porous substrate (GDE) | G127: HfOx/CuOx | H127: (Gas-phase reactant, supplied from behind) | I127: 0.1 M KOH | J127: + flow - stirring | K127: ? | L127: (AEM) | M127: 0.1 M KOH | N127: + flow - stirring | O127: (Liquid-phase reactant, supplied in front) | P127: Pt foil | Q127: 25 | R127: 1 | S127: CO2 | T127: ? | U127: -300 mA/cm2 | V127: 63 | X127: X. Li et al., Engineering the CuO–HfO2 interface toward enhanced CO2 electroreduction to C2H4. Chemical Communications 58, 7412-7415 (2022). | Y127: 63 | AA127: 1 | AB127: 0 | AC127: 1
A128: 122 | B128: Cu-MOF calcination derived grainboundary-rich CuOx NPs supported on Ketjen Black, on glassy carbon | C128: MOF, supported | D128: Cu, O, C | E128: Nafion (top-coat) | F128: Catalyst on top of solid substrate (NPS) | G128: Calcined Cu-MOF CuOx/C | H128: (Solution-phase reactant, supplied in front) | I128: 0.1 M KHCO3 (pH 6.8) | J128: - flow - stirring | K128: Nafion 117 | L128: (CEM) | M128: 0.1 M KHCO3 (pH 6.8) | N128: - flow - stirring | O128: (Liquid-phase reactant, supplied in front) | P128: Pt plate | Q128: ? | R128: ? | S128: CO2 | T128: -1.01 V - iR vs. RHE | U128: -11 mA/cm2 | V128: 63 | X128: S. Kim, D. Shin, J. Park, J.-Y. Jung, H. Song, Grain Boundary-Rich Copper Nanocatalysts Generated from Metal-Organic Framework Nanoparticles for CO2-to-C2+ Electroconversion. Advanced Science 10, 2207187 (2023). | Y128: 63 | AA128: 0 | AB128: 0 | AC128: 1
A129: 123 | B129: Cu2O microcubes (1 µm) decorated with small Pd/Ag NPs (20-50 nm, 0.49 and 0.39 wt%, respectively), prepared via galvanic displacement, mixed with carbon black, on glassy carbon | C129: Mixed-phase/Janus, A-supports-B | D129: Cu, Ag, Pd, C | E129: Nafion | F129: Catalyst on top of solid substrate (NPS) | G129: Pd,Ag-NP/Cu2O_cubes | H129: (Solution-phase reactant, supplied in front) | I129: 0.5 M KHCO3 | J129: - flow - stirring | K129: Nafion 117 | L129: (CEM) | M129: 0.5 M KHCO3 | N129: - flow - stirring | O129: (Liquid-phase reactant, supplied in front) | P129: Carbon rod | Q129: ? | R129: ? | S129: CO2 | T129: -1.2 V vs. RHE | U129: -31 mA/cm2 | V129: 63 | X129: X. Xu et al., Pd-Decorated Cu2O–Ag Catalyst Promoting CO2 Electroreduction to C2H4 by Optimizing CO Intermediate Adsorption and Hydrogenation. ACS Applied Materials & Interfaces 16, 16243-16252 (2024). | Y129: 63 | AA129: 0 | AB129: 0 | AC129: 1
A130: 124 | B130: Cu2O NPs coated with a carboxylic-acid terminated C12 alkyl chain, on carbon paper | C130: Core/shell (in-)organic | D130: Cu, O | E130: Nafion, HOOC-(CHy)n-COOH | F130: Catalyst on top of porous substrate (GDE) | G130: Alkyl-chain/Cu2O_NPs | H130: (Solution-phase reactant, supplied in front) | I130: ? 0.1 M KHCO3 (pH 6.8) | J130: + flow - stirring | K130: ? Nafion | L130: (CEM) | M130: ? 0.1 M KHCO3 (pH 6.8) | N130: + flow - stirring | O130: (Liquid-phase reactant, supplied in front) | P130: ? Pt wire | Q130: ? | R130: ? | S130: CO2 | T130: -1.2 V vs. RHE | U130: -7 mA/cm2 | V130: 63 | X130: Li, W. et al. Confined Intermediates Boost C2+ Selectivity in CO2 Electroreduction. ACS Catal 14, 13400-13407, doi:10.1021/acscatal.4c02823 (2024). | Y130: 63 | AA130: 0 | AB130: 0 | AC130: 1
A131: 125 | B131: In-situ reconstruction-driven (2D) defective CuO NWs, on GDL | C131: Oxide-derived | D131: Cu, O | E131: Nafion | F131: Catalyst on top of porous substrate (GDE) | G131: Defective CuO NWs | H131: (Gas-phase reactant, supplied from behind) | I131: 1.0 M KOH (pH 14) | J131: + flow - stirring | K131: Fumasep FAA-3-PK-75 | L131: (AEM) | M131: 1.0 M KOH (pH 14) | N131: + flow - stirring | O131: (Liquid-phase reactant, supplied in front) | P131: Ni foam/CP | Q131: ? | R131: ? | S131: CO2 | T131: -0.56 V - iR vs. RHE | U131: -324 mA/cm2 | V131: 62 | X131: J. Zhang et al., Reconstructing two-dimensional defects in CuO nanowires for efficient CO2 electroreduction to ethylene. Chemical Communications 57, 8276-8279 (2021). | Y131: 62 | AA131: 1 | AB131: 0 | AC131: 1
A132: 126 | B132: In-situ reconstructed defective CuO NWs, on carbon paper | C132: Oxide-derived | D132: Cu, O | E132: Nafion | F132: Catalyst on top of porous substrate (GDE) | G132: CuO_NWs | H132: (Gas-phase reactant, supplied from behind) | I132: 1.0 M KOH | J132: + flow - stirring | K132: FAA-3-PK-75 | L132: (AEM) | M132: 1.0 M KOH | N132: + flow - stirring | O132: ? | P132: ? | Q132: ? | R132: ? | S132: CO2 | T132: -0.56 V - iR vs. RHE | U132: -524 mA/cm2 | V132: 62 | X132: J. Zhang et al., Reconstructing two-dimensional defects in CuO nanowires for efficient CO2 electroreduction to ethylene. Chemical Communications 57, 8276-8279 (2021). | Y132: 62 | AA132: 1 | AB132: 0 | AC132: 1
A133: 127 | B133: Ni-N/C layer on top of Cu NP layer, on a GDL | C133: Overlayer, Tandem catalyst | D133: Cu, Ni, C | E133: Nafion | F133: Catalyst on top of porous substrate (GDE) | G133: Ni_C,N/Cu_NPs | H133: (Gas-phase reactant, supplied from behind) | I133: 1.0 M KOH | J133: + flow - stirring | K133: FAA-3-PK-75 | L133: (AEM) | M133: 1.0 M KOH | N133: + flow - stirring | O133: (Liquid-phase reactant, forced through surface) | P133: Ni foam | Q133: 25 | R133: 1 | S133: CO2 | T133: -0.70 V -iR vs. RHE | U133: -593 mA/cm2 | V133: 62 | X133: X. She et al., Tandem Electrodes for Carbon Dioxide Reduction into C2+ Products at Simultaneously High Production Efficiency and Rate. Cell Reports Physical Science 1, 100051 (2020). | Y133: 62 | AA133: 1 | AB133: 0 | AC133: 1
A134: 128 | B134: Cu NPs supported on Ni-SAC mixed with PTFE, on GDL | C134: Mixed-phase/Janus, A-supports-B | D134: Cu, Ni, C, N | E134: Nafion | F134: Catalyst on top of porous substrate (GDE) | G134: Ni-SAC+PTFE/Cu_NPs | H134: (Gas-phase reactant, supplied from behind) | I134: 1.0 M KHCO3 | J134: + flow - stirring | K134: Selemion DSVN | L134: (AEM) | M134: 1.0 M KHCO3 | N134: + flow - stirring | O134: (Liquid-phase reactant, forced through surface) | P134: IrO2/Ti | Q134: ? | R134: ? | S134: CO2 | T134: -1.33 V -iR vs. RHE | U134: -600 mA/cm2 | V134: 62 | X134: M. Liu et al., Potential Alignment in Tandem Catalysts Enhances CO2-to-C2H4 Conversion Efficiencies. Journal of the American Chemical Society 146, 468-475 (2024). | Y134: 62 | AA134: 0 | AB134: 0 | AC134: 1
A135: 129 | B135: Single atom Cu sites enclosed in a Zr-based MOF framework with rod-like morphology, on GDL | C135: Single atom, Atomically mixed/Crystalline, MOF | D135: Cu, Zr | E135: Nafion | F135: Catalyst on top of porous substrate (GDE) | G135: Cu-SAC/Zr-MOF | H135: (Gas-phase reactant, supplied from behind) | I135: 1.0 M phosphate buffer saline | J135: + flow - stirring | K135: Nafion 212 | L135: (CEM) | M135: 1.0 M phosphate buffer saline | N135: + flow - stirring | O135: (Liquid-phase reactant, supplied in front) | P135: Pt wire | Q135: 25 | R135: 1 | S135: CO | T135: ?: -1.0 V vs. RHE | U135: -125 mA/cm2 | V135: 62 | X135: Q. Mo et al., Engineering Dual Sites into the Confined Nanospace of the Porphyrinic Metal–Organic Framework for Tandem Transformation of CO2 to Ethylene. ACS Sustainable Chemistry & Engineering, (2024). | Y135: =_xlfn.NUMBERVALUE(LEFT(V135,2)) -> 62 | AA135: 0 | AB135: 1 | AC135: 1
A136: 130 | B136: Cu NPs supported on N-doped CNTs, on GDL | C136: Supported | D136: Cu, C, N | E136: Nafion | F136: Catalyst on top of porous substrate (GDE) | G136: N-dopedCNT/Cu-NP | H136: (Gas-phase reactant, supplied from behind) | I136: 5.0 M KOH | J136: + flow - stirring | K136: "Sustainion" | L136: (AEM) | M136: 5.0 M KOH | N136: + flow - stirring | O136: (Liquid-phase reactant, supplied in front) | P136: Pt foil | Q136: ? | R136: ? | S136: CO2 | T136: -0.57 V - iR vs. RHE | U136: -500 mA/cm2 | V136: 62 | X136: J.-C. Lee et al., Thermodynamically driven self-formation of copper-embedded nitrogen-doped carbon nanofiber catalysts for a cascade electroreduction of carbon dioxide to ethylene. Journal of Materials Chemistry A 8, 11632-11641 (2020). | Y136: 62 | AA136: =_xlfn.LET(_xlpm.CO_2,IF(S136="CO2",1,0),_xlpm.AEM_dry,INT(AND(IF(J136="(n/a)",1,0),IF(L136="(AEM)",1,0))), _xlpm.alk_electrolyte,IF(SUM(IFERROR(FIND("KOH",I136),0),IFERROR(FIND("NaOH",I136),0),IFERROR(FIND("CsOH",I136),0), IFERROR(FIND("LiOH",I136),0), IFERROR(FIND("RbOH",I136),0))>0,1,0),_xlpm.alkaline,OR(_xlpm.AEM_dry,_xlpm.alk_electrolyte),_xlpm.rslt,INT(AND(_xlpm.CO_2,_xlpm.alkaline)),_xlpm.rslt) -> 1 | AB136: =IF(S136="CO",1,0) -> 0 | AC136: =IF(_xlfn.NUMBERVALUE(LEFT(V136,2))>=55,1,0) -> 1
A137: =A136+1 -> 131 | B137: In-situ generated Cu NPs from 3-(2-Pyridyl)-5-phenyl-1,2,4-triazole-based Cu-TMC, on Cu-sputtered PTFE | C137: TMC, supported | D137: Cu | E137: Nafion | F137: Catalyst on top of porous substrate (GDE) | G137: 3-(2-Pyridyl)-5-phenyl-1,2,4-triazole-based/Cu-TMC | H137: (Gas-phase reactant, supplied from behind) | I137: 0.05 M H2SO4 + 2.5 M KCl | J137: + flow - stirring | K137: Nafion 117 | L137: (CEM) | M137: 0.05 M H2SO4 | N137: + flow - stirring | O137: (Liquid-phase reactant, forced through surface) | P137: IrO2/Ti felt | Q137: ? | R137: ? | S137: CO2 | T137: -1.64 V - iR vs. RHE | U137: -200 mA/cm2 | V137: 62 | X137: Kim, D. et al. Acid-Stable Cu Cluster Precatalysts Enable High Energy and Carbon Efficiency in CO2 Electroreduction. Journal of the American Chemical Society 146, 27701-27712, doi:10.1021/jacs.4c09230 (2024). | Y137: 62 | AA137: 0 | AB137: 0 | AC137: 1
A138: 132 | B138: Cu2O NPs electroplated on Cu-CuTCPP MOF nanosheets, on GDL | C138: MOF, supported | D138: Cu, O | E138: Nafion | F138: Catalyst on top of porous substrate (GDE) | G138: Cu2O_NP/Cu-TCPP_NSs | H138: (Solution-phase reactant, supplied in front) | I138: 0.1 M KHCO3 (pH 6.8) | J138: - flow - stirring | K138: Nafion 211 | L138: (CEM) | M138: 0.1 M KHCO3 (pH 6.8) | N138: - flow - stirring | O138: (Liquid-phase reactant, supplied in front) | P138: Pt mesh | Q138: ? | R138: ? | S138: CO2 | T138: -1.3 V vs. RHE | U138: -15 mA/cm2 | V138: 62 | X138: M. Sun et al., Controllable preparation of Cu2O/Cu-CuTCPP MOF heterojunction for enhanced electrocatalytic CO2 reduction to C2H4. Applied Surface Science 659, 159937 (2024). | Y138: 62 | AA138: 0 | AB138: 0 | AC138: 1
A139: 133 | B139: Polyvinylpyrrolidone-assisted ("P2") self-assembled Cu-based supramolecular polymer MPs, on glassy carbon | C139: Supramolecular | D139: Cu | E139: ? Nafion | F139: Catalyst on top of porous substrate (GDE) | G139: Cu/supra_MPs | H139: (Solution-phase reactant, supplied in front) | I139: 1.0 M KOH (pH 14) | J139: - flow + stirring | K139: FAB-PK-130 | L139: (AEM) | M139: 1.0 M KOH (pH 14) | N139: - flow + stirring | O139: (Liquid-phase reactant, supplied in front) | P139: Ni mesh | Q139: ? | R139: ? | S139: CO2 | T139: -1.4 V vs. RHE | U139: -128 mA/cm2 | V139: 62 | X139: Wang, C. et al. The regulation of hydrogen bond network promotes highly selective electroreduction of CO2 to C2H4. Applied Catalysis B: Environment and Energy 366, 125006, doi:https://doi.org/10.1016/j.apcatb.2024.125006 (2025). | Y139: 62 | AA139: 1 | AB139: 0 | AC139: 1
A140: 134 | B140: Polystyrene vinylbenzyl imidazolium chloride (PSMIM, 0.25 wt%) coated CuO NSs, on carbon paper | C140: Core/shell (in-)organic | D140: Cu, O | E140: Polystyrene vinylbenzyl imidazolium chloride (PSMIM) | F140: Catalyst on top of porous substrate (GDE) | G140: PSMIM/CuO_NSs | H140: (Gas-phase reactant, supplied from behind) | I140: 1.0 M KOH (pH 14) | J140: + flow - stirring | K140: X37-50 Grade T | L140: (AEM) | M140: 1.0 M KOH (pH 14) | N140: + flow - stirring | O140: (Liquid-phase reactant, supplied in front) | P140: Pt mesh | Q140: 25 | R140: 1 | S140: CO2 | T140: -1.05 V vs. RHE | U140: -119 mA/cm2 | V140: 62 | X140: D. Wang et al., Regulating the local microenvironment on porous Cu nanosheets for enhancing electrocatalytic CO2 reduction selectivity to ethylene. Journal of Materials Chemistry A 12, 11968-11974 (2024). | Y140: 62 | AA140: 1 | AB140: 0 | AC140: 1
A141: 135 | B141: Core/shell-type particles comprising a carbon core with a CuOx shell coated with a PTFE layer, on carbon paper | C141: Core/shell (in-)organic | D141: Cu, C, O | E141: PTFE, nafion | F141: Catalyst on top of porous substrate (GDE) | G141: PTFE/CuOx+C_NPs | H141: (Gas-phase reactant, supplied from behind) | I141: 1.0 M KOH (pH 14) | J141: + flow - stirring | K141: FAB-PK-130 | L141: (AEM) | M141: 1.0 M KOH (pH 14) | N141: + flow - stirring | O141: (Liquid-phase reactant, supplied in front) | P141: Pt sheet | Q141: ? | R141: ? | S141: CO2 | T141: -0.92 V - iR vs. RHE | U141: -230 mA/cm2 | V141: 62 | X141: Liu, W. et al. Electron-rich Cu0-Cu2O heterogeneous interface constructed via controllable electrochemical reconstruction for a single CO2 deep-reduction product ethylene. Applied Catalysis B: Environment and Energy 348, 123831, doi:https://doi.org/10.1016/j.apcatb.2024.123831 (2024). | Y141: 62 | AA141: 1 | AB141: 0 | AC141: 1
A142: 136 | B142: Commercial 25 nm Cu NPs with Hex-Aza COF-based overlayer, on GDL | C142: Overlayer | D142: Cu | E142: Hexaketocyclohexane, 2,3,6,7-tetraamino-phenazine hydrochloride | F142: Catalyst on top of porous substrate (GDE) | G142: Hex-Aza/Cu_NPs#2 | H142: (Gas-phase reactant, supplied from behind) | I142: - | J142: (n/a) | K142: Sustainion X37-50 | L142: (AEM) | M142: 0.1 M KHCO3 (no active CO2 flow) | N142: + flow - stirring | O142: (Liquid-phase reactant, supplied in front) | P142: IrOx/Ni | Q142: 25 | R142: 1 | S142: CO2 | T142: -3.85 V vs. ANODE | U142: -316 mA/cm2 | V142: 62 | X142: A. Ozden et al., Energy- and carbon-efficient CO2/CO electrolysis to multicarbon products via asymmetric ion migration–adsorption. Nature Energy 8, 179-190 (2023). | Y142: 62 | AA142: 1 | AB142: 0 | AC142: 1
A143: 137 | B143: Chloride-derived CuOx NPs prepared via chemical oxidation (H2O2), on Cu-sputtered GDL | C143: Oxide-derived | D143: Cu, O, Cl | E143: - | F143: Catalyst on top of porous substrate (GDE) | G143: Cl/CuOx_H2O2-GDL | H143: (Gas-phase reactant, supplied from behind) | I143: 3.0 M KOH | J143: + flow - stirring | K143: ? | L143: (AEM) | M143: 3.0 M KOH | N143: + flow - stirring | O143: (Liquid-phase reactant, supplied in front) | P143: Ni | Q143: ? | R143: ? | S143: CO2 | T143: -0.68 V -iR vs. RHE | U143: -400 mA/cm2 | V143: 61 | X143: M. G. Kibria et al., A Surface Reconstruction Route to High Productivity and Selectivity in CO2 Electroreduction toward C2+ Hydrocarbons. Advanced Materials 30, 1804867 (2018). | Y143: 61 | AA143: 1 | AB143: 0 | AC143: 1
A144: 138 | B144: Metal–organic polyhedra-derived hollow CuOx NP based spheres | C144: Oxide-derived | D144: Cu, O | E144: Nafion | F144: Catalyst on top of porous substrate (GDE) | G144: Hollow CuOx spheres | H144: (Gas-phase reactant, supplied from behind) | I144: 1.0 M KOH (pH 14) | J144: + flow - stirring | K144: ? | L144: (n/a) | M144: 1.0 M KOH (pH 14) | N144: + flow - stirring | O144: (Liquid-phase reactant, supplied in front) | P144: Pt plate | Q144: ? | R144: ? | S144: CO2 | T144: -0.9 V - iR vs. RHE | U144: -143 mA/cm2 | V144: 61 | X144: R.-X. Yang et al., Self-Assembly of Hydroxyl Metal–Organic Polyhedra and Polymer into Cu-Based Hollow Spheres for Product-Selective CO2 Electroreduction. Small Structures 2, 2100012 (2021). | Y144: 61 | AA144: 1 | AB144: 0 | AC144: 1
A145: 139 | B145: Cu3N NPs, on glassy carbon | C145: Oxide-derived | D145: Cu, N | E145: Nafion | F145: Catalyst on top of solid substrate (NPS) | G145: Cu3N_NPs | H145: (Solution-phase reactant, supplied in front) | I145: 0.1 M KHCO3 (pH 6.8) | J145: - flow - stirring | K145: Nafion 117 | L145: (CEM) | M145: 0.1 M KHCO3 (pH 6.8) | N145: - flow - stirring | O145: (Liquid-phase reactant, supplied in front) | P145: Pt net | Q145: ? | R145: ? | S145: CO2 | T145: -0.8 V vs. RHE | U145: -60 mA/cm2 | V145: 61 | X145: H. Wang et al., Cu3N nanoparticles with both (100) and (111) facets for enhancing the selectivity and activity of CO2 electroreduction to ethylene. New Journal of Chemistry 46, 12523-12529 (2022). | Y145: 61 | AA145: 0 | AB145: 0 | AC145: 1
A146: 140 | B146: Polystyrene template-assisted interconnected mesoporous Cu2O NPs, on GDL | C146: Oxide-derived | D146: Cu, O | E146: Nafion | F146: Catalyst on top of porous substrate (GDE) | G146: Meso-interconnect/Cu2O_NPs | H146: (Gas-phase reactant, supplied from behind) | I146: 1 M KOH (pH 14) | J146: + flow - stirring | K146: Fumatech, FAA-3PK-130 | L146: (AEM) | M146: 1 M KOH (pH 14) | N146: + flow - stirring | O146: (Liquid-phase reactant, supplied in front) | P146: Ni foam | Q146: ? | R146: ? | S146: CO2 | T146: ? | U146: -1000 mA/cm2 | V146: 61 | X146: L. Fan et al., Evoking C2+ production from electrochemical CO2 reduction by the steric confinement effect of ordered porous Cu2O. Chemical Science 14, 13851-13859 (2023). | Y146: 61 | AA146: 1 | AB146: 0 | AC146: 1
A147: 141 | B147: Hollow Cu2O NPs on GDL, electrochemically pre-activated via in-situ reduction in the presence of CO2 | C147: Oxide-derived | D147: Cu, O | E147: Nafion | F147: Catalyst on top of porous substrate (GDE) | G147: CO2-reduced/Cu2O_NCs | H147: (Gas-phase reactant, supplied from behind) | I147: 1.0 M KOH | J147: + flow - stirring | K147: Sustainion® X37-50 grade RT | L147: (AEM) | M147: 1.0 M KOH | N147: + flow - stirring | O147: (Liquid-phase reactant, forced through surface) | P147: Ni foam | Q147: ? | R147: ? | S147: CO2 | T147: -0.6 V vs. RHE | U147: -200 mA/cm2 | V147: 61 | X147: Zhang, C. et al. Exploration of Gas-Dependent Self-Adaptive Reconstruction Behavior of Cu2O for Electrochemical CO2 Conversion to Multi-Carbon Products. Nano-Micro Letters 17, 66, doi:10.1007/s40820-024-01568-1 (2024). | Y147: 61 | AA147: 1 | AB147: 0 | AC147: 1
A148: 142 | B148: Al2O3 partial overlayer (0.8 nm) specifically covering the {111} facets of Cu NPs (10 nm) supported on CNPs, on Ta-sputtered PTFE GDL | C148: Core/shell, A-supports-B | D148: Cu, Al, C, O, Ta | E148: Nafion | F148: Catalyst on top of porous substrate (GDE) | G148: {111}/Al2O3/Cu_NPs | H148: (Gas-phase reactant, supplied from behind) | I148: 5.0 M KOH | J148: + flow - stirring | K148: FAB-PK-130 | L148: (AEM) | M148: 5.0 M KOH | N148: + flow - stirring | O148: (Liquid-phase reactant, supplied in front) | P148: IrO2/Ti | Q148: ? | R148: ? | S148: CO2 | T148: -1.1 V - iR vs. RHE | U148: -253 mA/cm2 | V148: 61 | X148: H. Li et al., Facet-Selective Deposition of Ultrathin Al2O3 on Copper Nanocrystals for Highly Stable CO2 Electroreduction to Ethylene. Angewandte Chemie International Edition 60, 24838-24843 (2021). | Y148: 61 | AA148: 1 | AB148: 0 | AC148: 1
A149: 143 | B149: Mg surface-doped CuOx NPs (Mg0.72Cu), on GDL | C149: Alloyed/Doped | D149: Cu, Mg, O | E149: Nafion | F149: Catalyst on top of porous substrate (GDE) | G149: Mg/CuOx_NPs | H149: (Gas-phase reactant, supplied from behind) | I149: 1.0 M KOH | J149: + flow - stirring | K149: NEOSEPTA, AHA | L149: (AEM) | M149: 1.0 M KOH | N149: + flow - stirring | O149: (Liquid-phase reactant, supplied in front) | P149: Foamed Ni | Q149: ? | R149: ? | S149: CO | T149: ? | U149: ? | V149: 61 | X149: M. Xie et al., Fast Screening for Copper-Based Bimetallic Electrocatalysts: Efficient Electrocatalytic Reduction of CO2 to C2+ Products on Magnesium-Modified Copper. Angewandte Chemie International Edition 61, e202213423 (2022). | Y149: 61 | AA149: 0 | AB149: 1 | AC149: 1
A150: 144 | B150: Lattice-strained, Zn-doped CuO NPs, on carbon paper | C150: Alloyed/Doped | D150: Cu, Zn | E150: Nafion | F150: Catalyst on top of porous substrate (GDE) | G150: Zn/CuO_NPs | H150: (Gas-phase reactant, supplied from behind) | I150: 1.0 M KOH | J150: + flow - stirring | K150: Nafion 117 | L150: (CEM) | M150: 1.0 M KOH | N150: + flow - stirring | O150: (Liquid-phase reactant, supplied in front) | P150: Pt sheet | Q150: ? | R150: ? | S150: CO2 | T150: -0.95 V vs. RHE | U150: -500 mA/cm2 | V150: 61 | X150: Wu, X. et al. Modification of the CuO electronic structure for enhanced selective electrochemical CO2 reduction to ethylene. Nano Research 17, 7194-7202, doi:10.1007/s12274-024-6708-0 (2024). | Y150: 61 | AA150: 1 | AB150: 0 | AC150: 1
A151: 145 | B151: Ultralow (single atom, 0.36 wt%) surface Pd-doped Cu NCs, on a GDL | C151: Alloyed/Doped, SAC | D151: Cu, Pd | E151: - | F151: Catalyst on top of porous substrate (GDE) | G151: Pd-SAA/Cu_NCs | H151: (Gas-phase reactant, supplied from behind) | I151: 0.5 M KHCO3 | J151: + flow - stirring | K151: "Sustanion" | L151: (AEM) | M151: 0.5 M KHCO3 | N151: + flow - stirring | O151: (Liquid-phase reactant, supplied in front) | P151: Pt foil | Q151: ? | R151: ? | S151: CO2 | T151: -1.1 V vs. RHE | U151: -184 mA/cm2 | V151: 61 | X151: Chhetri, M. et al. Dual-site catalysts featuring platinum-group-metal atoms on copper shapes boost hydrocarbon formations in electrocatalytic CO2 reduction. Nature Communications 14, 3075, doi:10.1038/s41467-023-38777-y (2023). | Y151: 61 | AA151: 0 | AB151: 0 | AC151: 1
A152: 146 | B152: Cu NPs mixed with Ni-SAC, on homemade GDL | C152: Mixed-phase/Janus | D152: Cu, Ni, C, N | E152: Nafion | F152: Catalyst on top of porous substrate (GDE) | G152: Ni-SAC/Cu_NPs | H152: (Gas-phase reactant, supplied from behind) | I152: 1.0 M KOH | J152: + flow - stirring | K152: FAB-PK- 130 | L152: (AEM) | M152: 1.0 M KOH | N152: + flow - stirring | O152: (Liquid-phase reactant, forced through surface) | P152: Ni foam/plate | Q152: 25 | R152: ? | S152: CO2 | T152: -0.58 V -iR vs. RHE | U152: -308 mA/cm2 | V152: 61 | X152: L. Li et al., Hydrophobicity graded gas diffusion electrode with enhanced CO intermediate coverage for high-performance electroreduction of CO2 to ethylene. Applied Catalysis B: Environmental 331, 122597 (2023). | Y152: 61 | AA152: 1 | AB152: 0 | AC152: 1
A153: 147 | B153: {100}-rich Cu NPs derived from reconstruction of Cu-tannic acid NSs, on GDL | C153: TMC, supported | D153: Cu | E153: Nafion | F153: Catalyst on top of porous substrate (GDE) | G153: Tannic/CuOx_NPs2 | H153: (Gas-phase reactant, supplied from behind) | I153: 1.0 M KOH | J153: + flow - stirring | K153: FAB-PK-130 | L153: (AEM) | M153: 1.0 M KOH | N153: + flow - stirring | O153: (Liquid-phase reactant, supplied in front) | P153: Pt foil | Q153: ? | R153: ? | S153: CO2 | T153: -2.16 V vs. RHE | U153: -700 mA/cm2 | V153: 61 | X153: M. Wu et al., Sequential *CO management via controlling in situ reconstruction for efficient industrial-current-density CO2-to-C2+ electroreduction. Proceedings of the National Academy of Sciences 120, e2302851120 (2023). | Y153: 61 | AA153: 1 | AB153: 0 | AC153: 1
A154: 148 | B154: Ultrafine Cu NPs supported on N-functionalized carbon, on carbon paper | C154: Supported | D154: Cu, C | E154: Nafion | F154: Catalyst on top of porous substrate (GDE) | G154: N,C/Cu_NPs | H154: (Gas-phase reactant, supplied from behind) | I154: 1.0 M KOH | J154: + flow - stirring | K154: FAA-PK-130 | L154: (AEM) | M154: 1.0 M KOH | N154: + flow - stirring | O154: (Liquid-phase reactant, supplied in front) | P154: Pt plate | Q154: ? | R154: ? | S154: CO2 | T154: -1.05 V vs. RHE | U154: -208 mA/cm2 | V154: 61 | X154: Cao, Y. et al. Stimulating the C−C coupling ability of ultrafine copper nanoclusters via nitrogen coordination for electrocatalytic CO2 reduction. Applied Catalysis B: Environment and Energy 361, 124704, doi:https://doi.org/10.1016/j.apcatb.2024.124704 (2025). | Y154: 61 | AA154: 1 | AB154: 0 | AC154: 1
A155: 149 | B155: Ultrasonically detached N2 atmosphere/high current density-electroplated Cu dendrites, on GDL | C155: Metallic Cu | D155: Cu | E155: Nafion | F155: Catalyst on top of porous substrate (GDE) | G155: N2/Cu_dendrites | H155: (Gas-phase reactant, supplied from behind) | I155: 1.0 M KOH (pH 14) | J155: + flow - stirring | K155: ? (X37–50 Grade 60) | L155: (AEM) | M155: 1.0 M KOH (pH 14) | N155: + flow - stirring | O155: (Liquid-phase reactant, supplied in front) | P155: IrO2/carbon | Q155: ? | R155: ? | S155: CO2 | T155: -1.24 V vs. RHE | U155: -37 mA/cm2 | V155: 60 | X155: Z. Gu et al., Efficient Electrocatalytic CO2 Reduction to C2+ Alcohols at Defect-Site-Rich Cu Surface. Joule 5, 429-440 (2021). | Y155: 60 | AA155: 1 | AB155: 0 | AC155: 1
A156: 150 | B156: {100}-rich Cu NCs, on GDL | C156: Metallic Cu | D156: Cu | E156: - | F156: Catalyst on top of porous substrate (GDE) | G156: Cu_NCs | H156: (Gas-phase reactant, supplied from behind) | I156: 1.0 M KOH (pH 14) | J156: + flow - stirring | K156: Fumasep FAB-PK-130 | L156: (AEM) | M156: 1.0 M KOH (pH 14) | N156: + flow - stirring | O156: (Liquid-phase reactant, supplied in front) | P156: Ni mesh | Q156: ? | R156: ? | S156: CO2 | T156: -0.70 V - iR vs. RHE | U156: -200 mA/cm2 | V156: 60 | X156: G. L. De Gregorio et al., Facet-Dependent Selectivity of Cu Catalysts in Electrochemical CO2 Reduction at Commercially Viable Current Densities. ACS Catal 10, 4854-4862 (2020). | Y156: 60 | AA156: 1 | AB156: 0 | AC156: 1
A157: 151 | B157: Cu NCs, on GDL | C157: Metallic Cu | D157: Cu | E157: - | F157: Catalyst on top of porous substrate (GDE) | G157: Cu_NCs#2 | H157: (Gas-phase reactant, supplied from behind) | I157: 10.0 M KOH | J157: + flow - stirring | K157: Fumasep FAB-PK-130 | L157: (AEM) | M157: 10.0 M KOH | N157: + flow - stirring | O157: (Liquid-phase reactant, supplied in front) | P157: IrO2/carbon | Q157: ? | R157: ? | S157: CO2 | T157: -0.47 V - iR vs. RHE | U157: -75 mA/cm2 | V157: 60 | X157: Y. Wang et al., Copper Nanocubes for CO2 Reduction in Gas Diffusion Electrodes. Nano Letters 19, 8461-8468 (2019). | Y157: 60 | AA157: 1 | AB157: 0 | AC157: 1
A158: 152 | B158: Metallic Cu NPs, on GDL | C158: Metallic Cu | D158: Cu | E158: Nafion | F158: Catalyst on top of porous substrate (GDE) | G158: Cu_NPs | H158: (Gas-phase reactant, supplied from behind) | I158: 1.0 M KOH | J158: + flow - stirring | K158: NEOSEPTA, AHA | L158: (AEM) | M158: 1.0 M KOH | N158: + flow - stirring | O158: (Liquid-phase reactant, supplied in front) | P158: Foamed Ni | Q158: ? | R158: ? | S158: CO | T158: -0.69 V - iR vs. RHE | U158: ? | V158: 60 | X158: M. Xie et al., Fast Screening for Copper-Based Bimetallic Electrocatalysts: Efficient Electrocatalytic Reduction of CO2 to C2+ Products on Magnesium-Modified Copper. Angew Chem Int Ed 61, e202213423 (2022). | Y158: 60 | AA158: 0 | AB158: 1 | AC158: 1
A159: 153 | B159: O2 plasma-treated (2 min, 20 W) Cu plate | C159: Oxide-derived | D159: Cu, O | E159: - | F159: Catalyst on top of solid substrate (NPS) | G159: CuOx-plasma | H159: (Solution-phase reactant, supplied in front) | I159: 0.1 M KHCO3 (pH 6.8) | J159: - flow - stirring | K159: Nafion | L159: (CEM) | M159: 0.1 M KHCO3 (pH 6.8) | N159: - flow - stirring | O159: (Liquid-phase reactant, supplied in front) | P159: Pt mesh | Q159: ? | R159: ? | S159: CO2 | T159: -0.9 V -iR vs. RHE | U159: -10 mA/cm2 | V159: 60 | X159: H. Mistry et al., Highly selective plasma-activated copper catalysts for carbon dioxide reduction to ethylene. Nature Communications 7, 12123 (2016). | Y159: 60 | AA159: 0 | AB159: 0 | AC159: 1
A160: 154 | B160: Cu3N NCs_20nm supported on Ketjen Carbon, on carbon paper | C160: Oxide-derived | D160: Cu, N, C | E160: Polyvinylidene fluoride (PVDF) | F160: Catalyst on top of solid substrate (NPS) | G160: Cu3N_NCs_25nm | H160: (Solution-phase reactant, supplied in front) | I160: 0.1 M KHCO3 (pH 6.8) | J160: - flow - stirring | K160: Nafion 212 | L160: (CEM) | M160: 0.1 M KHCO3 (pH 6.8) | N160: - flow - stirring | O160: (Liquid-phase reactant, supplied in front) | P160: Pt wire | Q160: 25 | R160: 1 | S160: CO2 | T160: -1.6 V vs. RHE | U160: -30 mA/cm2 | V160: 60 | X160: Z. Yin et al., Cu3N Nanocubes for Selective Electrochemical Reduction of CO2 to Ethylene. Nano Letters 19, 8658-8663 (2019). | Y160: 60 | AA160: 0 | AB160: 0 | AC160: 1
A161: 155 | B161: Hybrid material composed of graphene oxide nanodots on CuO nanosheets, on GDL | C161: Oxide-derived | D161: Cu, O, C | E161: Nafion | F161: Catalyst on top of porous substrate (GDE) | G161: GO-nanodot/CuO_NSs | H161: (Gas-phase reactant, supplied from behind) | I161: 1.0 M KOH (pH 14) | J161: + flow - stirring | K161: Fumasep FAA–PK–130) | L161: (AEM) | M161: 1.0 M KOH (pH 14) | N161: + flow - stirring | O161: (Liquid-phase reactant, supplied in front) | P161: IrO2/C | Q161: ? | R161: ? | S161: CO2 | T161: -0.82 V - iR vs. RHE | U161: -500 mA/cm2 | V161: 60 | X161: R. Du et al., Cu-C(O) Interfaces Deliver Remarkable Selectivity and Stability for CO2 Reduction to C2+ Products at Industrial Current Density of 500 mA cm−2. Small 19, 2301289 (2023). | Y161: 60 | AA161: 1 | AB161: 0 | AC161: 1
A162: 156 | B162: Nitridized Cu NPs, on GDL | C162: Oxide-derived | D162: Cu, N | E162: Nafion | F162: Catalyst on top of porous substrate (GDE) | G162: N/Cu-NPs | H162: (Gas-phase reactant, supplied from behind) | I162: 1.0 M KOH (pH 14) | J162: + flow - stirring | K162: Sustainion, X37-50 Grade T | L162: (AEM) | M162: 1.0 M KOH (pH 14) | N162: + flow - stirring | O162: (Liquid-phase reactant, supplied in front) | P162: Ni foam | Q162: ? | R162: ? | S162: CO | T162: ? | U162: -100 mA/cm2 | V162: 60 | X162: H. Phong Duong et al., Silver and Copper Nitride Cooperate for CO Electroreduction to Propanol. Angewandte Chemie International Edition n/a, e202310788 (2023). | Y162: 60 | AA162: 0 | AB162: 1 | AC162: 1
A163: 157 | B163: Electrochemical-assisted iodine-reconstructed Cu foil | C163: Oxide-derived | D163: Cu, O, I | E163: - | F163: Catalyst on top of solid substrate (NPS) | G163: I/CuOx | H163: (Solution-phase reactant, supplied in front) | I163: 0.1 M KHCO3 (pH 6.8) | J163: - flow - stirring | K163: Nafion 117 | L163: (CEM) | M163: 0.1 M KHCO3 (pH 6.8) | N163: - flow - stirring | O163: (Liquid-phase reactant, supplied in front) | P163: Pt gauze | Q163: ? | R163: ? | S163: CO2 | T163: -1.09 V vs. RHE | U163: -26 mA/cm2 | V163: 60 | X163: J. Han et al., A reconstructed porous copper surface promotes selectivity and efficiency toward C2 products by electrocatalytic CO2 reduction. Chemical Science 11, 10698-10704 (2020). | Y163: 60 | AA163: 0 | AB163: 0 | AC163: 1
A164: 158 | B164: Cu2(OH)2CO3 NPs, on glassy carbon | C164: Oxide-derived | D164: Cu, O | E164: Nafion | F164: Catalyst on top of solid substrate (NPS) | G164: Cu2(OH)2CO3_NPs | H164: (Solution-phase reactant, supplied in front) | I164: 0.5 M KHCO3 | J164: - flow - stirring | K164: ? | L164: (AEM) | M164: 0.5 M KHCO3 | N164: - flow - stirring | O164: (Liquid-phase reactant, supplied in front) | P164: Pt | Q164: ? | R164: ? | S164: CO2 | T164: -0.9 V vs. RHE | U164: -50 mA/cm2 | V164: 60 | X164: Y. Gao et al., Revealing the Lattice Carbonate Mediated Mechanism in Cu2(OH)2CO3 for Electrocatalytic Reduction of CO2 to C2H4. Advanced Science n/a, 2308949. | Y164: 60 | AA164: 0 | AB164: 0 | AC164: 1
A165: 159 | B165: Plasma-fluorinated Cu sputter-deposited on PTFE GDL | C165: Oxide-derived | D165: Cu, F | E165: Nafion | F165: Catalyst on top of porous substrate (GDE) | G165: F/Cu_NPs | H165: (Gas-phase reactant, supplied from behind) | I165: 1.0 M KOH | J165: + flow - stirring | K165: FAA-3-PK-130 | L165: (AEM) | M165: 1.0 M KOH | N165: + flow - stirring | O165: (Liquid-phase reactant, forced through surface) | P165: Ni foam | Q165: 25 | R165: 1 | S165: CO2 | T165: -0.57 V -iR vs. RHE | U165: -250 mA/cm2 | V165: 60 | X165: Z. Zhou, X. Hu, J. Li, H. Xie, L. Wen, Enhanced CO2 Electroreduction to Multi-Carbon Products on Copper via Plasma Fluorination. Advanced Science n/a, 2309963. | Y165: 60 | AA165: 1 | AB165: 0 | AC165: 1
A166: 160 | B166: Surface Pd-doped ("6.2%") Cu-sputtered PTFE GDL | C166: Alloyed/Doped | D166: Cu, Pd | E166: - | F166: Catalyst on top of porous substrate (GDE) | G166: Pd/Cu-PTFE | H166: (Gas-phase reactant, supplied from behind) | I166: 0.5 M K2SO4 + x M H2SO4 (pH 2) | J166: + flow - stirring | K166: Nafion 117 | L166: (CEM) | M166: 0.5 M K2SO4 | N166: + flow - stirring | O166: (Liquid-phase reactant, supplied in front) | P166: Pt mesh | Q166: ? | R166: ? | S166: CO2 | T166: ? | U166: -500 mA/cm2 | V166: 60 | X166: Xie, Y. et al. High carbon utilization in CO2 reduction to multi-carbon products in acidic media. Nature Catalysis 5, 564-570, doi:10.1038/s41929-022-00788-1 (2022). | Y166: 60 | AA166: 0 | AB166: 0 | AC166: 1
A167: 161 | B167: Cu NWs from ACS Materials doped with AgNO3, on a GDL | C167: Nanowire, Mixed-phase/Janus | D167: Cu, Ag | E167: - | F167: Catalyst on top of porous substrate (GDE) | G167: Ag-63 doped Cu-nanowire | H167: (Gas-phase reactant, supplied from behind) | I167: - | J167: (n/a) | K167: PiperIon 40 μm | L167: (AEM) | M167: 0.1 M KOH (pH 13) | O167: (Liquid-phase reactant, supplied from behind) | P167: Ir on GDL | Q167: 30 | R167: ? | S167: CO2 | T167: -3.2 V cell potential | U167: -80 mA/cm2 | V167: 60 | X167: Jiang, R., et al. (2023). "Copper-Nanowires Incorporated with Silver-Nanoparticles for Catalytic CO2 Reduction in Alkaline Zero Gap Electrolyzer." ACS Applied Energy Materials 6(20): 10475-10486. | Y167: 60 | AA167: 1 | AB167: 0 | AC167: 1
A168: 162 | B168: La2CuO4 perovskite nanobamboo fibers with abundant grain boundaries, on glassy carbon | C168: Atomically mixed | D168: Cu, La, O | E168: Nafion | F168: Catalyst on top of solid substrate (NPS) | G168: La2CuO4_nanobamboo | H168: (Solution-phase reactant, supplied in front) | I168: 0.1 M KHCO3 (pH 6.8) | J168: - flow - stirring | K168: Nafion 117 | L168: (CEM) | M168: 0.1 M KHCO3 (pH 6.8) | N168: - flow - stirring | O168: (Liquid-phase reactant, supplied in front) | P168: Graphite rod | Q168: ? | R168: ? | S168: CO2 | T168: -1.0 V vs. Ag/AgCl | U168: -3 mA/cm2 | V168: 60 | X168: J. Wang et al., Grain-Boundary-Engineered La2CuO4 Perovskite Nanobamboos for Efficient CO2 Reduction Reaction. Nano Letters 21, 980-987 (2021). | Y168: 60 | AA168: 0 | AB168: 0 | AC168: 1
A169: 163 | B169: Cu NPs supported on vacuum-calcined (1800 C) UD-90 nanodiamonds from NanoBlox,Inc., on glassy carbon | C169: Supported | D169: Cu, C | E169: Nafion | F169: Catalyst on top of solid substrate (NPS) | G169: Calcined-NanoDiamond/Cu-NPs | H169: (Solution-phase reactant, supplied in front) | I169: 0.1 M KHCO3/CO (pH 8.3) | J169: - flow - stirring | K169: - | L169: (n/a) | M169: 0.1 M KHCO3/CO (pH 8.3) | N169: - flow - stirring | O169: (Liquid-phase reactant, supplied in front) | P169: Pt mesh | Q169: ? | R169: ? | S169: CO2 | T169: -1.8 V vs. RHE | U169: -6 mA/cm2 | V169: 60 | X169: O. Baturina et al., Effect of nanostructured carbon support on copper electrocatalytic activity toward CO2 electroreduction to hydrocarbon fuels. Catal Today 288, 2-10 (2017). | Y169: 60 | AA169: 0 | AB169: 0 | AC169: 1
A170: 164 | B170: Honeycomb-like CuO supported on amorphous carbon annealed at 600 °C, on carbon paper | C170: Supported | D170: Cu, O, C | E170: Nafion | F170: Catalyst on top of porous substrate (GDE) | G170: Honeycomb/CuO_NPs | H170: (Solution-phase reactant, supplied in front) | I170: 0.1 M KHCO3 (pH 6.8) | J170: - flow - stirring | K170: Nafion 117 | L170: (CEM) | M170: 0.1 M KHCO3 (pH 6.8) | N170: - flow - stirring | O170: (Liquid-phase reactant, supplied in front) | P170: ? | Q170: ? | R170: ? | S170: CO2 | T170: -1.2 V vs. RHE | U170: -18 mA/cm2 | V170: 60 | X170: L. Zhang, X. Li, L. Chen, C. Zhai, H. Tao, Honeycomb-like CuO@C for electroreduction of carbon dioxide to ethylene. Journal of Colloid and Interface Science 640, 783-790 (2023). | Y170: 60 | AA170: 0 | AB170: 0 | AC170: 1
A171: 165 | B171: Cu-SAC (<1 wt%) on hetero-atom (S) doped C3N4 lamellae, on carbon paper | C171: SAC, supported | D171: Cu, C, N, S | E171: Nafion | F171: Catalyst on top of porous substrate (GDE) | G171: S-C3N4/Cu_SAC | H171: (Solution-phase reactant, supplied in front) | I171: 0.1 M KHCO3 | J171: - flow - stirring | K171: "ion exchange membrane" | L171: ? | M171: 0.1 M KHCO3 | N171: - flow - stirring | O171: (Liquid-phase reactant, forced through surface) | P171: Ni foam | Q171: ? | R171: ? | S171: CO2 | T171: -0.9 V vs. RHE | U171: -20 mA/cm2 | V171: 60 | X171: Y. Shen et al., Enhanced electrochemical CO2-to-ethylene conversion through second-shell coordination on a Cu single-atom catalyst. Journal of Materials Chemistry A 12, 9075-9087 (2024). | Y171: 60 | AA171: 0 | AB171: 0 | AC171: 1
A172: 166 | B172: Sulfur-doped Cu-MOF Cu3(benzene-1,3,5- tricarboxylate)2∙xH2O, on glassy carbon | C172: MOF, supported | D172: Cu, O, S | E172: Nafion | F172: Catalyst on top of solid substrate (NPS) | G172: S-doped/Cu-MOF | H172: (Solution-phase reactant, supplied in front) | I172: 0.1 M KHCO3 (pH 6.8) | J172: - flow - stirring | K172: Nafion 117 | L172: (CEM) | M172: 0.1 M KHCO3 (pH 6.8) | N172: - flow - stirring | O172: (Liquid-phase reactant, supplied in front) | P172: Pt mesh | Q172: ? | R172: ? | S172: CO2 | T172: -1.32 V - iR vs. RHE | U172: -19 mA/cm2 | V172: 60 | X172: C. F. Wen et al., Highly Ethylene-Selective Electrocatalytic CO2 Reduction Enabled by Isolated Cu−S Motifs in Metal–Organic Framework Based Precatalysts. Angewandte Chemie International Edition 61, e202111700 (2022). | Y172: 60 | AA172: 0 | AB172: 0 | AC172: 1
A173: 167 | B173: Polyvinylpyrrolidone-assisted ("P2") self-assembled Cu-based supramolecular polymer MPs, on glassy carbon | C173: Supramolecular | D173: Cu | E173: Nafion | F173: Catalyst on top of solid substrate (NPS) | G173: Cu/supra_MPs | H173: (Solution-phase reactant, supplied in front) | I173: 0.1 M KHCO3 | J173: - flow - stirring | K173: Nafion 117 | L173: (CEM) | M173: 0.1 M KHCO3 | N173: - flow - stirring | O173: (Liquid-phase reactant, supplied in front) | P173: Pt plate | Q173: ? | R173: ? | S173: CO2 | T173: -1.4 V vs. RHE | U173: -29 mA/cm2 | V173: 60 | X173: Wang, C. et al. The regulation of hydrogen bond network promotes highly selective electroreduction of CO2 to C2H4. Applied Catalysis B: Environment and Energy 366, 125006, doi:https://doi.org/10.1016/j.apcatb.2024.125006 (2025). | Y173: 60 | AA173: 0 | AB173: 0 | AC173: 1
A174: 168 | B174: Water-insoluble organosuperbase-modified Cu2O NCs, on GDL | C174: Core/shell (in-)organic | D174: Cu | E174: Nafion, 1,8-bis(dimethylamino) naphthalene | F174: Catalyst on top of porous substrate (GDE) | G174: Supebase/Cu2O-NPs | H174: (Gas-phase reactant, supplied from behind) | I174: 1.0 M KHCO3 | J174: + flow - stirring | K174: Nafion 117 | L174: (CEM) | M174: 1.0 M KHCO3 | N174: + flow - stirring | O174: (Liquid-phase reactant, supplied in front) | P174: Ni foam | Q174: 25 | R174: ? | S174: CO2 | T174: ? | U174: -300 mA/cm2 | V174: 60 | X174: L. Fan et al., Proton sponge promotion of electrochemical CO2 reduction to multi-carbon products. Joule 6, 205-220 (2022). | Y174: 60 | AA174: 0 | AB174: 0 | AC174: 1
A175: 169 | B175: Electroplated Cu (60 s @ 400 mA/cm2) from CuBr2/tartrate/1 M KOH-containing bath with active CO2 flow (though CO also seems to work), with Carbon NP midlayer and graphite toplayer, on Cu-sputtered PTFE GDL (ambiguously reported) | C175: Overlayer | D175: Cu, C | E175: CNPs/Nafion, Graphite/Nafion | F175: Catalyst on top of porous substrate (GDE) | G175: CO2/plated_Cu | H175: (Gas-phase reactant, supplied from behind) | I175: - | J175: (n/a) | K175: Sustainion X37-50 grade 60 | L175: (AEM) | M175: 0.15 M KHCO3 | N175: + flow - stirring | O175: (Liquid-phase reactant, supplied in front) | P175: IrOx/Ti mesh | Q175: ? | R175: ? | S175: CO2 | T175: -3.7 V vs. ANODE | U175: -330 mA/cm2 | V175: 60 | X175: Y. Wang et al., Catalyst synthesis under CO2 electroreduction favours faceting and promotes renewable fuels electrosynthesis. Nature Catalysis, (2019). | Y175: 60 | AA175: 1 | AB175: 0 | AC175: 1
A176: 170 | B176: 25 nm Cu NPs/nafion mix sprayed on top of nafion pre-covered Cu-sputtered PTFE nanowires | C176: Overlayer | D176: Cu | E176: Nafion | F176: Catalyst on top of porous substrate (GDE) | G176: Cu-NPs/Nafion-modified PTFE | H176: (Gas-phase reactant, supplied from behind) | I176: 7.0 M KOH (pH 14.7) | J176: + flow - stirring | K176: Fumasep FAB-PK-130 | L176: (AEM) | M176: 7.0 M KOH (pH 14.7) | N176: + flow - stirring | O176: (Liquid-phase reactant, supplied in front) | P176: Ni foam | Q176: 25 | R176: ? | S176: CO2 | T176: -1.3 V -iR vs. RHE | U176: -800 mA/cm2 | V176: 60 | X176: F. P. G. d. Arquer et al., CO2 electrolysis to multicarbon products at activities greater than 1 A cm-2. Science 367, 661-666 (2020). | Y176: 60 | AA176: 1 | AB176: 0 | AC176: 1
A177: 171 | B177: Electrodeposited Cu(OH)x dendrites (-200 mA/cm2 for 10 min from 0.05 M H2SO4/2.5 M KCl/7 mM CuSO4 bath with poly(Lys, Phe), with active CO2 flow), on Cu-sputtered PTFE GDL | C177: Overlayer | D177: Cu, O | E177: poly(Lys, Phe) | F177: Catalyst on top of porous substrate (GDE) | G177: Electroplated/Amine/Cu(OH)x_dendrites | H177: (Gas-phase reactant, supplied from behind) | I177: 0.05 M H2SO4 + 2.5 M KCl | J177: + flow - stirring | K177: Nafion 117 | L177: (CEM) | M177: 0.05 M H2SO4 | N177: + flow - stirring | O177: (Liquid-phase reactant, supplied in front) | P177: Pt mesh | Q177: ? | R177: ? | S177: CO2 | T177: -2.3 V vs. Ag/AgCl | U177: -200 mA/cm2 | V177: 60 | X177: Y. Cao et al., Surface hydroxide promotes CO2 electrolysis to ethylene in acidic conditions. Nature Communications 14, 2387 (2023). | Y177: 60 | AA177: 0 | AB177: 0 | AC177: 1
A178: 172 | B178: Cu NPs, on GDL | C178: Metallic Cu | D178: Cu | E178: Nafion | F178: Catalyst on top of porous substrate (GDE) | G178: Cu NPs | H178: (Gas-phase reactant, supplied from behind) | I178: 2.5 M Kac (pH 8.6) | J178: - flow + stirring | K178: FAA-3-50 | L178: (AEM) | M178: 2.5 M Kac (pH 8.6) | N178: - flow + stirring | O178: (Liquid-phase reactant, supplied in front) | P178: IrOx/Ti mesh | Q178: ? | R178: ? | S178: CO2 | T178: -0.99 V - iR vs. RHE | U178: -1250 mA/cm2 | V178: 59 | X178: W. Ren, A. Xu, K. Chan, X. Hu, A Cation Concentration Gradient Approach to Tune the Selectivity and Activity of CO2 Electroreduction. Angewandte Chemie International Edition 61, e202214173 (2022). | Y178: 59 | AA178: 0 | AB178: 0 | AC178: 1
A179: 173 | B179: Cu NWs after 15 h synthesis, on GDL | C179: Metallic Cu | D179: Cu | E179: Nafion | F179: Catalyst on top of porous substrate (GDE) | G179: Cu_NWs | H179: (Gas-phase reactant, supplied from behind) | I179: 1.0 M KOH (pH 14) | J179: + flow - stirring | K179: ? | L179: (AEM) | M179: 1.0 M KOH (pH 14) | N179: + flow - stirring | O179: (Liquid-phase reactant, supplied in front) | P179: Pt sheet | Q179: ? | R179: ? | S179: CO2 | T179: -1.08 V vs. RHE | U179: -123 mA/cm2 | V179: 59 | X179: Y. Zhang et al., Selective CO2 Reduction to Ethylene Over a Wide Potential Window by Copper Nanowires with High Density of Defects. Inorganic Chemistry 61, 20666-20673 (2022). | Y179: 59 | AA179: 1 | AB179: 0 | AC179: 1
A180: 174 | B180: Truncated octahedral Cu2O NPs having both {100} and {111} exposed facets supported on Carbon Black, on glassy carbon | C180: Oxide-derived | D180: Cu, O, C | E180: Nafion | F180: Catalyst on top of solid substrate (NPS) | G180: {100}/{111}-rich Cu2O NPs | H180: (Solution-phase reactant, supplied in front) | I180: 0.5 M KHCO3 | J180: - flow - stirring | K180: ? | L180: (AEM) | M180: 0.5 M KHCO3 | N180: - flow - stirring | O180: (Liquid-phase reactant, supplied in front) | P180: Pt | Q180: ? | R180: ? | S180: CO2 | T180: -1.1 V vs. RHE | U180: -23 mA/cm2 | V180: 59 | X180: Y. Gao et al., Cu2O Nanoparticles with Both {100} and {111} Facets for Enhancing the Selectivity and Activity of CO2 Electroreduction to Ethylene. Advanced Science 7, 1902820 (2020). | Y180: 59 | AA180: 0 | AB180: 0 | AC180: 1
A181: 175 | B181: {100}-rich sputtered Cu in presence of gaseous O2, on GDL | C181: Oxide-derived | D181: Cu, O | E181: - | F181: Catalyst on top of porous substrate (GDE) | G181: {100}-rich CuOx-film | H181: (Gas-phase reactant, supplied from behind) | I181: 2.0 M KOH | J181: + flow - stirring | K181: Fumatech FAA-3-PK-75 | L181: (AEM) | M181: 2.0 M KOH | N181: + flow - stirring | O181: (Liquid-phase reactant, forced through surface) | P181: Activated Ni foam | Q181: 25 | R181: ? | S181: CO2 | T181: -0.75 V vs. RHE | U181: -122 mA/cm2 | V181: 59 | X181: G. Zhang et al., Efficient CO2 electroreduction on facet-selective copper films with high conversion rate. Nature Communications 12, 5745 (2021). | Y181: 59 | AA181: 1 | AB181: 0 | AC181: 1
A182: 176 | B182: Multi-shelled ("4.4") Cu2O spheres, on a GDL | C182: Oxide-derived | D182: Cu, O | E182: Nafion | F182: Catalyst on top of porous substrate (GDE) | G182: Shelled/Cu2O_NPs | H182: (Gas-phase reactant, supplied from behind) | I182: 1 M KOH (pH 14) | J182: + flow - stirring | K182: ? | L182: (AEM) | M182: 1 M KOH (pH 14) | N182: + flow - stirring | O182: (Liquid-phase reactant, supplied in front) | P182: Ni foam | Q182: ? | R182: ? | S182: CO2 | T182: -0.85 V - iR vs. RHE | U182: -900 mA/cm2 | V182: 59 | X182: Y. Xiao et al., Multi-Shell Copper Catalysts for Selective Electroreduction of CO2 to Multicarbon Chemicals. Advanced Energy Materials 14, 2302556 (2024). | Y182: 59 | AA182: 1 | AB182: 0 | AC182: 1
A183: 177 | B183: Cu-metal/CuOx co-catalyst NPs with intimate interfacial contact, on carbon paper | C183: Oxide-derived | D183: Cu, O | E183: Nafion | F183: Catalyst on top of porous substrate (GDE) | G183: CuOx/Cu_NPs | H183: (Solution-phase reactant, supplied in front) | I183: 0.1 M KHCO3 | J183: - flow - stirring | K183: Nafion 117 | L183: (CEM) | M183: 0.1 M KHCO3 | N183: - flow - stirring | O183: (Liquid-phase reactant, supplied in front) | P183: "Carbon bot" (= rod?) | Q183: ? | R183: ? | S183: CO2 | T183: -1.0 V vs. RHE | U183: -15 mA/cm2 | V183: 59 | X183: Liu, H. et al. Bottom-up Growth of Convex Sphere with Adjustable Cu(0)/Cu(I) Interfaces for Effective C2 Production from CO2 Electroreduction. Angewandte Chemie International Edition 63, e202404123, doi:https://doi.org/10.1002/anie.202404123 (2024). | Y183: 59 | AA183: 0 | AB183: 0 | AC183: 1
A184: 178 | B184: Highly tensile strained Cu(100) NCs with boron nitride shell grown on top, mixed with CNPs and PTFE, on Cu-sputtered PTFE GDL | C184: Core/shell | D184: Cu, B, N | E184: Nafion, PTFE | F184: Catalyst on top of porous substrate (GDE) | G184: PTFE-CNP/BN-shell_Cu_NC-core | H184: (Gas-phase reactant, supplied from behind) | I184: 3.0 M KCl ("pH = 1", according to paper) | J184: + flow - stirring | K184: Nafion 117 | L184: (CEM) | M184: 0.5 M H2SO4 | N184: + flow - stirring | O184: (Liquid-phase reactant, supplied in front) | P184: IrO2 | Q184: ? | R184: ? | S184: CO2 | T184: -2.75 V vs. RHE | U184: -1200 mA/cm2 | V184: 59 | X184: Liu, Q. et al. Highly Tensile Strained Cu(100) Surfaces by Epitaxial Grown Hexagonal Boron Nitride for CO2 Electroreduction to C2+ Products. Nano Letters 24, 13741-13746, doi:10.1021/acs.nanolett.4c03863 (2024). | Y184: 59 | AA184: 0 | AB184: 0 | AC184: 1
A185: 179 | B185: Mg-doped CuOx NPs, on carbon paper | C185: Alloyed/Doped | D185: Cu, Mg, O | E185: Nafion | F185: Catalyst on top of porous substrate (GDE) | G185: Mg/CuOx_NPs | H185: (Solution-phase reactant, supplied in front) | I185: 1.0 M KOH | J185: + flow - stirring | K185: Nafion 117 | L185: (CEM) | M185: 1.0 M KOH | N185: + flow - stirring | O185: (Liquid-phase reactant, supplied in front) | P185: Pt sheet | Q185: ? | R185: ? | S185: CO2 | T185: -1.07 V vs. RHE | U185: -700 mA/cm2 | V185: 59 | X185: Ji, Q. et al. Establishing Active Cu+–O–Mg2+ Sites at the Cu2O/CuO Interface for Efficient Electroreduction of CO2 to C2+ Products. ACS Materials Letters, 333-342, doi:10.1021/acsmaterialslett.4c02319 (2024). | Y185: 59 | AA185: 1 | AB185: 0 | AC185: 1
A186: 180 | B186: Nanosheet arrays containing homogeneously mixed Zn & Cu domains (Cu:Zn ratio of 24:76 via XPS), on Cu foam | C186: Bi-phasic/Janus | D186: Cu, Zn | E186: - | F186: Catalyst inside porous substrate (PTL) | G186: Zn/Cu_NSs | H186: (Solution-phase reactant, supplied in front) | I186: 0.5 M KHCO3 | J186: - flow - stirring | K186: Nafion 211 | L186: (CEM) | M186: 0.5 M KHCO3 | N186: - flow - stirring | O186: ? | P186: ? | Q186: 25 | R186: 1 | S186: CO2 | T186: -1.14 V vs. RHE | U186: -150 mA/cm2 | V186: 59 | X186: X. Zhang et al., Regulating ethane and ethylene synthesis by proton corridor microenvironment for CO2 electrolysis. Journal of Energy Chemistry 87, 368-377 (2023). | Y186: 59 | AA186: 0 | AB186: 0 | AC186: 1
A187: 181 | B187: Ni electroplated on Cu NW array-modified GDL | C187: Mixed-phase/Janus, overlayer | D187: Cu, Ni | E187: - | F187: Catalyst on top of porous substrate (GDE) | G187: Ni/CuO_NWs | H187: (Gas-phase reactant, supplied from behind) | I187: 1.0 M KOH | J187: + flow - stirring | K187: 3PK-130 | L187: (AEM) | M187: 1.0 M KOH | N187: + flow - stirring | O187: (Liquid-phase reactant, supplied in front) | P187: IrO2 mesh | Q187: 25 | R187: ? | S187: CO2 | T187: -1.1 V -iR vs. RHE | U187: -432 mA/cm2 | V187: 59 | X187: Xu, K. et al. Nanowire arrays with abundant Cu–Ni interfaces for electroreduction of CO2 to ethylene. Chemical Engineering Journal 498, 155831, doi:https://doi.org/10.1016/j.cej.2024.155831 (2024). | Y187: 59 | AA187: 1 | AB187: 0 | AC187: 1
A188: 182 | B188: In-situ decomposed La2CuO4 NPs, mixed with CNPs, on glassy carbon | C188: Core/shell, mixed-phase/janus | D188: Cu, La, C, O | E188: Nafion | F188: Catalyst on top of solid substrate (NPS) | G188: La2(CO3)3/La2CuO4_NPs | H188: (Solution-phase reactant, supplied in front) | I188: 0.1 M KHCO3 (pH 6.8) | J188: - flow - stirring | K188: Nafion 117 | L188: (CEM) | M188: 0.1 M KHCO3 (pH 6.8) | N188: - flow - stirring | O188: (Liquid-phase reactant, supplied in front) | P188: Pt foil | Q188: ? | R188: ? | S188: CO2 | T188: -1.3 V vs. RHE | U188: -8 mA/cm2 | V188: 59 | X188: Sha, Y. et al. Surface Reconstruction of La2CuO4 during the Electrochemical Reduction of Carbon Dioxide to Ethylene and Its Benefits for Enhanced Performance. ACS Applied Materials & Interfaces 16, 31036-31044, doi:10.1021/acsami.4c00747 (2024). | Y188: 59 | AA188: 0 | AB188: 0 | AC188: 1
A189: 183 | B189: Electroplated Cu on top of polyaniline pre-functionalized carbon paper | C189: Overlayer | D189: Cu | E189: Polyaniline | F189: Catalyst on top of porous substrate (GDE) | G189: N-polymer/Cu#3 | H189: (Solution-phase reactant, supplied in front) | I189: 0.1 M KCl | J189: - flow - stirring | K189: Nafion 117 | L189: (CEM) | M189: 0.1 M KCl | N189: - flow - stirring | O189: (Liquid-phase reactant, supplied in front) | P189: Pt gauze | Q189: 25 | R189: ? | S189: CO2 | T189: -1.2 V -iR vs. RHE | U189: -30 mA/cm2 | V189: 59 | X189: S. Jia et al., Hierarchical Metal–Polymer Hybrids for Enhanced CO2 Electroreduction. Angewandte Chemie International Edition 60, 10977-10982 (2021). | Y189: 59 | AA189: 0 | AB189: 0 | AC189: 1
A190: 184 | B190: Ultrasonically detached N2 atmosphere/high current density-electroplated Cu dendrites, on GDL | C190: Metallic Cu | D190: Cu | E190: Nafion | F190: Catalyst on top of porous substrate (GDE) | G190: N2/Cu_dendrites | H190: (Gas-phase reactant, supplied from behind) | I190: - | J190: (n/a) | K190: X37–50 Grade 60 | L190: (AEM) | M190: 0.1 M KHCO3 (pH 6.8) | N190: + flow - stirring | O190: (Liquid-phase reactant, supplied in front) | P190: IrO2/Ti mesh | Q190: ? | R190: ? | S190: CO2 | T190: -1.0 V vs. RHE | U190: -134 mA/cm2 | V190: 58 | X190: Z. Gu et al., Efficient Electrocatalytic CO2 Reduction to C2+ Alcohols at Defect-Site-Rich Cu Surface. Joule 5, 429-440 (2021). | Y190: 58 | AA190: 1 | AB190: 0 | AC190: 1
A191: 185 | B191: Electroreduced KOH-derived Cu(OH)2 nanorods on Cu-sputtered carbon paper | C191: Oxide-derived | D191: Cu, O | E191: - | F191: Catalyst on top of porous substrate (GDE) | G191: Cu(OH)2-derived Cu-CP | H191: (Gas-phase reactant, supplied from behind) | I191: 1.0 M KOH (pH 14) | J191: + flow - stirring | K191: ? | L191: (AEM) | M191: 1.0 M KOH (pH 14) | N191: + flow - stirring | O191: (Liquid-phase reactant, supplied in front) | P191: NiFe-LDH/Ni foam | Q191: ? | R191: ? | S191: CO2 | T191: -0.54 V - iR vs. RHE | U191: -250 mA/cm2 | V191: 58 | X191: D. Zhong et al., Coupling of Cu(100) and (110) Facets Promotes Carbon Dioxide Conversion to Hydrocarbons and Alcohols. Angewandte Chemie International Edition 60, 4879-4885 (2021). | Y191: 58 | AA191: 1 | AB191: 0 | AC191: 1
A192: 186 | B192: Porous/partially hollow core/shell Cu2O microparticles, on GDL | C192: Oxide-derived | D192: Cu, O | E192: Nafion | F192: Catalyst on top of porous substrate (GDE) | G192: Core/shell_Cu2O-micro | H192: (Gas-phase reactant, supplied from behind) | I192: 2.0 M KOH | J192: + flow - stirring | K192: Fumasep FAA-PK-130 | L192: (AEM) | M192: 2.0 M KOH | N192: + flow - stirring | O192: (Liquid-phase reactant, supplied in front) | P192: Pt sheet | Q192: ? | R192: ? | S192: CO2 | T192: -1.1 V - iR vs. RHE | U192: -260 mA/cm2 | V192: 58 | X192: J. Lu et al., Nanoconfinement Effects of Yolk–Shell Cu2O Catalyst for Improved C2+ Selectivity and Cu+ Stability in Electrocatalytic CO2 Reduction. ACS Applied Nano Materials 6, 20746-20756 (2023). | Y192: 58 | AA192: 1 | AB192: 0 | AC192: 1
A193: 187 | B193: O2-driven oxidized Cu NWs, on glassy carbon | C193: Oxide-derived | D193: Cu, O | E193: Nafion | F193: Catalyst on top of solid substrate (NPS) | G193: H2O2/CuOx-NWs | H193: (Gas-phase reactant, supplied from behind) | I193: 0.1 M KHCO3 (pH 6.8) | J193: - flow + stirring | K193: Nafion 117 | L193: (CEM) | M193: 0.5 M KHCO3 | N193: - flow + stirring | O193: (Liquid-phase reactant, supplied in front) | P193: Pt mesh | Q193: ? | R193: ? | S193: CO2 | T193: -1.03 V - iR vs. RHE | U193: -34 mA/cm2 | V193: 58 | X193: Z. Lyu et al., Controlling the Surface Oxidation of Cu Nanowires Improves Their Catalytic Selectivity and Stability toward C2+ Products in CO2 Reduction. Angewandte Chemie International Edition 60, 1909-1915 (2021). | Y193: 58 | AA193: 0 | AB193: 0 | AC193: 1
A194: 188 | B194: {111}/{100} grain boundary-rich hexagonal-polyhedral Cu2O MPs (ca. 2 μm), on carbon paper | C194: Oxide-derived | D194: Cu, O | E194: Nafion | F194: Catalyst on top of porous substrate (GDE) | G194: Cu2O_MPs | H194: (Solution-phase reactant, supplied in front) | I194: 0.2 M KI | J194: - flow - stirring | K194: Nafion 117 | L194: (CEM) | M194: 0.2 M KI | N194: - flow - stirring | O194: (Liquid-phase reactant, supplied in front) | P194: Pt sheet | Q194: ? | R194: ? | S194: CO2 | T194: -1.3 V vs. RHE | U194: -25 mA/cm2 | V194: 58 | X194: Z.-x. Yang et al., Facilitating CO2 electroreduction to C2H4 through facile regulating {100} & {111} grain boundary of Cu2O. Catalysis Communications 174, 106595 (2023). | Y194: 58 | AA194: 0 | AB194: 0 | AC194: 1
A195: 189 | B195: Crystalline CuO NPs embedded in amorphous CuO nanoflakes, on glassy carbon | C195: Oxide-derived | D195: Cu, O | E195: Nafion | F195: Catalyst on top of solid substrate (NPS) | G195: Semi-amorphous/CuO_NSs | H195: (Solution-phase reactant, supplied in front) | I195: 0.5 M KHCO3 | J195: - flow - stirring | K195: Nafion 115 | L195: (CEM) | M195: 0.5 M KHCO3 | N195: - flow - stirring | O195: (Liquid-phase reactant, supplied in front) | P195: Pt foil | Q195: ? | R195: ? | S195: CO2 | T195: -1.08 V vs. RHE | U195: -16 mA/cm2 | V195: 58 | X195: D. Zhao et al., Amorphous-Confined Crystalline CuO Nanoflakes for Enhanced Ethylene Production from CO2 Electroreduction. ChemCatChem 15, e202201413 (2023). | Y195: 58 | AA195: 0 | AB195: 0 | AC195: 1
A196: 190 | B196: Cu2(OH)2CO3 MPs with amorphous layer induced by 15 min microwave treatment, on carbon paper | C196: Oxide-derived | D196: Cu, O | E196: Nafion | F196: Catalyst on top of porous substrate (GDE) | G196: Amorph/Cu2(OH)2CO3_MPs | H196: (Gas-phase reactant, supplied from behind) | I196: 1.0 M KOH | J196: + flow - stirring | K196: FAA-3- PK-130 | L196: (AEM) | M196: 1.0 M KOH | N196: + flow - stirring | O196: (Liquid-phase reactant, supplied in front) | P196: "Pt plat" (= plate?) | Q196: 25 | R196: ? | S196: CO2 | T196: -2.0 V vs. RHE | U196: -317 mA/cm2 | V196: 58 | X196: Wang, J. et al. Microwave-induced surface amorphization of Cu2(OH)2CO3 catalyst promotes multi-carbon products selectivity of CO2 electroreduction. Science China Chemistry, doi:10.1007/s11426-024-2326-7 (2024). | Y196: 58 | AA196: 1 | AB196: 0 | AC196: 1
A197: 191 | B197: Water-optimized CO2 feed reduction on Cu2O/Cu co-catalyst NPs derived from Cu2O/CuO precursor, on a GDL | C197: Oxide-derived | D197: Cu, O | E197: Nafion, quaternary ammonia polysulphone (aQAPS-S14) | F197: Catalyst on top of porous substrate (GDE) | G197: aQAPS-S14/CuOx_NPs | H197: (Gas-phase reactant, supplied from behind) | I197: - | J197: (n/a) | K197: QAPPT | L197: (AEM) | M197: 0.1 M KHCO3 | N197: + flow - stirring | O197: (Liquid-phase reactant, supplied in front) | P197: IrOx/Ti mesh | Q197: 25 | R197: 1 | S197: CO2 | T197: -3.8 V vs. RHE | U197: -1000 mA/cm2 | V197: 58 | X197: He, X. et al. Roles of copper(I) in water-promoted CO2 electrolysis to multi-carbon compounds. Nature Communications 15, 9923, doi:10.1038/s41467-024-54282-2 (2024). | Y197: 58 | AA197: 1 | AB197: 0 | AC197: 1
A198: 192 | B198: Oxygen-vacancy rich B-doped CuO ‘nanobundles’ (nanowires + nanosheets), on carbon paper | C198: Alloyed/Doped | D198: Cu, O, B | E198: Nafion | F198: Catalyst on top of porous substrate (GDE) | G198: B/CuOx_NSs | H198: (Solution-phase reactant, supplied in front) | I198: 0.1 M KHCO3 (pH 6.8) | J198: - flow - stirring | K198: Nafion 117 | L198: (CEM) | M198: 0.1 M KHCO3 (pH 6.8) | N198: - flow - stirring | O198: (Liquid-phase reactant, supplied in front) | P198: Pt gauze | Q198: 25 | R198: 1 | S198: CO2 | T198: -1.1 V vs. RHE | U198: -20 mA/cm2 | V198: 58 | X198: Q. Wan et al., Boron-doped CuO nanobundles for electroreduction of carbon dioxide to ethylene. Green Chemistry 22, 2750-2754 (2020). | Y198: 58 | AA198: 0 | AB198: 0 | AC198: 1
A199: 193 | B199: Ni-doped (1.2 at.%) self-supporting Cu2O NWs arrays on Cu mesh substrate | C199: Mixed-phase/Janus, A-supports-B | D199: Cu, Ni, O | E199: - | F199: Catalyst on top of solid substrate (NPS) | G199: Ni/Cu2O_NWs | H199: (Solution-phase reactant, supplied in front) | I199: 0.5 M KCl | J199: - flow - stirring | K199: Nafion 117 | L199: (CEM) | M199: 0.5 M KHCO3 | N199: - flow - stirring | O199: (Liquid-phase reactant, supplied in front) | P199: Pt foil | Q199: ? | R199: ? | S199: CO2 | T199: -1.1 V -iR vs. RHE | U199: -65 mA/cm2 | V199: 58 | X199: S. Min et al., Transition metal (Fe, Co, Ni)-doped cuprous oxide nanowire arrays as self-supporting catalysts for electrocatalytic CO2 reduction reaction to ethylene. Applied Surface Science 663, 160150 (2024). | Y199: =_xlfn.NUMBERVALUE(LEFT(V199,2)) -> 58 | AA199: 0 | AB199: 0 | AC199: 1
A200: 194 | B200: Cu2O NCs supported on cobalt phthalocyanine-modified-acetylene black, on glassy carbon | C200: A-supports-B, Mixed-phase/Janus | D200: Cu, Co, C | E200: Nafion | F200: Catalyst on top of solid substrate (NPS) | G200: Co-AcB/Cu2O_NCs | H200: (Solution-phase reactant, supplied in front) | I200: 0.1 M KHCO3 | J200: - flow + stirring | K200: Nafion 117 | L200: (CEM) | M200: 0.1 M KHCO3 | N200: - flow - stirring | O200: (Liquid-phase reactant, supplied in front) | P200: Pt mesh | Q200: ? | R200: ? | S200: CO2 | T200: -1.1 V - iR vs. RHE | U200: -51 mA/cm2 | V200: 58 | X200: J. Liu et al., Integration of Cobalt Phthalocyanine, Acetylene Black and Cu2O Nanocubes for Efficient Electroreduction of CO2 to C2H4. ChemSusChem 16, e202300601 (2023). | Y200: 58 | AA200: =_xlfn.LET(_xlpm.CO_2,IF(S200="CO2",1,0),_xlpm.AEM_dry,INT(AND(IF(J200="(n/a)",1,0),IF(L200="(AEM)",1,0))), _xlpm.alk_electrolyte,IF(SUM(IFERROR(FIND("KOH",I200),0),IFERROR(FIND("NaOH",I200),0),IFERROR(FIND("CsOH",I200),0), IFERROR(FIND("LiOH",I200),0), IFERROR(FIND("RbOH",I200),0))>0,1,0),_xlpm.alkaline,OR(_xlpm.AEM_dry,_xlpm.alk_electrolyte),_xlpm.rslt,INT(AND(_xlpm.CO_2,_xlpm.alkaline)),_xlpm.rslt) -> 0 | AB200: =IF(S200="CO",1,0) -> 0 | AC200: =IF(_xlfn.NUMBERVALUE(LEFT(V200,2))>=55,1,0) -> 1
A201: =A200+1 -> 195 | B201: Cu NWs decorated with Co-TMC (phthalocyanine, mass ratio of 100:1 Cu/Co-TMC), on GDL | C201: Core/shell, A-supports-B | D201: Cu, Co | E201: Nafion | F201: Catalyst on top of porous substrate (GDE) | G201: Co-TMC/CuOx_NWs2 | H201: (Gas-phase reactant, supplied from behind) | I201: 1.0 M KOH | J201: + flow - stirring | K201: ? | L201: (AEM) | M201: 1.0 M KOH | N201: + flow - stirring | O201: (Liquid-phase reactant, supplied in front) | P201: Pt slice | Q201: 25 | R201: 1 | S201: CO2 | T201: -1.4 V vs. RHE | U201: -350 mA/cm2 | V201: 58 | X201: Y. Luo et al., Cobalt phthalocyanine promoted copper catalysts toward enhanced electro reduction of CO2 to C2: Synergistic catalysis or tandem catalysis? Journal of Energy Chemistry 92, 499-507 (2024). | Y201: 58 | AA201: 1 | AB201: 0 | AC201: 1
A202: 196 | B202: In-situ reduced Cu2CO3(OH)2/AgCl/C composite pre-catalyts (1.28 at.% Ag), on carbon paper | C202: Mixed-phase/Janus | D202: Cu, Ag, C | E202: Nafion | F202: Catalyst on top of porous substrate (GDE) | G202: Ag/C/CuOx | H202: (Gas-phase reactant, supplied from behind) | I202: 1.0 M KOH (pH 14) | J202: + flow - stirring | K202: "Selemion" | L202: (AEM) | M202: 1.0 M KOH (pH 14) | N202: + flow - stirring | O202: (Liquid-phase reactant, forced through surface) | P202: Ni foam | Q202: 25 | R202: ? | S202: CO2 | T202: -0.85 V -iR vs. RHE | U202: -85†_Cu-Ag,1 mA/cm2 | V202: 58 | X202: Duan, H. et al. In-situ electrochemical interface of Cu@Ag/C towards the ethylene electrosynthesis with adequate *CO supply. Journal of Energy Chemistry 99, 292-299, doi:https://doi.org/10.1016/j.jechem.2024.07.047 (2024). | Y202: 58 | AA202: 1 | AB202: 0 | AC202: 1
A203: 197 | B203: CeO2 NPs supported on CuO NSs, on glassy carbon | C203: Mixed-phase/Janus, A-supports-B | D203: Cu, Ce, O | E203: Nafion | F203: Catalyst on top of solid substrate (NPS) | G203: CeO2/CuO_NSs | H203: (Solution-phase reactant, supplied in front) | I203: 0.1 M KCl | J203: - flow - stirring | K203: - | L203: (n/a) | M203: 0.1 M KCl | N203: - flow - stirring | O203: (Liquid-phase reactant, supplied in front) | P203: Pt sheet | Q203: ? | R203: ? | S203: CO2 | T203: -1.25 V vs. RHE | U203: -8 mA/cm2 | V203: 58 | X203: Chang, F. et al. Synergistic modulation of valence state and oxygen vacancy induced by surface reconstruction of the CeO2/CuO catalyst toward enhanced electrochemical CO2 reduction. Carbon Energy n/a, e588, doi:https://doi.org/10.1002/cey2.588. | Y203: 58 | AA203: 0 | AB203: 0 | AC203: 1
A204: 198 | B204: Cu8Zn6Mn alloy (89.3:1.53:3.92 at. %) NPs, on GDL | C204: Alloyed/Doped | D204: Cu, Mn, Zn | E204: Nafion | F204: Catalyst on top of porous substrate (GDE) | G204: Mn/Cu_NPs | H204: (Gas-phase reactant, supplied from behind) | I204: 1.0 M KOH (pH 14) | J204: + flow - stirring | K204: X37-50 Grade T | L204: (AEM) | M204: 1.0 M KOH (pH 14) | N204: + flow - stirring | O204: (Gas-phase reactant, forced through surface) | P204: Ni foam | Q204: 25 | R204: 1 | S204: CO2 | T204: -1.4 V vs. RHE | U204: -758 mA/cm2 | V204: 58 | X204: Y. Chen et al., Tailoring the *CO and *H Coverage for Selective CO2 Electroreduction to CH4 or C2H4. Small n/a, 2308004. | Y204: 58 | AA204: 1 | AB204: 0 | AC204: 1
... 700 more rows

Sheet TOP-paper
A1: Table S1. Top-performing catalysts | AA1: Calculations
A2: Index | B2: Electromaterial description | C2: Catalyst type | D2: Majority elements | E2: Polymeric / (in-) organic additives | F2: Electrode "type" | G2: Catalyst shorthand (cathode) | H2: Reactant + supply mode (cathode) | I2: Catholyte | J2: Catholyte agitation | K2: Membrane | L2: Membrane type | M2: Anolyte | N2: Anolyte agitation | O2: Reactant + supply mode (anode) | P2: Catalyst shorthand (anode) | Q2: Temperature | R2: Pressure | S2: Reactant | T2: E | U2: j | V2: FE C2H4 (max) | W2: Reference | X2: Reference | AA2: Alkaline + CO2 | AB2: CORR | AC2: ≥ 55 % FE
A7: =1 -> 1 | B7: 50 μm Cu-exchanged stannosilicate UZAR-S3 'mixed matrix membrane' toplayer, on a PVA/Chitosan midlayer, on a commercial 70 nm Cu NPs with chitosan bio-based polymeric binder underlayer, on Toray TGP-H-60 GDL (exact conditions ambiguously reported) | C7: Overlayer | D7: Cu | E7: Chitosan, Cu exchanged stannosilicate UZAR-S3, polyvinylalcohol | F7: Catalyst on top of porous substrate (GDE) | G7: Complex-overlayer/Cu_NPs | H7: (Gas-phase reactant, supplied from behind) | I7: - | J7: (n/a) | K7: Sustainion X-37 50 grade | L7: (AEM) | M7: 1.0 M KOH (pH 14) | N7: + flow - stirring | O7: (Liquid-phase reactant, supplied in front) | P7: Pt plate | Q7: 25 | R7: 1 | S7: CO2 | T7: -0.87 V vs. RHE | U7: -10 mA/cm2 | V7: 98 | X7: A. Marcos-Madrazo, C. Casado-Coterillo, J. Iniesta, A. Irabien, Use of Chitosan as Copper Binder in the Continuous Electrochemical Reduction of CO2 to Ethylene in Alkaline Medium. Membranes 12, 783 (2022). | Y7: =_xlfn.NUMBERVALUE(LEFT(V7,2)) -> 98 | AA7: =_xlfn.LET(_xlpm.CO_2,IF(S7="CO2",1,0),_xlpm.AEM_dry,INT(AND(IF(J7="(n/a)",1,0),IF(L7="(AEM)",1,0))), _xlpm.alk_electrolyte,IF(SUM(IFERROR(FIND("KOH",I7),0),IFERROR(FIND("NaOH",I7),0),IFERROR(FIND("CsOH",I7),0), IFERROR(FIND("LiOH",I7),0), IFERROR(FIND("RbOH",I7),0))>0,1,0),_xlpm.alkaline,OR(_xlpm.AEM_dry,_xlpm.alk_electrolyte),_xlpm.rslt,INT(AND(_xlpm.CO_2,_xlpm.alkaline)),_xlpm.rslt) -> 1 | AB7: =IF(S7="CO",1,0) -> 0 | AC7: =IF(_xlfn.NUMBERVALUE(LEFT(V7,2))>=55,1,0) -> 1 | AE7: Range
A8: =A7+1 -> 2 | B8: Commercial 70 nm Cu NPs with chitosan bio-based polymeric binder, on Toray TGP-H-60 GDL | C8: Metallic Cu | D8: Cu | E8: Chitosan | F8: Catalyst on top of porous substrate (GDE) | G8: Chitosan/Cu_NPs | H8: (Gas-phase reactant, supplied from behind) | I8: - | J8: (n/a) | K8: Sustainion X-37 50 grade | L8: (AEM) | M8: 1.0 M KOH (pH 14) | N8: + flow - stirring | O8: (Liquid-phase reactant, supplied in front) | P8: Pt plate | Q8: 25 | R8: 1 | S8: CO2 | T8: -0.53 V vs. RHE | U8: -10 mA/cm2 | V8: 94 | X8: A. Marcos-Madrazo, C. Casado-Coterillo, J. Iniesta, A. Irabien, Use of Chitosan as Copper Binder in the Continuous Electrochemical Reduction of CO2 to Ethylene in Alkaline Medium. Membranes 12, 783 (2022). | Y8: 94 | AA8: =_xlfn.LET(_xlpm.CO_2,IF(S8="CO2",1,0),_xlpm.AEM_dry,INT(AND(IF(J8="(n/a)",1,0),IF(L8="(AEM)",1,0))), _xlpm.alk_electrolyte,IF(SUM(IFERROR(FIND("KOH",I8),0),IFERROR(FIND("NaOH",I8),0),IFERROR(FIND("CsOH",I8),0), IFERROR(FIND("LiOH",I8),0), IFERROR(FIND("RbOH",I8),0))>0,1,0),_xlpm.alkaline,OR(_xlpm.AEM_dry,_xlpm.alk_electrolyte),_xlpm.rslt,INT(AND(_xlpm.CO_2,_xlpm.alkaline)),_xlpm.rslt) -> 1 | AB8: =IF(S8="CO",1,0) -> 0 | AC8: =IF(_xlfn.NUMBERVALUE(LEFT(V8,2))>=55,1,0) -> 1 | AE8: =_xlfn.LET(_xlpm.range,AA7:AA74,_xlpm.start,CELL("address",_xlpm.range),_xlpm.end,CELL("address",OFFSET(INDIRECT(_xlpm.start),ROWS(_xlpm.range)-1,0)),_xlpm.start&":"&_xlpm.end) -> $AA$7:$AA$74
A9: =A8+1 -> 3 | B9: Commercial Cu NPs (25 nm), on a GDL with custom MPL, hotpressed onto a Nafion membrane | C9: Metallic Cu | D9: Cu | E9: Nafion | F9: Catalyst on top of porous substrate (GDE) | G9: Commercial/Cu_NPs | H9: (Gas-phase reactant, supplied from behind) | I9: - | J9: (n/a) | K9: Nafion 117 | L9: (CEM) | M9: 0.1 M KHCO3 | N9: - flow - stirring | O9: (Liquid-phase reactant, supplied in front) | P9: DSA | Q9: 25 | R9: 1 | S9: CO2 | T9: -1.7 V vs. Ag/AgCl | U9: -7.5 mA/cm2 | V9: 93 | X9: I. Merino-Garcia, J. Albo, A. Irabien, Tailoring gas-phase CO2 electroreduction selectivity to hydrocarbons at Cu nanoparticles. Nanotechnology 29, 014001 (2018). | Y9: 93 | AA9: 0 | AB9: 0 | AC9: 1
A10: 4 | B10: CuOx supported on ZnO , on carbon paper (TGP-H-60) | C10: Mixed-phase/Janus, A-supports-B | D10: Cu, Zn, O | E10: Nafion | F10: Catalyst on top of porous substrate (GDE) | G10: ZnO-supported/CuOx_NPs | H10: (Gas-phase reactant, supplied from behind) | I10: - | J10: (n/a) | K10: Nafion 117 | L10: (CEM) | M10: 0.1 M KHCO3 (pH 6.8) | N10: + flow - stirring | O10: (Liquid-phase reactant, forced through surface) | P10: Platinized Ti | Q10: 25 | R10: 1 | S10: CO2 | T10: -2.5 V vs. Ag/AgCl | U10: -7.5 mA/cm2 | V10: 91 | X10: I. Merino-Garcia, J. Albo, J. Solla-Gullón, V. Montiel, A. Irabien, Cu oxide/ZnO-based surfaces for a selective ethylene production from gas-phase CO2 electroconversion. Journal of CO2 Utilization 31, 135-142 (2019). | Y10: 91 | AA10: 0 | AB10: 0 | AC10: 1 | AE10: Unique papers
A11: 5 | B11: Nafion overlayer covering a catalyst layer comprised of electroplated Cu modified via grafting an aryl diazonium-based polymeric coating, on GDL | C11: Overlayer | D11: Cu, O | E11: Nafion, Aryl diazonium-based polymer | F11: Catalyst on top of porous substrate (GDE) | G11: Diazonium/CuOx | H11: (Gas-phase reactant, supplied from behind) | I11: - | J11: (n/a) | K11: Sustainion X37-50 | L11: (AEM) | M11: 0.5 M KHCO3 | N11: + flow - stirring | O11: (Liquid-phase reactant, supplied in front) | P11: IrOx/Ti | Q11: 25 | R11: 1 | S11: CO2 | T11: -3.85 V vs. ANODE | U11: -602 mA/cm2 | V11: 89 | X11: H. Wu et al., Selective and energy-efficient electrosynthesis of ethylene from CO2 by tuning the valence of Cu catalysts through aryl diazonium functionalization. Nature Energy, (2024). | Y11: 89 | AA11: 1 | AB11: 0 | AC11: 1 | AE11: =_xlfn.LET(_xlpm.ref_range,INDIRECT(AE8),_xlpm.range,OFFSET(_xlpm.ref_range,0,-3),COUNTA(_xlfn._xlws.FILTER(_xlfn.UNIQUE(_xlpm.range,,FALSE),LEN(_xlfn.UNIQUE(_xlpm.range,,FALSE))>10))) -> 58
A12: 6 | B12: Poly-N-(6-aminohexyl)acrylamide-coated electrodeposited Cu dendrites on GDL | C12: Overlayer | D12: Cu | E12: Poly-N-(6-aminohexyl)acrylamide | F12: Catalyst on top of porous substrate (GDE) | G12: N-polymer/Cu#2-GDE | H12: (Gas-phase reactant, supplied from behind) | I12: 10 M KOH | J12: + flow - stirring | K12: ? | L12: (n/a) | M12: 10 M KOH | N12: + flow - stirring | O12: (Liquid-phase reactant, supplied in front) | P12: ? | Q12: ? | R12: ? | S12: CO2 | T12: -0.47 V -iR vs. RHE | U12: ? | V12: 87 | X12: X. Chen et al., Electrochemical CO2-to-ethylene conversion on polyamine-incorporated Cu electrodes. Nature Catalysis 4, 20-27 (2021). | Y12: 87 | AA12: 1 | AB12: 0 | AC12: 1
A13: 7 | B13: Template-assisted electroplated nanoporous (20 nm pore diameter) CuOx overlayer on Cu foam | C13: Oxide-derived | D13: Cu, O | E13: - | F13: Catalyst on top of porous substrate (GDE) | G13: CuOx_mesoporous | H13: (Gas-phase reactant, supplied from behind) | I13: - | J13: (n/a) | K13: X37-50 Grade 60 | L13: (AEM) | M13: 0.1 M KHCO3 | N13: + flow - stirring | O13: (Liquid-phase reactant, forced through surface) | P13: NiFe/Ni foam | Q13: 25 | R13: ? | S13: CO2 | T13: -3.0 V vs. ANODE | U13: -368 mA/cm2 | V13: 86 | X13: J. Han et al., Structuring Cu Membrane Electrode for Maximizing Ethylene Yield from CO2 Electroreduction. Advanced Materials n/a, 2313926. | Y13: 86 | AA13: 1 | AB13: 0 | AC13: 1 | AE13: Catalyst systems
A14: 8 | B14: Electroplated Cu modified via grafting an aryl diazonium-based polymeric coating (without Nafion toplayer), on GDL | C14: Core/shell (in-)organic | D14: Cu, O | E14: Aryl diazonium-based polymer | F14: Catalyst on top of porous substrate (GDE) | G14: Diazonium/CuOx | H14: (Gas-phase reactant, supplied from behind) | I14: - | J14: (n/a) | K14: Sustainion X37-50 | L14: (AEM) | M14: 0.5 M KHCO3 | N14: + flow - stirring | O14: (Liquid-phase reactant, supplied in front) | P14: IrOx/Ti | Q14: 25 | R14: 1 | S14: CO | T14: -2.5 V vs. ANODE | U14: -179 mA/cm2 | V14: 86 | X14: H. Wu et al., Selective and energy-efficient electrosynthesis of ethylene from CO2 by tuning the valence of Cu catalysts through aryl diazonium functionalization. Nature Energy, (2024). | Y14: 86 | AA14: 0 | AB14: 1 | AC14: 1 | AE14: =_xlfn.LET(_xlpm.ref_range,INDIRECT(AE8),_xlpm.range,OFFSET(_xlpm.ref_range,0,-3),_xlpm.catalysts,COUNTA(_xlpm.range),_xlpm.catalysts) -> 68
A15: 9 | B15: Amorphous CuOx film evaporation-deposited on GDL | C15: Oxide-derived | D15: Cu, O | E15: - | F15: Catalyst on top of porous substrate (GDE) | G15: Evap/CuOx_film | H15: (Solution-phase reactant, supplied in front) | I15: 0.5 M KHCO3 | J15: - flow - stirring | K15: "Nafion" | L15: (CEM) | M15: 0.5 M KHCO3 | N15: - flow - stirring | O15: (Liquid-phase reactant, supplied in front) | P15: Graphite rod | Q15: 25 | R15: 1 | S15: CO2 | T15: -1.3 V - iR vs. RHE | U15: -32 mA/cm2 | V15: 85 | X15: R. Wang et al., Selective Generation of Electroreduction C1–C2 Products Through Self-Regulation of Catalytically Active Cu Sites on the Same Coordination Cluster Catalyst. CCS Chemistry 5, 2237-2250 (2023). | Y15: 85 | AA15: 0 | AB15: 0 | AC15: 1
A16: 10 | B16: KOH anodization-derived CuO nanoplate on Cu-sputtered GDL | C16: Oxide-derived | D16: Cu, O | E16: - | F16: Catalyst on top of porous substrate (GDE) | G16: CuO nanoplate arrays | H16: (Gas-phase reactant, supplied from behind) | I16: - | J16: (n/a) | K16: Sustainion X37-50 | L16: (AEM) | M16: 0.5M KHCO3 | N16: + flow - stirring | O16: (Liquid-phase reactant, forced through surface) | P16: IrO2@Ti mesh | Q16: ? | R16: ? | S16: CO2 | T16: -0.81 V - iR vs. RHE | U16: -100 mA/cm2 | V16: 84 | X16: W. Liu et al., Electrochemical CO2 reduction to ethylene by ultrathin CuO nanoplate arrays. Nature Communications 13, 1877 (2022). | Y16: 84 | AA16: 1 | AB16: 0 | AC16: 1 | AE16: Alkaline CO2 systems
A17: 11 | B17: TiO2 NPs supported on V/Cu-based layered double hydroxide, on carbon paper | C17: Mixed-phase/Janus, A-supports-B | D17: Cu, V, Ti, O | E17: Nafion | F17: Catalyst on top of porous substrate (GDE) | G17: TiO2/V,Cu_LDH | H17: (Solution-phase reactant, supplied in front) | I17: 0.1 M KHCO3 | J17: - flow - stirring | K17: Nafion 117 | L17: (CEM) | M17: 0.1 M KHCO3 | N17: - flow - stirring | O17: (Liquid-phase reactant, supplied in front) | P17: Pt foil | Q17: ? | R17: ? | S17: CO2 | T17: -0.4 V vs. RHE | U17: -7 mA/cm2 | V17: 84 | X17: Lavate, S. S. & Srivastava, R. Boosting ethylene yield via a synergistic 2D/0D nanostructured VCu layered double hydroxide/TiO2 catalyst in electrochemical CO2 reduction. Energy Advances, doi:10.1039/D4YA00417E (2024). | Y17: 84 | AA17: 0 | AB17: 0 | AC17: 1 | AE17: =_xlfn.LET(_xlpm.ref_range,INDIRECT(AE8),_xlpm.range,OFFSET(_xlpm.ref_range,0,0),_xlpm.alk_sum,SUM(_xlpm.range),_xlpm.alk_sum) -> 27
A18: 12 | B18: Defective CuO-derived Cu nanosheets, on glassy carbon | C18: Oxide-derived | D18: Cu, O | E18: Nafion | F18: Catalyst on top of solid substrate (NPS) | G18: Defective CuO NSs-1 | H18: (Solution-phase reactant, supplied in front) | I18: 0.1 M K2SO4 | J18: - flow - stirring | K18: Nafion 117 | L18: (CEM) | M18: 0.1 M K2SO4 | N18: - flow - stirring | O18: (Liquid-phase reactant, supplied in front) | P18: Pt gauze | Q18: ? | R18: ? | S18: CO2 | T18: -1.18 V - iR vs. RHE | U18: -60 mA/cm2 | V18: 83 | X18: B. Zhang et al., Highly Electrocatalytic Ethylene Production from CO2 on Nanodefective Cu Nanosheets. Journal of the American Chemical Society 142, 13606-13613 (2020). | Y18: 83 | AA18: 0 | AB18: 0 | AC18: 1
A19: 13 | B19: Pre-reduced, CuO-derived Cu quantum dots (5 nm), on a GDL | C19: Oxide-derived | D19: Cu, O | E19: - | F19: Catalyst on top of porous substrate (GDE) | G19: Cu_quantum-dots | H19: (Gas-phase reactant, supplied from behind) | I19: 1.0 M KOH | J19: + flow - stirring | K19: FAA-3-PK-75 | L19: (AEM) | M19: 1.0 M KOH | N19: + flow - stirring | O19: (Liquid-phase reactant, forced through surface) | P19: Ni foam | Q19: ? | R19: ? | S19: CO2 | T19: -0.93 V -iR vs. RHE | U19: -1100 mA/cm2 | V19: 82 | X19: Wang, Y. et al. Enhanced Local CO Coverage on Cu Quantum Dots for Boosting Electrocatalytic CO2 Reduction to Ethylene. Advanced Functional Materials n/a, 2417764, doi:https://doi.org/10.1002/adfm.202417764. | Y19: 82 | AA19: 1 | AB19: 0 | AC19: 1 | AE19: CORR systems
A20: 14 | B20: CuSiO3 coated on ordered porous CuO prepared from mesoporous SiO2 molecular sieve starting material, supported on carbon, on "GDE" | C20: Core/shell, atomically mixed/crystalline | D20: Cu, Si, O, C | E20: Nafion | F20: Catalyst on top of porous substrate (GDE) | G20: CuSiO3/CuO_sieve | H20: (Gas-phase reactant, supplied from behind) | I20: 1.0 M KOH | J20: + flow - stirring | K20: FAA-PK-130 | L20: (AEM) | M20: 1.0 M KOH | N20: + flow - stirring | O20: (Liquid-phase reactant, supplied in front) | P20: Ni foam | Q20: ? | R20: ? | S20: CO2 | T20: -1.18 V vs. RHE | U20: -400 mA/cm2 | V20: 82 | X20: Q. Li et al., Efficient CO2 Electroreduction to Multicarbon Products at CuSiO3/CuO Derived Interfaces in Ordered Pores. Advanced Materials n/a, 2305508. | Y20: 82 | AA20: 1 | AB20: 0 | AC20: 1 | AE20: =_xlfn.LET(_xlpm.ref_range,INDIRECT(AE8),_xlpm.range,OFFSET(_xlpm.ref_range,0,1),_xlpm.CORR_sum,SUM(_xlpm.range),_xlpm.CORR_sum) -> 7
A21: 15 | B21: Ultrathin (ca. 4.8 nm) alloyed hexagonal CuNi nanosheets (ca. 1:1 atom ratio), on Ti mesh | C21: Alloyed/Doped | D21: Cu, Ni | E21: Nafion | F21: Catalyst on top of porous substrate (GDE) | G21: Cu-Ni_NSs | H21: (Solution-phase reactant, supplied in front) | I21: 0.5 M KHCO3 | J21: - flow - stirring | K21: ? | L21: ? | M21: 0.5 M KHCO3 | N21: - flow - stirring | O21: (Liquid-phase reactant, supplied in front) | P21: Pt foil | Q21: ? | R21: ? | S21: CO2 | T21: -1.5 V vs. RHE | U21: -470 mA/cm2 | V21: 81 | X21: Y. Yan et al., Ultrathin CuNi Nanosheets for CO2 Reduction and O2 Reduction Reaction in Fuel Cells. ACS Materials Letters 3, 1143-1150 (2021). | Y21: 81 | AA21: 0 | AB21: 0 | AC21: 1
A22: 16 | B22: Ultrathin (ca. 46.3 nm) alloyed hexagonal CuCo nanosheets (ca. 1:1 atom ratio), on glassy carbon | C22: Alloyed/Doped | D22: Cu, Co | E22: Nafion | F22: Catalyst on top of solid substrate (NPS) | G22: Cu-Co_NSs | H22: (Solution-phase reactant, supplied in front) | I22: 0.5 M KHCO3 | J22: - flow - stirring | K22: Nafion 117 | L22: (CEM) | M22: 0.5 M KHCO3 | N22: - flow - stirring | O22: (Liquid-phase reactant, supplied in front) | P22: Pt foil | Q22: ? | R22: ? | S22: CO2 | T22: -1.5 V vs. RHE | U22: -400 mA/cm2 | V22: 81 | X22: Y. Yan et al., Atomic-thin hexagonal CuCo nanocrystals with d-band tuning for CO2 reduction. Journal of Materials Chemistry A 9, 7496-7502 (2021). | Y22: 81 | AA22: 0 | AB22: 0 | AC22: 1 | AE22: ≥ 55% FE (with alkaline CO2)
A23: 17 | B23: Cu NPs supported on Cu/SAC-graphitic carbon nitride (g-C3N4), on carbon paper | C23: SAC, supported | D23: Cu, C | E23: - | F23: Catalyst on top of porous substrate (GDE) | G23: Cu_NPs/Cu-SAC_C3N4 | H23: (Gas-phase reactant, supplied from behind) | I23: 0.1 M KHCO3 (pH 6.8) | J23: + flow - stirring | K23: Fumasep FAA-3-PK-130 | L23: (AEM) | M23: 0.1 M KHCO3 (pH 6.8) | N23: + flow - stirring | O23: (Liquid-phase reactant, forced through surface) | P23: Ni foam | Q23: ? | R23: ? | S23: CO2 | T23: -1.28 V vs. RHE | U23: -45†_Cu-C-supported,8 mA/cm2 | V23: 81 | X23: H. Zhang et al., Insight into the island-sea effect of Cu−N−C for enhanced CO2 eletroreduction selectively towards C2H4. Applied Catalysis B: Environmental 343, 123566 (2024). | Y23: 81 | AA23: 0 | AB23: 0 | AC23: 1 | AE23: =_xlfn.LET(_xlpm.ref_range,INDIRECT(AE8),_xlpm.range,OFFSET(_xlpm.ref_range,0,2),_xlpm.range_filter,_xlpm.range,_xlpm.hi_sum,SUM(_xlfn._xlws.FILTER(_xlpm.range,_xlpm.range_filter)),_xlpm.hi_sum) -> 68
A24: 18 | B24: 60 nm step site-rich Cu NPs blow-dried with Ar, on GDL | C24: Metallic Cu | D24: Cu | E24: Sustainion XA-9 | F24: Catalyst on top of porous substrate (GDE) | G24: Stepped/Cu_NPs | H24: (Gas-phase reactant, supplied from behind) | I24: 1.0 M KOH (pH 14) | J24: + flow - stirring | K24: Fumasep FAA-3-PK-75 | L24: (AEM) | M24: 1.0 M KOH (pH 14) | N24: + flow - stirring | O24: (Liquid-phase reactant, supplied in front) | P24: Pt/Ti felt | Q24: 25 | R24: ? | S24: CO2 | T24: -0.58 V - iR vs. RHE | U24: -710 mA/cm2 | V24: 80 | X24: X. She et al., Pure-water-fed, electrocatalytic CO2 reduction to ethylene beyond 1,000 h stability at 10 A. Nature Energy, (2024). | Y24: 80 | AA24: 1 | AB24: 0 | AC24: 1
A25: 19 | B25: CNP and graphite layer on top of chemically etched co-sputtered Cu/Al layer on PTFE GDL | C25: Overlayer, Alloyed/Doped | D25: Cu, Al, C | E25: Nafion | F25: Catalyst on top of porous substrate (GDE) | G25: Dealloyed/Al/Cu | H25: (Gas-phase reactant, supplied from behind) | I25: 1.0 M KOH | J25: + flow - stirring | K25: FAA-3-PK-130 | L25: (AEM) | M25: 1.0 M KOH | N25: + flow - stirring | O25: (Liquid-phase reactant, supplied in front) | P25: Pt wire | Q25: ? | R25: ? | S25: CO2 | T25: -1.67 V - iR vs. RHE | U25: -400 mA/cm2 | V25: 80 | X25: M. Zhong et al., Accelerated discovery of CO2 electrocatalysts using active machine learning. Nature 581, 178-183 (2020). | Y25: 80 | AA25: 1 | AB25: 0 | AC25: 1 | AE25: ≥ 55% FE (of which alkaline CO2)
A26: 20 | B26: Mg surface-doped CuOx NPs (Mg0.72Cu), on GDL | C26: Alloyed/Doped | D26: Cu, Mg, O | E26: Nafion | F26: Catalyst on top of porous substrate (GDE) | G26: Mg/CuOx_NPs | H26: (Gas-phase reactant, supplied from behind) | I26: 1.0 M KOH | J26: + flow - stirring | K26: NEOSEPTA, AHA | L26: (AEM) | M26: 1.0 M KOH | N26: + flow - stirring | O26: (Liquid-phase reactant, supplied in front) | P26: Foamed Ni | Q26: ? | R26: ? 40% CO, 60% N2 | S26: CO | T26: ? | U26: ? | V26: 80 | X26: M. Xie et al., Fast Screening for Copper-Based Bimetallic Electrocatalysts: Efficient Electrocatalytic Reduction of CO2 to C2+ Products on Magnesium-Modified Copper. Angewandte Chemie International Edition 61, e202213423 (2022). | Y26: 80 | AA26: 0 | AB26: 1 | AC26: 1 | AE26: =_xlfn.LET(_xlpm.ref_range,INDIRECT(AE8),_xlpm.range,OFFSET(_xlpm.ref_range,0,2),_xlpm.range_filter,_xlpm.ref_range,_xlpm.hi_sum,SUM(_xlfn._xlws.FILTER(_xlpm.range,_xlpm.range_filter)),_xlpm.hi_sum) -> 27
A27: 21 | B27: CuO NPs coated with 1-dodecanethiol, on GDL | C27: Core/shell (in-)organic | D27: Cu, O | E27: Nafion, 1-dodecanethiol | F27: Catalyst on top of porous substrate (GDE) | G27: 1-dodecanethiol/CuO_NPs | H27: (Gas-phase reactant, supplied from behind) | I27: 1.0 M KOH (pH 14) | J27: + flow - stirring | K27: ? | L27: (AEM) | M27: 1.0 M KOH (pH 14) | N27: + flow - stirring | O27: (Liquid-phase reactant, forced through surface) | P27: Ni foam | Q27: ? | R27: ? | S27: CO2 | T27: -1.2 V vs. RHE | U27: -304 mA/cm2 | V27: 80 | X27: Y. Yao et al., A surface strategy boosting the ethylene selectivity for CO2 reduction and in situ mechanistic insights. Nature Communications 15, 1257 (2024). | Y27: 80 | AA27: 1 | AB27: 0 | AC27: 1
A28: 22 | B28: CuO NPs supported on Al2CuO4 nanosheets, on glassy carbon | C28: Mixed-phase/Janus, atomically mixed/crystalline, A-supports-B | D28: Cu, Al, O | E28: Nafion | F28: Catalyst on top of solid substrate (NPS) | G28: CuO_NPs/Al2CuO4_NSs | H28: (Solution-phase reactant, supplied in front) | I28: 0.1 M KHCO3 | J28: - flow - stirring | K28: Selemion AMV | L28: (AEM) | M28: 0.1 M KHCO3 | N28: - flow - stirring | O28: (Liquid-phase reactant, supplied in front) | P28: Pt foil | Q28: 25 | R28: ? | S28: CO2 | T28: -0.99 V - iR vs. RHE | U28: -2 mA/cm2 | V28: 79†_Cu-Al,1 | X28: S. Sultan et al., Interface rich CuO/Al2CuO4 surface for selective ethylene production from electrochemical CO2 conversion. Energy & Environmental Science, (2022). | Y28: 79 | AA28: 0 | AB28: 0 | AC28: 1
A29: 23 | B29: Calcined (in Al foil!) electroplated Cu dendrites, on GDL | C29: Oxide-derived | D29: Cu, O, Al (?) | E29: Nafion | F29: Catalyst on top of porous substrate (GDE) | G29: CuOx dendrites | H29: (Gas-phase reactant, supplied from behind) | I29: 3.0 M KOH | J29: + flow - stirring | K29: Sustainion X37-50 Grade T | L29: (AEM) | M29: 3.0 M KOH | N29: + flow - stirring | O29: (Liquid-phase reactant, supplied in front) | P29: Ni foam | Q29: ? | R29: ? | S29: CO | T29: ? | U29: -100 mA/cm2 | V29: 78 | X29: H. P. Duong et al., Highly Selective Copper-Based Catalysts for Electrochemical Conversion of Carbon Monoxide to Ethylene Using a Gas-Fed Flow Electrolyzer. ACS Catal 12, 10285-10293 (2022). | Y29: 78 | AA29: 0 | AB29: 1 | AC29: 1
A30: 24 | B30: Amorphous CuOx film evaporation-deposited on GDL | C30: Oxide-derived | D30: Cu, O | E30: - | F30: Catalyst on top of porous substrate (GDE) | G30: Evap/CuOx_film | H30: (Solution-phase reactant, supplied in front) | I30: - | J30: (n/a) | K30: FBAPK-13 | L30: (AEM) | M30: 0.5 M KHCO3 | N30: - flow + stirring | O30: (Gas-phase reactant, forced through surface) | P30: IrO2/Ti felt | Q30: 25 | R30: 1 | S30: CO2 | T30: -1.75 V vs. ANODE | U30: -113 mA/cm2 | V30: 78 | X30: R. Wang et al., Selective Generation of Electroreduction C1–C2 Products Through Self-Regulation of Catalytically Active Cu Sites on the Same Coordination Cluster Catalyst. CCS Chemistry 5, 2237-2250 (2023). | Y30: 78 | AA30: 1 | AB30: 0 | AC30: 1
A31: 25 | B31: Hollow Cu/CeO2 nanotubes composed of aggregated nanoparticles, on carbon paper - prepared by decorating electrospun polyacrylonitrile (PAN) fibres with metal and burning away the PAN | C31: Mixed-phase/Janus | D31: Cu, Ce, O | E31: Nafion | F31: Catalyst on top of porous substrate (GDE) | G31: CeO2/CuO_hollow-NTs | H31: (Solution-phase reactant, supplied in front) | I31: 1 M KOH | J31: + flow - stirring | K31: FAA-3-PK-130 | L31: (AEM) | M31: 1 M KOH | N31: + flow - stirring | O31: (Liquid-phase reactant, supplied in front) | P31: Pt net | Q31: 25 | R31: 1 | S31: CO2 | T31: -0.7 V vs. RHE | U31: -110 mA/cm2 | V31: 78 | X31: D. Tan, B. Wulan, X. Cao, J. Zhang, Strong interactions of metal-support for efficient reduction of carbon dioxide into ethylene. Nano Energy 89, 106460 (2021). | Y31: 78 | AA31: 1 | AB31: 0 | AC31: 1
A32: 26 | B32: CO2RR pre-activated defective Cu NWs, on glassy carbon (tested in semi-pulsed electrolysis mode) | C32: Metallic Cu | D32: Cu | E32: Nafion | F32: Catalyst on top of solid substrate (NPS) | G32: Defect/Cu_NWs | H32: (Solution-phase reactant, supplied in front) | I32: 0.1 M KHCO3 (pH 6.8) | J32: - flow - stirring | K32: Nafion | L32: (CEM) | M32: 0.1 M KHCO3 (pH 6.8) | N32: - flow - stirring | O32: (Liquid-phase reactant, supplied in front) | P32: Pt coil | Q32: 25 | R32: 1 | S32: CO2 | T32: -1.01 V - iR vs. RHE | U32: -22 mA/cm2 | V32: 77 | X32: C. Choi et al., Highly active and stable stepped Cu surface for enhanced electrochemical CO2 reduction to C2H4. Nature Catalysis 3, 804-812 (2020). | Y32: 77 | AA32: 0 | AB32: 0 | AC32: 1
A33: 27 | B33: Ag/Au (3:1 ratio) alloy, highly defective, cubic wireframe NPs (59 nm) post-modified with epitaxially deposited Cu ‘overlayer’, on GDL | C33: A-supports-B, alloyed/doped | D33: Ag, Au, Cu | E33: - | F33: Catalyst on top of porous substrate (GDE) | G33: Ag3Au-NF/Cu | H33: (Gas-phase reactant, supplied from behind) | I33: 1.0 M KOH (pH 14) | J33: + flow - stirring | K33: Fumasep FAB-PK-130 | L33: (AEM) | M33: 1.0 M KOH (pH 14) | N33: - flow + stirring | O33: (Liquid-phase reactant, forced through surface) | P33: Ni foam | Q33: ? | R33: ? | S33: CO2 | T33: -0.65 V - iR vs. RHE | U33: - 305 mA/cm2 | V33: 77 | X33: L. Xiong et al., Breaking the Linear Scaling Relationship by Compositional and Structural Crafting of Ternary Cu–Au/Ag Nanoframes for Electrocatalytic Ethylene Production. Angewandte Chemie International Edition 60, 2508-2518 (2021). | Y33: 77 | AA33: 1 | AB33: 0 | AC33: 1
A34: 28 | B34: Ionic liquid-coated Cu-MOF (Cu3(1,3,5-Benzenetricarboxylic acid)2), on glassy carbon | C34: Core/shell (in-)organic | D34: Cu | E34: Nafion, 1,3,5-Benzenetricarboxylic acid (BTC), 1-Butyl-3- methylimidazolium nitrate (BmimNO3) | F34: Catalyst on top of solid substrate (NPS) | G34: IL/Cu-MOF | H34: (Solution-phase reactant, supplied in front) | I34: 0.1 M KHCO3 (pH 6.8) | J34: - flow - stirring | K34: Nafion 117 | L34: (CEM) | M34: 0.1 M KHCO3 (pH 6.8) | N34: - flow - stirring | O34: (Liquid-phase reactant, supplied in front) | P34: Pt gauze | Q34: ? | R34: ? | S34: CO2 | T34: -1.49 V vs. RHE | U34: -34 mA/cm2 | V34: 77 | X34: Y. Sha et al., Anchoring Ionic Liquid in Copper Electrocatalyst for Improving CO2 Conversion to Ethylene. Angewandte Chemie International Edition 61, e202200039 (2022). | Y34: 77 | AA34: 0 | AB34: 0 | AC34: 1
A35: 29 | B35: Porous Cu2O microparticles, on PTFE-modified GDL | C35: Oxide-derived | D35: Cu, O | E35: Nafion | F35: Catalyst on top of porous substrate (GDE) | G35: Co-TMC/Cu2O_MPs | H35: (Gas-phase reactant, supplied from behind) | I35: 1.0 M KCl + x M H2SO4 (pH 1.9) | J35: + flow - stirring | K35: Nafion 115 | L35: (CEM) | M35: 0.5 M K2SO4 + x M H2SO4 (pH 1) | N35: + flow - stirring | O35: (Liquid-phase reactant, supplied in front) | P35: Pt plate | Q35: 25 | R35: 1 | S35: CO | T35: ? | U35: -800 mA/cm2 | V35: 76 | X35: Y. Wang, Q. Cheng, H. Zhang, L. Ma, H. Yang, Cobalt(II) tetraphenylporphyrin trapped in the pores of Cu2O to enhance the C2+ selectivity towards acidic CO2 electroreduction. Chemical Engineering Journal 492, 152254 (2024). | Y35: 76 | AA35: 0 | AB35: 1 | AC35: 1
A36: 30 | B36: Dilute Cu/Pd alloy (1.4 at. % Pd) prepared via co-electrodeposition, on glassy carbon | C36: Alloyed/Doped | D36: Cu, Pd | E36: - | F36: Catalyst on top of solid substrate (NPS) | G36: Co-plate/CuPd | H36: (Solution-phase reactant, supplied in front) | I36: 0.1 M KHCO3 | J36: - flow - stirring | K36: FAA-3-PK-75 | L36: (AEM) | M36: 0.1 M KHCO3 | N36: - flow - stirring | O36: (Liquid-phase reactant, supplied in front) | P36: Pt foil | Q36: 25 | R36: 1 | S36: CO2 | T36: -0.7 V vs. RHE | U36: -3 mA/cm2 | V36: 76 | X36: Z.-Y. Zhang et al., Nanocavity enriched CuPd alloy with high selectivity for CO2 electroreduction toward C2H4. Rare Metals, (2024). | Y36: 76 | AA36: 0 | AB36: 0 | AC36: 1
A37: 31 | B37: Co-TMC (tetraphenylporphyrin) confined within the nanopores of porous Cu2O microparticles, on PTFE-modified GDL | C37: A-supports-B, Mixed-phase/Janus | D37: Cu, O, Co | E37: Nafion | F37: Catalyst on top of porous substrate (GDE) | G37: Co-TMC/Cu2O_MPs | H37: (Gas-phase reactant, supplied from behind) | I37: 1.0 M KCl + x M H2SO4 (pH 1.9) | J37: + flow - stirring | K37: Nafion 115 | L37: (CEM) | M37: 0.5 M K2SO4 + x M H2SO4 (pH 1) | N37: + flow - stirring | O37: (Liquid-phase reactant, supplied in front) | P37: Pt plate | Q37: 25 | R37: 1 | S37: CO | T37: ? | U37: -800 mA/cm2 | V37: 76 | X37: Y. Wang, Q. Cheng, H. Zhang, L. Ma, H. Yang, Cobalt(II) tetraphenylporphyrin trapped in the pores of Cu2O to enhance the C2+ selectivity towards acidic CO2 electroreduction. Chemical Engineering Journal 492, 152254 (2024). | Y37: 76 | AA37: 0 | AB37: 1 | AC37: 1
A38: 32 | B38: Ag foil coated with Cu NP Nafion ink | C38: Overlayer | D38: Cu, Ag | E38: Nafion | F38: Catalyst on top of solid substrate (NPS) | G38: Ag/Nafion-Cu2O | H38: (Solution-phase reactant, supplied in front) | I38: 0.1 M NaHCO3 (pH 6.8) | J38: (n/a) | K38: - | L38: (n/a) | M38: One compartment | O38: (Liquid-phase reactant, supplied in front) | P38: Pt wire | Q38: ? | R38: ? | S38: CO2 | T38: -1.9 V vs. RHE | U38: -21 mA/cm2 | V38: 76 | X38: Akter, T., et al. (2022). "Tandem Electrocatalytic CO2 Reduction inside a Membrane with Enhanced Selectivity for Ethylene." The Journal of Physical Chemistry C 126(24): 10045-10052. | Y38: 76 | AA38: 0 | AB38: 0 | AC38: 1
A39: 33 | B39: Prepared by electrodepositing Cu on Ag surfaces | C39: Overlayer | D39: Cu, Ag | E39: Nafion | F39: Catalyst on top of solid substrate (NPS) | G39: Electro/Cu_NPs/Ag | H39: (Solution-phase reactant, supplied in front) | I39: 0.1 M NaHCO3 (pH 6.8) | J39: (n/a) | K39: - | L39: (n/a) | M39: One compartment | O39: (Liquid-phase reactant, supplied in front) | P39: Carbon electrode | Q39: ? | R39: ? | S39: CO2 | T39: -1.9 V vs. RHE | U39: -21 mA/cm2 | V39: 76 | X39: Akter, T. and C. J. Barile (2023). "Membrane-controlled CO2 electrocatalysts with switchable C2 product selectivity and high faradaic efficiency for ethanol." | Y39: 76 | AA39: 0 | AB39: 0 | AC39: 1
A40: 34 | B40: Defect-rich CuO NRs (800 nm) with HCOO- induced pores, on a GDL | C40: Oxide-derived | D40: Cu, O | E40: Nafion | F40: Catalyst on top of porous substrate (GDE) | G40: Porous/CuOx_NWs | H40: (Gas-phase reactant, supplied from behind) | I40: 2.0 M KOH | J40: + flow - stirring | K40: Nafion 117 | L40: (CEM) | M40: 3.0 M KOH | N40: + flow - stirring | O40: (Liquid-phase reactant, forced through surface) | P40: Ni foam | Q40: ? | R40: ? | S40: CO2 | T40: -0.8 V -iR vs. RHE | U40: -144 mA/cm2 | V40: 75 | X40: Zhou, W. et al. Multiple Tuning of the Local Environment Enables Selective CO2 Electroreduction to Ethylene in Neutral Electrolytes. Advanced Functional Materials 34, 2311226, doi:https://doi.org/10.1002/adfm.202311226 (2024). | Y40: 75 | AA40: 1 | AB40: 0 | AC40: 1
A41: 35 | B41: Star shaped {322}-rich Cu2O large NPs, on glassy carbon | C41: Oxide-derived | D41: Cu, O | E41: Nafion D-521 | F41: Catalyst on top of solid substrate (NPS) | G41: {322}-rich Cu2O particles | H41: (Solution-phase reactant, supplied in front) | I41: 0.1 M KHCO3 (pH 6.8) | J41: - flow - stirring | K41: Nafion | L41: (CEM) | M41: 0.1 M KHCO3 (pH 6.8) | N41: - flow - stirring | O41: (Liquid-phase reactant, supplied in front) | P41: Pt foil | Q41: ? | R41: ? | S41: CO2 | T41: -1.2 V vs. RHE | U41: -11 mA/cm2 | V41: 74 | X41: H. Luo, B. Li, J.-G. Ma, P. Cheng, Surface Modification of Nano-Cu2O for Controlling CO2 Electrochemical Reduction to Ethylene and Syngas. Angewandte Chemie International Edition 61, e202116736 (2022). | Y41: 74 | AA41: 0 | AB41: 0 | AC41: 1
A42: 36 | B42: Brass foil (62% Cu, 37% Zn, trace amounts of Fe, Pb, Sn) with Nafion/PVDF (70:30 wt%) overlayer | C42: Alloyed/Doped, Overlayer | D42: Cu, Zn | E42: Nafion, PVDF | F42: Catalyst on top of solid substrate (NPS) | G42: Coated-Brass | H42: (Solution-phase reactant, supplied in front) | I42: 0.1 M NaHCO3 (pH 6.8) | J42: - flow - stirring | K42: - | L42: (n/a) | M42: 0.1 M NaHCO3 (pH 6.8) | N42: - flow - stirring | O42: (Liquid-phase reactant, supplied in front) | P42: ? | Q42: ? | R42: ? | S42: CO2 | T42: -0.89 V vs. RHE | U42: ? | V42: 74 | X42: H. Pan, T. Akter, C. J. Barile, Electrochemical CO2 Reduction on Zinc and Brass with Modulated Proton Transfer Using Membrane-Modified Electrodes. ACS Applied Energy Materials 5, 12860-12868 (2022). | Y42: 74 | AA42: 0 | AB42: 0 | AC42: 1
A43: 37 | B43: N-doped CuOx NPs derived from calcination of Cu(OH)3NO3 precursor at 350 °C, on GDL | C43: Oxide-derived | D43: Cu, O, N | E43: Nafion | F43: Catalyst on top of porous substrate (GDE) | G43: N-doped/CuOx_NPs | H43: (Gas-phase reactant, supplied from behind) | I43: 1 M KOH (pH 14) | J43: + flow - stirring | K43: Fumasep-FAA- 3-PK-130 | L43: (AEM) | M43: 1 M KOH (pH 14) | N43: + flow - stirring | O43: (Liquid-phase reactant, supplied in front) | P43: Ni foam | Q43: ? | R43: ? | S43: CO2 | T43: -1.09 V - iR vs. RHE | U43: -962†_oxidic,2 mA/cm2 | V43: 73 | X43: H. Tao, F. Wang, Z. Zhang, S. Min, Surface N-coordinated Cu catalysts for CO2 electroreduction to ethylene at industry-level current densities. Sustainable Energy & Fuels 7, 2991-2996 (2023). | Y43: 73 | AA43: 1 | AB43: 0 | AC43: 1
A44: 38 | B44: Highly porous Zn/Cu layer (10 at. % Zn) generated through partially leaching of co-sputtered Zn/Cu layer on PTFE substrate | C44: Alloyed/Doped | D44: Cu, Zn | E44: - | F44: Catalyst on top of porous substrate (GDE) | G44: Leach-Zn/CuOx | H44: (Gas-phase reactant, supplied from behind) | I44: 0.75 M KOH | J44: + flow - stirring | K44: Fumasep FAB-PK-130 | L44: (AEM) | M44: 0.75 M KOH | N44: + flow - stirring | O44: (Liquid-phase reactant, forced through surface) | P44: Ni foam | Q44: 25 | R44: 1 | S44: CO2 | T44: -1.1 V vs. RHE | U44: -150 mA/cm2 | V44: 73 | X44: J. Zhang et al., Accelerating electrochemical CO2 reduction to multi-carbon products via asymmetric intermediate binding at confined nanointerfaces. Nature Communications 14, 1298 (2023). | Y44: 73 | AA44: 1 | AB44: 0 | AC44: 1
A45: 39 | B45: N1-/N3-substituted imidazolium-based overlayer on Cu plate | C45: Overlayer | D45: Cu | E45: N1-substituted (1,10- phenanthrolinyl) and N3-substituted (n-butyl) imidazolium | F45: Catalyst on top of solid substrate (NPS) | G45: N1/3-sub_imidazolium/Cu_plate | H45: (Solution-phase reactant, supplied in front) | I45: 0.1 M KHCO3 (pH 6.8) | J45: - flow - stirring | K45: "Hangzhou Huamo Technology Co., Ltd" | L45: (AEM) | M45: 0.1 M KHCO3 (pH 6.8) | N45: - flow - stirring | O45: (Liquid-phase reactant, supplied in front) | P45: Pt foil | Q45: ? | R45: ? | S45: CO2 | T45: -1.24 V vs. RHE | U45: -6 mA/cm2 | V45: 73 | X45: B. Cheng et al., Selective CO2 Reduction to Ethylene Using Imidazolium-Functionalized Copper. ACS Applied Materials & Interfaces 14, 27823-27832 (2022). | Y45: 73 | AA45: 0 | AB45: 0 | AC45: 1
A46: 40 | B46: {220}-facet rich CuI nanodots (5.3 nm) prepared via in-situ reduction of (Cu(OH)2) NPs on carbon paper GDL in 0.1 M KHCO3 + 0.1 M KI | C46: Oxide-derived | D46: Cu, O, I | E46: Nafion | F46: Catalyst on top of porous substrate (GDE) | G46: CuI_nanodot | H46: (Gas-phase reactant, supplied from behind) | I46: 0.5 M KHCO3 + 0.5 M KI | J46: + flow - stirring | K46: FAA-3-PK -130 | L46: (AEM) | M46: 1.0 M KHCO3 | N46: + flow - stirring | O46: (Liquid-phase reactant, supplied in front) | P46: Carbon rod | Q46: ? | R46: ? | S46: CO2 | T46: -2.1 V vs. RHE | U46: -800 mA/cm2 | V46: 72 | X46: W. Xue et al., Operando reconstruction towards stable CuI nanodots with favorable facets for selective CO2 electroreduction to C2H4. Science China Chemistry 66, 1834-1843 (2023). | Y46: 72 | AA46: 0 | AB46: 0 | AC46: 1
A47: 41 | B47: Cu NPs encapsulated in mesoporous Ni-SAC functionalized carbon, on GDL | C47: Mixed-phase/Janus, A-supports-B | D47: Cu, Ni, C, N | E47: - | F47: Catalyst on top of porous substrate (GDE) | G47: Meso-C/Ni/Cu | H47: (Gas-phase reactant, supplied from behind) | I47: 1.0 M KHCO3 | J47: + flow - stirring | K47: "Fuel Cell Store" | L47: (AEM) | M47: 1.0 M KHCO3 | N47: + flow - stirring | O47: (Liquid-phase reactant, supplied in front) | P47: Pt foil | Q47: ? | R47: ? | S47: CO2 | T47: -1.1 V -iR vs. RHE | U47: -406 mA/cm2 | V47: 72 | X47: B. Chen et al., Tandem Catalysis for Enhanced CO2 to Ethylene Conversion in Neutral Media. Advanced Functional Materials n/a, 2310029. | Y47: 72 | AA47: 0 | AB47: 0 | AC47: 1
A48: 42 | B48: Ag-doped La2-xAgxCuO4-δ NPs (x=0.2) with oxygen vacancies, on Toray carbon paper | C48: Atomically mixed/Crystalline, alloyed/doped | D48: Cu, Ag, La | E48: Nafion | F48: Catalyst on top of porous substrate (GDE) | G48: Ag/La2CuO4 | H48: (Solution-phase reactant, supplied in front) | I48: 0.5 M KHCO3 | J48: - flow - stirring | K48: Nafion | L48: (CEM) | M48: 0.5 M KHCO3 | N48: - flow - stirring | O48: (Liquid-phase reactant, supplied in front) | P48: Pt net | Q48: ? | R48: ? | S48: CO2 | T48: -1.1 V vs. RHE | U48: -28 mA/cm2 | V48: 72 | X48: Dong, G. et al. Boosting the CO2 electroreduction performance of La2-xAgxCuO4-δ perovskites via A-site substitution mechanism. Applied Catalysis B: Environmental 342, 123444, doi:https://doi.org/10.1016/j.apcatb.2023.123444 (2024). | Y48: 72 | AA48: 0 | AB48: 0 | AC48: 1
A49: 43 | B49: CuOx NPs (large size distribution) mixed with PTFE, on carbon paper | C49: Core/shell (in-)organic | D49: Cu, O | E49: Nafion, PTFE | F49: Catalyst on top of porous substrate (GDE) | G49: PTFE/CuOx_NPs | H49: (Solution-phase reactant, supplied in front) | I49: 0.5 M KCl + 50 mM benzyl alcohol | J49: - flow - stirring | K49: FKB PK 130 | L49: (AEM) | M49: 0.5 M KCl | N49: - flow - stirring | O49: (Liquid-phase reactant, supplied in front) | P49: Carbon rod | Q49: 25 | R49: ? | S49: CO2 | T49: -1.38 V vs. RHE | U49: -88 mA/cm2 | V49: 72 | X49: Y. Wang et al., Benzyl alcohol promoted electrocatalytic reduction of carbon dioxide and C2 production by Cu2O/Cu. Chemical Engineering Journal 485, 149800 (2024). | Y49: 72 | AA49: 0 | AB49: 0 | AC49: 1
A50: 44 | B50: N-arylpyridinium electrodeposition-modified Cu-sputtered PTFE GDL | C50: Overlayer | D50: Cu | E50: N,N′-(1,4-phenylene) bispyridinium salt | F50: Catalyst on top of porous substrate (GDE) | G50: N-polymer/Cu-GDE | H50: (Gas-phase reactant, supplied from behind) | I50: 1.0 M KHCO3 | J50: + flow - stirring | K50: Fumapem FAA-3-PK-130 | L50: (AEM) | M50: 1.0 M KHCO3 | N50: + flow - stirring | O50: (Liquid-phase reactant, supplied in front) | P50: Ni foam | Q50: ? | R50: ? | S50: CO2 | T50: -0.83 V -iR vs. RHE | U50: -325 mA/cm2 | V50: 72 | X50: F. Li et al., Molecular tuning of CO2-to-ethylene conversion. Nature 577, 509-513 (2020). | Y50: 72 | AA50: 0 | AB50: 0 | AC50: 1
A51: 45 | B51: Poly-N-(6-aminohexyl)acrylamide-coated electrodeposited Cu dendrites on GDL | C51: Overlayer | D51: Cu | E51: Poly-N-(6-aminohexyl)acrylamide | F51: Catalyst on top of porous substrate (GDE) | G51: N-polymer/Cu#2-GDE | H51: (Gas-phase reactant, supplied from behind) | I51: 1.0 M KOH (pH 14) | J51: + flow - stirring | K51: ? | L51: (n/a) | M51: 1.0 M KOH (pH 14) | N51: + flow - stirring | O51: (Liquid-phase reactant, supplied in front) | P51: ? | Q51: ? | R51: ? | S51: CO2 | T51: -0.97 V -iR vs. RHE | U51: -433 mA/cm2 | V51: 72 | X51: X. Chen et al., Electrochemical CO2-to-ethylene conversion on polyamine-incorporated Cu electrodes. Nature Catalysis 4, 20-27 (2021). | Y51: 72 | AA51: 1 | AB51: 0 | AC51: 1
A52: 46 | B52: Grainboundary-rich Cu2CO3(OH)2-derived Cu nanoribbons with Carbon NP midlayer and graphite toplayer, on PTFE GDL | C52: Oxide-derived | D52: Cu, O, C | E52: - | F52: Catalyst on top of porous substrate (GDE) | G52: Cu2CO3(OH)2-derived Cu/PTFE | H52: (Gas-phase reactant, supplied from behind) | I52: 1.0 M KOH (pH 14) | J52: + flow - stirring | K52: Fumapem FAA-3-PK-130 | L52: (AEM) | M52: 1.0 M KOH (pH 14) | N52: + flow - stirring | O52: (Liquid-phase reactant, supplied in front) | P52: SS mesh | Q52: ? | R52: ? | S52: CO2 | T52: -1.6 V vs. RHE | U52: -700 mA/cm2 | V52: 71 | X52: L. Bian et al., Grain boundary-abundant copper nanoribbons on balanced gas-liquid diffusion electrodes for efficient CO2 electroreduction to C2H4. Chinese Journal of Catalysis 54, 199-211 (2023). | Y52: 71 | AA52: 1 | AB52: 0 | AC52: 1
A53: 47 | B53: Cu2O NCs on GDL, electrochemically pre-activated via in-situ reduction in the presence of CO2 | C53: Oxide-derived | D53: Cu, O | E53: Nafion | F53: Catalyst on top of porous substrate (GDE) | G53: CO2-reduced/Cu2O_NCs | H53: (Gas-phase reactant, supplied from behind) | I53: 1.0 M KOH | J53: + flow - stirring | K53: Sustainion® X37-50 grade RT | L53: (AEM) | M53: 1.0 M KOH | N53: + flow - stirring | O53: (Liquid-phase reactant, forced through surface) | P53: Ni foam | Q53: ? | R53: ? | S53: CO2 | T53: -0.6 V vs. RHE | U53: -207 mA/cm2 | V53: 71 | X53: Zhang, C. et al. Exploration of Gas-Dependent Self-Adaptive Reconstruction Behavior of Cu2O for Electrochemical CO2 Conversion to Multi-Carbon Products. Nano-Micro Letters 17, 66, doi:10.1007/s40820-024-01568-1 (2024). | Y53: 71 | AA53: 1 | AB53: 0 | AC53: 1
A54: 48 | B54: Defect-rich CuO NRs (800 nm) with HCOO- induced pores, on a GDL | C54: Oxide-derived | D54: Cu, O | E54: Nafion | F54: Catalyst on top of porous substrate (GDE) | G54: Porous/CuOx_NWs | H54: (Gas-phase reactant, supplied from behind) | I54: 3.0 M KCl | J54: + flow - stirring | K54: Nafion 117 | L54: (CEM) | M54: 3.0 M KOH | N54: + flow - stirring | O54: (Liquid-phase reactant, forced through surface) | P54: Ni foam | Q54: ? | R54: ? | S54: CO2 | T54: -1.07 V -iR vs. RHE | U54: -312 mA/cm2 | V54: 71 | X54: Zhou, W. et al. Multiple Tuning of the Local Environment Enables Selective CO2 Electroreduction to Ethylene in Neutral Electrolytes. Advanced Functional Materials 34, 2311226, doi:https://doi.org/10.1002/adfm.202311226 (2024). | Y54: 71 | AA54: 0 | AB54: 0 | AC54: 1
A55: 49 | B55: CuOx nanocubes/rectangles supported on Al2O3 nanosheets having an Al2CuO2 interface layer, mixed with CNPs, on glassy carbon | C55: Mixed-phase/Janus, atomically mixed/crystalline, A-supports-B | D55: Cu, Al, O, C | E55: Nafion | F55: Catalyst on top of solid substrate (NPS) | G55: Al2CuO2-interface/CuOx_NCs | H55: (Solution-phase reactant, supplied in front) | I55: 0.1 M KHCO3 | J55: + flow - stirring | K55: Nafion 117 | L55: (CEM) | M55: 0.1 M KHCO3 | N55: + flow - stirring | O55: (Liquid-phase reactant, supplied in front) | P55: Pt plate | Q55: 25 | R55: 1 | S55: CO2 | T55: -1.2 V - iR vs. RHE | U55: -60 mA/cm2 | V55: 71 | X55: X. Wang et al., Identifying an Interfacial Stabilizer for Regeneration-Free 300 h Electrochemical CO2 Reduction to C2 Products. Journal of the American Chemical Society 144, 22759-22766 (2022). | Y55: 71 | AA55: 0 | AB55: 0 | AC55: 1
A56: 50 | B56: Cu2O NCs supported on cobalt phthalocyanine-modified-acetylene black, on GDL | C56: A-supports-B, Mixed-phase/Janus | D56: Cu, Co, C | E56: Nafion | F56: Catalyst on top of solid substrate (NPS) | G56: Co-AcB/Cu2O_NCs | H56: (Gas-phase reactant, supplied from behind) | I56: 1.0 M KOH | J56: + flow - stirring | K56: FAA-3-20 | L56: (AEM) | M56: 1.0 M KOH | N56: + flow - stirring | O56: (Liquid-phase reactant, forced through surface) | P56: Ni foam | Q56: ? | R56: ? | S56: CO2 | T56: -0.76 V - iR vs. RHE | U56: -317 mA/cm2 | V56: 71 | X56: J. Liu et al., Integration of Cobalt Phthalocyanine, Acetylene Black and Cu2O Nanocubes for Efficient Electroreduction of CO2 to C2H4. ChemSusChem 16, e202300601 (2023). | Y56: 71 | AA56: 1 | AB56: 0 | AC56: 1
A57: 51 | B57: Single atom Cu supported on ultrathin Ti3C2Tx nanosheets, on carbon paper | C57: Single atom | D57: Cu, C, Ti | E57: Nafion | F57: Catalyst on top of porous substrate (GDE) | G57: Cu-SAC_Ti3C2Tx | H57: (Solution-phase reactant, supplied in front) | I57: 1.0 M KOH (pH 14) | J57: - flow - stirring | K57: Nafion 117 | L57: (CEM) | M57: 1.0 M KOH (pH 14) | N57: - flow - stirring | O57: (Liquid-phase reactant, supplied in front) | P57: Graphite rod | Q57: ? | R57: ? | S57: CO | T57: -0.70 V vs. RHE | U57: -23 mA/cm2 | V57: 71 | X57: H. Bao et al., Isolated copper single sites for high-performance electroreduction of carbon monoxide to multicarbon products. Nature Communications 12, 238 (2021). | Y57: 71 | AA57: 0 | AB57: 1 | AC57: 1
A58: 52 | B58: Cu2O NPs supported on CNTs modified with Cu-based COF, on glassy carbon | C58: COF, supported | D58: Cu, C, O | E58: Nafion | F58: Catalyst on top of solid substrate (NPS) | G58: Cu-COF/CNTs/Cu2O | H58: (Solution-phase reactant, supplied in front) | I58: 0.5 M KHCO3 | J58: - flow - stirring | K58: Nafion 117 | L58: (CEM) | M58: 0.5 M KHCO3 | N58: - flow - stirring | O58: (Liquid-phase reactant, supplied in front) | P58: Pt mesh | Q58: ? | R58: ? | S58: CO2 | T58: -1.1 V vs. RHE | U58: -44 mA/cm2 | V58: 71 | X58: He, Q. et al. Highly Selective CO2 Electroreduction to C2H4 Using a Dual-Sites Cu(II) Porphyrin Framework Coupled with Cu2O Nanoparticles via a Synergetic-Tandem Strategy. Angewandte Chemie International Edition 63, e202407090, doi:https://doi.org/10.1002/anie.202407090 (2024). | Y58: 71 | AA58: 0 | AB58: 0 | AC58: 1
A59: 53 | B59: Thin quasi-graphitic carbon-shell functionalized, N-doped Cu NPs supported on carbon fibers, on GDL | C59: Core/shell | D59: Cu, C, N | E59: Nafion, quasi-graphitic carbon shell | F59: Catalyst on top of porous substrate (GDE) | G59: C-shell_N/Cu-NPs_CNT | H59: (Gas-phase reactant, supplied from behind) | I59: 1.0 M KOH (pH 14) | J59: + flow - stirring | K59: Sustanion X37-50 | L59: (AEM) | M59: 1.0 M KOH (pH 14) | N59: + flow - stirring | O59: (Liquid-phase reactant, supplied in front) | P59: IrO2/Ti frit | Q59: ? | R59: ? | S59: CO2 | T59: -0.69 V -iR vs. RHE | U59: -400 mA/cm2 | V59: 71 | X59: J.-Y. Kim et al., Quasi-graphitic carbon shell-induced Cu confinement promotes electrocatalytic CO2 reduction toward C2+ products. Nature Communications 12, 3765 (2021). | Y59: 71 | AA59: 1 | AB59: 0 | AC59: 1
A60: 54 | B60: Single atom Cu sites enclosed in an Ir-containing Zr-based MOF framework with rod-like morphology, on carbon cloth | C60: Single atom, Atomically mixed/Crystalline | D60: Cu, Ir, Zr | E60: Nafion | F60: Catalyst on top of solid substrate (NPS) | G60: Ir/Zr/Cu_MOF/NRs | H60: (Solution-phase reactant, supplied in front) | I60: 1.0 M phosphate buffer saline | J60: - flow - stirring | K60: Nafion 212 | L60: (CEM) | M60: 1.0 M phosphate buffer saline | N60: - flow - stirring | O60: (Liquid-phase reactant, supplied in front) | P60: Pt wire | Q60: 25 | R60: 1 | S60: CO2 | T60: -1.0 V vs. RHE | U60: -28 mA/cm2 | V60: 71 | X60: Q. Mo et al., Engineering Dual Sites into the Confined Nanospace of the Porphyrinic Metal–Organic Framework for Tandem Transformation of CO2 to Ethylene. ACS Sustainable Chemistry & Engineering, (2024). | Y60: 71 | AA60: 0 | AB60: 0 | AC60: 1
A61: 55 | B61: Sputtered Cu with Carbon NP midlayer and graphite toplayer, on PTFE GDL | C61: Oxide-derived | D61: Cu, C | E61: - | F61: Catalyst on top of porous substrate (GDE) | G61: Cu-S/CNPs/Graph/PTFE | H61: (Gas-phase reactant, supplied from behind) | I61: 7.0 M KOH | J61: + flow - stirring | K61: Fumasep FAB-PK-130 | L61: (AEM) | M61: 7.0 M KOH | N61: + flow - stirring | O61: (Liquid-phase reactant, supplied in front) | P61: NiFeOx | Q61: ? | R61: ? | S61: CO2 | T61: -0.57 V - iR vs. RHE | U61: -100 mA/cm2 | V61: 70 | X61: A. Thevenon, A. Rosas-Hernández, J. C. Peters, T. Agapie, In-Situ Nanostructuring and Stabilization of Polycrystalline Copper by an Organic Salt Additive Promotes Electrocatalytic CO2 Reduction to Ethylene. Angewandte Chemie 131, 17108-17114 (2019). | Y61: 70 | AA61: 1 | AB61: 0 | AC61: 1
A62: 56 | B62: Cu3(PO4)2 particles, on glassy carbon | C62: Oxide-derived | D62: Cu, O, P | E62: Nafion | F62: Catalyst on top of solid substrate (NPS) | G62: Cu3(PO4)2_particles/C | H62: (Solution-phase reactant, supplied in front) | I62: 0.1 M KHCO3 (pH 6.8) | J62: - flow - stirring | K62: Nafion 117 | L62: (CEM) | M62: 0.1 M KHCO3 (pH 6.8) | N62: - flow - stirring | O62: (Liquid-phase reactant, supplied in front) | P62: Pt mesh | Q62: ? | R62: ? | S62: CO2 | T62: -1.45 V vs. RHE | U62: -23 mA/cm2 | V62: 70 | X62: X. Y. Zhang et al., Direct OC-CHO coupling towards highly C2+ products selective electroreduction over stable Cu0/Cu2+ interface. Nature Communications 14, 7681 (2023). | Y62: 70 | AA62: 0 | AB62: 0 | AC62: 1
A63: 57 | B63: Iodine-doped copper oxychloride NPs, on glassy carbon | C63: Oxide-derived | D63: Cu, O, Cl, I | E63: Nafion | F63: Catalyst on top of solid substrate (NPS) | G63: I/CuOCl | H63: (Solution-phase reactant, supplied in front) | I63: 0.05 M KHCO3 | J63: - flow + stirring | K63: - | L63: (n/a) | M63: 0.05 M KHCO3 | N63: - flow + stirring | O63: (Liquid-phase reactant, supplied in front) | P63: Pt foil | Q63: 20 | R63: ? | S63: CO2 | T63: -1.71 V vs. RHE | U63: -29 mA/cm2 | V63: 70 | X63: H. Bai et al., Controllable CO adsorption determines ethylene and methane productions from CO2 electroreduction. Science Bulletin 66, 62-68 (2021). | Y63: 70 | AA63: 0 | AB63: 0 | AC63: 1
A64: 58 | B64: Wet-chemical induced (NaOH / (NH4)2S2O8) high roughness nanoporous CuOx layer on Cu plate | C64: Oxide-derived | D64: Cu, O | E64: - | F64: Catalyst on top of solid substrate (NPS) | G64: Chemical/CuOx_porous | H64: (Solution-phase reactant, supplied in front) | I64: 1.0 M KOH | J64: - flow - stirring | K64: "Nafion" | L64: (CEM) | M64: 1.0 M KOH + 0.1 M L-ascorbate†_oxidic,6 | N64: - flow - stirring | O64: (Liquid-phase reactant, supplied in front) | P64: Pt mesh | Q64: 25 | R64: 40 | S64: CO | T64: -0.8 V vs. RHE | U64: -130 mA/cm2 | V64: 70 | X64: W. Yang et al., Boosting C–C coupling to multicarbon products via high-pressure CO electroreduction. Journal of Energy Chemistry 85, 102-107 (2023). | Y64: 70 | AA64: 0 | AB64: 1 | AC64: 1
A65: 59 | B65: Template-assisted electroplated nanoporous (20 nm pore diameter) CuOx overlayer on Cu plate | C65: Oxide-derived | D65: Cu, O | E65: - | F65: Catalyst on top of solid substrate (NPS) | G65: CuOx_mesoporous | H65: (Solution-phase reactant, supplied in front) | I65: 0.1 M KHCO3 | J65: - flow + stirring | K65: Nafion 117 | L65: (CEM) | M65: 0.1 M KHCO3 | N65: - flow - stirring | O65: (Liquid-phase reactant, supplied in front) | P65: Pt gauze | Q65: 25 | R65: ? | S65: CO2 | T65: -0.99 V vs. RHE | U65: -63 mA/cm2 | V65: 70 | X65: J. Han et al., Structuring Cu Membrane Electrode for Maximizing Ethylene Yield from CO2 Electroreduction. Advanced Materials n/a, 2313926. | Y65: 70 | AA65: 0 | AB65: 0 | AC65: 1
A66: 60 | B66: CuO NPs supported on Al2CuO4 nanosheets, on GDL | C66: Mixed-phase/Janus, atomically mixed/crystalline, A-supports-B | D66: Cu, Al, O | E66: Nafion | F66: Catalyst on top of porous substrate (GDE) | G66: CuO_NPs/Al2CuO4_NSs | H66: (Gas-phase reactant, supplied from behind) | I66: 1.0 M KOH (pH 14) | J66: + flow - stirring | K66: FAA-3- PK-130 | L66: (AEM) | M66: 1.0 M KOH (pH 14) | N66: + flow - stirring | O66: (Liquid-phase reactant, supplied in front) | P66: Ni-Fe-Mo foil | Q66: 25 | R66: ? | S66: CO2 | T66: -2.03 V - iR vs. RHE | U66: -600 mA/cm2 | V66: 70 | X66: S. Sultan et al., Interface rich CuO/Al2CuO4 surface for selective ethylene production from electrochemical CO2 conversion. Energy & Environmental Science, (2022). | Y66: 70 | AA66: 1 | AB66: 0 | AC66: 1
A67: 61 | B67: Mg surface-doped CuOx NPs (Mg0.72Cu), on GDL | C67: Alloyed/Doped | D67: Cu, Mg, O | E67: Nafion | F67: Catalyst on top of porous substrate (GDE) | G67: Mg/CuOx_NPs | H67: (Gas-phase reactant, supplied from behind) | I67: 1.0 M KOH | J67: + flow - stirring | K67: NEOSEPTA, AHA | L67: (AEM) | M67: 1.0 M KOH | N67: + flow - stirring | O67: (Liquid-phase reactant, supplied in front) | P67: Foamed Ni | Q67: ? | R67: ? | S67: CO2 | T67: -0.69 V - iR vs. RHE | U67: -650 mA/cm2 | V67: 70 | X67: M. Xie et al., Fast Screening for Copper-Based Bimetallic Electrocatalysts: Efficient Electrocatalytic Reduction of CO2 to C2+ Products on Magnesium-Modified Copper. Angewandte Chemie International Edition 61, e202213423 (2022). | Y67: 70 | AA67: 1 | AB67: 0 | AC67: 1
A68: 62 | B68: Cold H2 plasma-treated porous mixed CoOx/CuOx, on glassy carbon | C68: Mixed-phase/Janus | D68: Cu, Co | E68: Nafion | F68: Catalyst on top of solid substrate (NPS) | G68: Porous-CoOx/CuOx_NPs | H68: (Solution-phase reactant, supplied in front) | I68: 0.1 M KHCO3 | J68: - flow - stirring | K68: ? | L68: ? | M68: 0.1 M KHCO3 | N68: - flow - stirring | O68: (Liquid-phase reactant, supplied in front) | P68: Pt | Q68: 25 | R68: 1 | S68: CO2 | T68: -1.0 V vs. RHE | U68: -21 mA/cm2 | V68: 70 | X68: J. Wang et al., Cold plasma activated Cu–Co multi-active centers tandem catalysts for efficient electrocatalytic CO2 into C2H4. Vacuum 222, 113017 (2024). | Y68: 70 | AA68: 0 | AB68: 0 | AC68: 1
A69: 63 | B69: Hollow Cu/CeO2 nanotubes composed of aggregated nanoparticles, on carbon paper - prepared by decorating electrospun polyacrylonitrile (PAN) fibres with metal and burning away the PAN | C69: Mixed-phase/Janus | D69: Cu, Ce, O | E69: Nafion | F69: Catalyst on top of porous substrate (GDE) | G69: CeO2/CuO_hollow-NTs | H69: (Solution-phase reactant, supplied in front) | I69: 0.1 M K2SO4 | J69: - flow - stirring | K69: Nafion 117 | L69: (CEM) | M69: 0.1 M K2SO4 | N69: - flow - stirring | O69: (Liquid-phase reactant, supplied in front) | P69: Pt net | Q69: 25 | R69: 1 | S69: CO2 | T69: -1.1 V vs. RHE | U69: -25 mA/cm2 | V69: 70 | X69: D. Tan, B. Wulan, X. Cao, J. Zhang, Strong interactions of metal-support for efficient reduction of carbon dioxide into ethylene. Nano Energy 89, 106460 (2021). | Y69: 70 | AA69: 0 | AB69: 0 | AC69: 1
A70: 64 | B70: Cu3(2,3,6,7,10,11-hexaiminotriphenylene)2 MOF supported on Ketjen Black, on glassy carbon | C70: MOF, supported | D70: Cu, O, C | E70: Nafion | F70: Catalyst on top of solid substrate (NPS) | G70: Semi-conductive/Cu-MOF | H70: (Solution-phase reactant, supplied in front) | I70: 0.1 M KHCO3 (pH 6.8) | J70: - flow - stirring | K70: Nafion | L70: (CEM) | M70: 0.1 M KHCO3 (pH 6.8) | N70: - flow - stirring | O70: (Liquid-phase reactant, supplied in front) | P70: Carbon rod | Q70: ? | R70: ? | S70: CO2 | T70: -1.37 V - iR vs. RHE | U70: -38 mA/cm2 | V70: 70 | X70: H. Sun et al., Promoting ethylene production over a wide potential window on Cu crystallites induced and stabilized via current shock and charge delocalization. Nature Communications 12, 6823 (2021). | Y70: 70 | AA70: 0 | AB70: 0 | AC70: 1
A71: 65 | B71: In-situ formed Cu2O ultra-small NPs derived from CO2RR/KCl electro-activated Cu(Pyrazole)2 MOF, on carbon paper | C71: MOF, supported | D71: Cu, O, C, N | E71: Nafion | F71: Catalyst on top of porous substrate (GDE) | G71: Activated/Cu-MOF | H71: (Solution-phase reactant, supplied in front) | I71: 0.1 M KCl | J71: - flow - stirring | K71: Nafion | L71: (CEM) | M71: 0.1 M KCl | N71: - flow - stirring | O71: (Liquid-phase reactant, supplied in front) | P71: Pt foil | Q71: ? | R71: ? | S71: CO2 | T71: -1.03 V - iR vs. RHE | U71: -18 mA/cm2 | V71: 70 | X71: C. Liu et al., In Situ Reconstruction of Cu–N Coordinated MOFs to Generate Dispersive Cu/Cu2O Nanoclusters for Selective Electroreduction of CO2 to C2H4. ACS Catal 12, 15230-15240 (2022). | Y71: =_xlfn.NUMBERVALUE(LEFT(V71,2)) -> 70 | AA71: 0 | AB71: 0 | AC71: 1
A72: 66 | B72: Sputtered Cu with Carbon NP midlayer and graphite toplayer, on PTFE GDL | C72: Overlayer | D72: Cu, C | E72: CNPs, Graphite | F72: Catalyst on top of porous substrate (GDE) | G72: Cu-S/CNPs/Graph/PTFE | H72: (Gas-phase reactant, supplied from behind) | I72: 7.0 M KOH (pH 14.7) | J72: + flow - stirring | K72: Fumasep FAB-PK-130 | L72: (AEM) | M72: 7.0 M KOH (pH 14.7) | N72: + flow - stirring | O72: (Liquid-phase reactant, supplied in front) | P72: NiFeOx | Q72: ? | R72: ? | S72: CO2 | T72: -0.57 V - iR vs. RHE | U72: -100 mA/cm2 | V72: 70 | X72: C.-T. Dinh et al., CO2 electroreduction to ethylene via hydroxide-mediated copper catalysis at an abrupt interface. Science 360, 783-787 (2018). | Y72: 70 | AA72: =_xlfn.LET(_xlpm.CO_2,IF(S72="CO2",1,0),_xlpm.AEM_dry,INT(AND(IF(J72="(n/a)",1,0),IF(L72="(AEM)",1,0))), _xlpm.alk_electrolyte,IF(SUM(IFERROR(FIND("KOH",I72),0),IFERROR(FIND("NaOH",I72),0),IFERROR(FIND("CsOH",I72),0), IFERROR(FIND("LiOH",I72),0), IFERROR(FIND("RbOH",I72),0))>0,1,0),_xlpm.alkaline,OR(_xlpm.AEM_dry,_xlpm.alk_electrolyte),_xlpm.rslt,INT(AND(_xlpm.CO_2,_xlpm.alkaline)),_xlpm.rslt) -> 1 | AB72: =IF(S72="CO",1,0) -> 0 | AC72: =IF(_xlfn.NUMBERVALUE(LEFT(V72,2))>=55,1,0) -> 1
A73: =A72+1 -> 67 | B73: Electroplated Cu (60 s @ 400 mA/cm2) from CuBr2/tartrate/1 M KOH-containing bath with active CO2 flow (though CO also seems to work), with Carbon NP midlayer and graphite toplayer, on Cu-sputtered PTFE GDL (ambiguously reported) | C73: Overlayer | D73: Cu, C | E73: CNPs/Nafion, Graphite/Nafion | F73: Catalyst on top of porous substrate (GDE) | G73: CO2/plated_Cu | H73: (Gas-phase reactant, supplied from behind) | I73: 7.0 M KOH (pH 14.7) | J73: + flow - stirring | K73: Fumapem FAA-3-PK-130 | L73: (AEM) | M73: 7.0 M KOH (pH 14.7) | N73: + flow - stirring | O73: (Liquid-phase reactant, supplied in front) | P73: NiFe hydroxides/Ni mesh | Q73: ? | R73: ? | S73: CO2 | T73: -0.67 V - iR vs. RHE | U73: -280 mA/cm2 | V73: 70 | X73: Y. Wang et al., Catalyst synthesis under CO2 electroreduction favours faceting and promotes renewable fuels electrosynthesis. Nature Catalysis, (2019). | Y73: 70 | AA73: 1 | AB73: 0 | AC73: 1
A74: 68 | B74: Carbon black NP (XC72R) overlayer on top of Cu-sputtered PTFE GDL | C74: Overlayer | D74: Cu, C | E74: Nafion | F74: Catalyst on top of porous substrate (GDE) | G74: CNP_over/Cu-sputtered | H74: (Gas-phase reactant, supplied from behind) | I74: 0.5 M KHCO3 + 0.5 M KCl | J74: + flow - stirring | K74: Nafion 117 | L74: (CEM) | M74: 0.5 M KHCO3 + 0.5 M KCl | N74: + flow - stirring | O74: (Liquid-phase reactant, supplied in front) | P74: Pt foil | Q74: ? | R74: ? | S74: CO2 | T74: -0.89 V -iR vs. RHE | U74: -500 mA/cm2 | V74: 70 | X74: Z. Wang et al., Localized Alkaline Environment via In Situ Electrostatic Confinement for Enhanced CO2-to-Ethylene Conversion in Neutral Medium. Journal of the American Chemical Society 145, 6339-6348 (2023). | Y74: 70 | AA74: 0 | AB74: 0 | AC74: 1
A75: 69 | B75: 80-100 nm Cu2−xS NPs, on glassy carbon | C75: Oxide-derived | D75: Cu, S | E75: - | F75: Catalyst on top of solid substrate (NPS) | G75: 90nm-Cu2Sx_NPs | H75: (Solution-phase reactant, supplied in front) | I75: 0.1 M KHCO3 (pH 6.8) | J75: - flow + stirring | K75: Nafion 117 | L75: (CEM) | M75: 0.1 M KHCO3 (pH 6.8) | N75: - flow + stirring | O75: (Liquid-phase reactant, supplied in front) | P75: Pt plate (?) | Q75: ? | R75: ? | S75: CO2 | T75: -1.2 V vs. RHE | U75: -51 mA/cm2 | V75: 69 | X75: C. He et al., Cu2−xS derived copper nanoparticles: A platform for unraveling the role of surface reconstruction in efficient electrocatalytic CO2-to-C2H4 conversion. Nano Research 16, 4494-4498 (2021). | Y75: 69 | AA75: 0 | AB75: 0 | AC75: 1
A76: 70 | B76: Cu nanoneedles electrodeposited on Cu-sputtered PTFE GDL | C76: Oxide-derived | D76: Cu, O | E76: - | F76: Catalyst on top of porous substrate (GDE) | G76: Cu_NN | H76: (Gas-phase reactant, supplied from behind) | I76: 3.0 M KCl + x mM HCl (pH 1) | J76: + flow - stirring | K76: Nafion 117 | L76: (CEM) | M76: 0.5 M H2SO4 | N76: + flow - stirring | O76: (Liquid-phase reactant, supplied in front) | P76: IrO2/Ti | Q76: ? | R76: ? | S76: CO2 | T76: -2 V -iR vs. RHE | U76: -1200 mA/cm2 | V76: 69 | X76: X. Zi et al., Breaking K+ Concentration Limit on Cu Nanoneedles for Acidic Electrocatalytic CO2 Reduction to Multi-Carbon Products. Angewandte Chemie International Edition n/a, e202309351. | Y76: 69 | AA76: 0 | AB76: 0 | AC76: 1
A77: 71 | B77: Cu/Ag obtained using magnetron sputtering, on a GDL | C77: Mixed-phase/Janus | D77: Cu, Ag, Al | E77: Nafion | F77: Catalyst on top of porous substrate (GDE) | G77: Cu52Ag48 | H77: (Gas-phase reactant, supplied from behind) | I77: - | J77: (n/a) | K77: Sustainion X37-50 Grade 60 | L77: (AEM) | M77: 1.0 M KOH (pH 14) | N77: + flow - stirring | O77: (Liquid-phase reactant, forced through surface) | P77: Ni foam | Q77: ? | R77: ? | S77: CO2 | T77: - | U77: -451 mA/cm2 | V77: 69 | X77: Zhang, Y., et al. (2024). "Enhanced interfacial effect-induced asymmetric coupling boost electroreduction of CO2 to ethylene." Applied Catalysis B: Environment and Energy 344: 123666. | Y77: 69 | AA77: 1 | AB77: 0 | AC77: 1
A78: 72 | B78: Cu NPs supported on XC-72R, on home-made GDL | C78: Supported | D78: Cu, C | E78: - | F78: Catalyst on top of porous substrate (GDE) | G78: Cu_NPs/custom-GDL | H78: (Gas-phase reactant, supplied from behind) | I78: 1.0 M KOH (pH 14) | J78: - flow - stirring | K78: - | L78: (n/a) | M78: 1.0 M KOH (pH 14) | N78: - flow - stirring | O78: (Liquid-phase reactant, supplied in front) | P78: "Pt" | Q78: 2†_Cu-C-supported,3 | R78: ? | S78: CO2 | T78: -3 V vs. Ag/AgCl | U78: -400 mA/cm2 | V78: 69 | X78: R. L. Cook, R. C. MacDuff, A. F. Sammells, High rate gas phase CO2 reduction to ethylene and methane using gas diffusion electrodes. Journal of The Electrochemical Society 137, 607-608 (1990). | Y78: 69 | AA78: 1 | AB78: 0 | AC78: 1
A79: 73 | B79: Solution-phase Cu phenanthroline complex with carbon paper cathode | C79: TMC, supported | D79: Cu | E79: - | F79: Catalyst on top of porous substrate (GDE) | G79: Phenanthroline/Cu_TMC | H79: (Solution-phase reactant, supplied in front) | I79: 0.1 M KHCO3 (pH 6.8) | J79: - flow - stirring | K79: "Hangzhou Huamo Technology Co., Ltd" | L79: (AEM) | M79: 0.1 M KHCO3 (pH 6.8) | N79: - flow - stirring | O79: (Liquid-phase reactant, supplied in front) | P79: Pt plate | Q79: ? | R79: ? | S79: CO2 | T79: -1.3 V vs. RHE | U79: -7 mA/cm2 | V79: 69 | X79: J. Du, B. Cheng, L. Jiang, Z. Han, Copper phenanthroline for selective electrochemical CO2 reduction on carbon paper. Chemical Communications 59, 4778-4781 (2023). | Y79: 69 | AA79: 0 | AB79: 0 | AC79: 1
A80: 74 | B80: Ag/Au (3:1 ratio) alloy, highly defective, cubic wireframe NPs (59 nm) post-modified with epitaxially deposited Cu ‘overlayer’, on glassy carbon | C80: A-supports-B, alloyed/doped | D80: Ag, Au, Cu | E80: Nafion | F80: Catalyst on top of solid substrate (NPS) | G80: Ag3Au-NF/Cu | H80: (Solution-phase reactant, supplied in front) | I80: 0.1 M KHCO3 | J80: - flow - stirring | K80: "Nafion" | L80: (CEM) | M80: 0.1 M KHCO3 | N80: - flow - stirring | O80: (Liquid-phase reactant, supplied in front) | P80: Pt net | Q80: ? | R80: ? | S80: CO2 | T80: -1.2 V vs. RHE | U80: -13 mA/cm2 | V80: 69 | X80: L. Xiong et al., Breaking the Linear Scaling Relationship by Compositional and Structural Crafting of Ternary Cu–Au/Ag Nanoframes for Electrocatalytic Ethylene Production. Angewandte Chemie International Edition 60, 2508-2518 (2021). | Y80: 69 | AA80: 0 | AB80: 0 | AC80: 1
A81: 75 | B81: Aquivion toplayer on N,N’-ethylene-phenanthrolinium electrodeposition-modified Cu-sputtered PTFE GDL | C81: Overlayer | D81: Cu | E81: Aquivion D79-25BS, N,N’-ethylene-phenanthrolinium dibromide | F81: Catalyst on top of porous substrate (GDE) | G81: Multi-functionalized/Cu_PTFE | H81: (Gas-phase reactant, supplied from behind) | I81: 0.1 M KHCO3 (pH 6.8) | J81: + flow - stirring | K81: Sustainion X37-50 | L81: (AEM) | M81: 0.1 M KHCO3 (pH 6.8) | N81: + flow - stirring | O81: (Liquid-phase reactant, supplied in front) | P81: IrO2/Ti mesh | Q81: ? | R81: ? | S81: CO2 | T81: -4.4 V vs. ANODE | U81: -330 mA/cm2 | V81: 69 | X81: A. Ozden et al., High-Rate and Efficient Ethylene Electrosynthesis Using a Catalyst/Promoter/Transport Layer. ACS Energy Letters 5, 2811-2818 (2020). | Y81: 69 | AA81: 0 | AB81: 0 | AC81: 1
A82: 76 | B82: Branched/'spikey' CuO NPs derived from NH3-treated Cu2O NCs supported on Ketjen black, on on glassy carbon | C82: Oxide-derived | D82: Cu, O, C | E82: Nafion (top-coat) | F82: Catalyst on top of solid substrate (NPS) | G82: Branched_CuO_NPs-NH3 | H82: (Solution-phase reactant, supplied in front) | I82: 0.1 M KHCO3 (pH 6.8) | J82: - flow - stirring | K82: Nafion 117 | L82: (CEM) | M82: 0.1 M KHCO3 (pH 6.8) | N82: - flow - stirring | O82: (Liquid-phase reactant, supplied in front) | P82: Pt | Q82: ? | R82: ? | S82: CO2 | T82: -1.05 V -iR vs. RHE | U82: -26 mA/cm2 | V82: 68 | X82: J. Kim et al., Branched Copper Oxide Nanoparticles Induce Highly Selective Ethylene Production by Electrochemical Carbon Dioxide Reduction. Journal of the American Chemical Society 141, 6986-6994 (2019). | Y82: 68 | AA82: 0 | AB82: 0 | AC82: 1
A83: 77 | B83: Calcined (in Al foil!) electroplated Cu dendrites, on GDL | C83: Oxide-derived | D83: Cu, O, Al (?) | E83: Nafion | F83: Catalyst on top of porous substrate (GDE) | G83: CuOx dendrites | H83: (Gas-phase reactant, supplied from behind) | I83: - | J83: (n/a) | K83: Sustainion X37-59 Grade 60 | L83: (AEM) | M83: 0.1 M KOH (pH 13) | N83: + flow - stirring | O83: (Liquid-phase reactant, supplied in front) | P83: NiFe/SS | Q83: ? | R83: ? | S83: CO | T83: -3.1 V vs. ANODE | U83: -100 mA/cm2 | V83: 68 | X83: N.-H. Tran et al., Selective Ethylene Production from CO2 and CO Reduction via Engineering Membrane Electrode Assembly with Porous Dendritic Copper Oxide. ACS Applied Materials & Interfaces 14, 31933-31941 (2022). | Y83: 68 | AA83: 0 | AB83: 1 | AC83: 1
A84: 78 | B84: Electrochemical-assisted iodine-reconstructed Cu foil | C84: Oxide-derived | D84: Cu, O, I | E84: - | F84: Catalyst on top of solid substrate (NPS) | G84: I/CuOx | H84: (Solution-phase reactant, supplied in front) | I84: 1.0 M KOH (pH 14) | J84: - flow - stirring | K84: Nafion 117 | L84: (CEM) | M84: 1.0 M KOH (pH 14) | N84: - flow - stirring | O84: (Liquid-phase reactant, supplied in front) | P84: Pt gauze | Q84: ? | R84: ? | S84: CO | T84: -0.56 V vs. RHE | U84: -8 mA/cm2 | V84: 68 | X84: J. Han et al., A reconstructed porous copper surface promotes selectivity and efficiency toward C2 products by electrocatalytic CO2 reduction. Chemical Science 11, 10698-10704 (2020). | Y84: 68 | AA84: 0 | AB84: 1 | AC84: 1
A85: 79 | B85: Thin quasi-graphitic carbon-shell functionalized, B-doped Cu NPs supported on carbon fibers, on GDL | C85: Alloyed/Doped, Core/Shell | D85: Cu, C, B | E85: Nafion | F85: Catalyst on top of porous substrate (GDE) | G85: C-shell_B/Cu-NPs_CNT | H85: (Gas-phase reactant, supplied from behind) | I85: 1.0 M KOH (pH 14) | J85: + flow - stirring | K85: Sustanion X37-50 | L85: (AEM) | M85: 1.0 M KOH (pH 14) | N85: + flow - stirring | O85: (Liquid-phase reactant, supplied in front) | P85: IrO2/Ti frit | Q85: ? | R85: ? | S85: CO2 | T85: -0.55 V -iR vs. RHE | U85: -300 mA/cm2 | V85: 68 | X85: J.-Y. Kim et al., Quasi-graphitic carbon shell-induced Cu confinement promotes electrocatalytic CO2 reduction toward C2+ products. Nature Communications 12, 3765 (2021). | Y85: 68 | AA85: 1 | AB85: 0 | AC85: 1
A86: 80 | B86: Ag flakes (10 mass% vs. Cu) supported on Cu2O NPs (12 nm), on a GDL (YLS-30 T) | C86: Mixed-phase/Janus, A-supports-B | D86: Cu, Ag, O | E86: Nafion | F86: Catalyst on top of porous substrate (GDE) | G86: Ag/CuO_NPs | H86: (Gas-phase reactant, supplied from behind) | I86: 3.0 M KOH | J86: + flow - stirring | K86: Nafion 117 | L86: (CEM) | M86: 3.0 M KOH | N86: + flow - stirring | O86: (Liquid-phase reactant, supplied in front) | P86: Pt sheet | Q86: ? | R86: ? | S86: CO2 | T86: ? | U86: -650 mA/cm2 | V86: 68 | X86: Wei, Z. et al. Constructing Ag/Cu2O Interface for Efficient Neutral CO2 Electroreduction to C2H4. Angewandte Chemie International Edition n/a, e202417066, doi:https://doi.org/10.1002/anie.202417066. | Y86: 68 | AA86: 1 | AB86: 0 | AC86: 1
A87: 81 | B87: Right bipyramidal {100}-rich Cu NPs with stacking faults, on GDL | C87: Metallic Cu | D87: Cu | E87: Nafion | F87: Catalyst on top of porous substrate (GDE) | G87: Bipyramidal/Cu-NPs | H87: (Gas-phase reactant, supplied from behind) | I87: 1.0 M KOH (pH 14) | J87: + flow - stirring | K87: FAA-3-PK-75 | L87: (AEM) | M87: 1.0 M KOH (pH 14) | N87: + flow - stirring | O87: (Liquid-phase reactant, supplied in front) | P87: Ni foam | Q87: 25 | R87: 1 | S87: CO2 | T87: -0.63 V - iR vs. RHE | U87: -325 mA/cm2 | V87: 67 | X87: Z. Li et al., Planar defect-driven electrocatalysis of CO2-to-C2H4 conversion. Journal of Materials Chemistry A 9, 19932-19939 (2021). | Y87: 67 | AA87: 1 | AB87: 0 | AC87: 1
A88: 82 | B88: Metallic Cu NPs mixed with PTFE, dropcast on GDL | C88: Metallic Cu | D88: Cu | E88: Nafion, PTFE | F88: Catalyst on top of porous substrate (GDE) | G88: PTFE/Cu_NPs | H88: (Gas-phase reactant, supplied from behind) | I88: 1.0 M KHCO3 | J88: + flow - stirring | K88: Selemion DSVN | L88: (AEM) | M88: 1.0 M KHCO3 | N88: + flow - stirring | O88: (Liquid-phase reactant, supplied in front) | P88: IrO2/Ti sheet | Q88: ? | R88: ? | S88: CO | T88: -1.38 V - iR vs. RHE | U88: -600 mA/cm2 | V88: 67 | X88: M. Liu et al., Potential Alignment in Tandem Catalysts Enhances CO2-to-C2H4 Conversion Efficiencies. Journal of the American Chemical Society 146, 468-475 (2024). | Y88: 67 | AA88: 0 | AB88: 1 | AC88: 1
A89: 83 | B89: Cu3(PO4)2-derived Cu NPs on glassy carbon | C89: Oxide-derived | D89: Cu | E89: Nafion | F89: Catalyst on top of solid substrate (NPS) | G89: Cu3(PO4)2 NS-derived Cu | H89: (Solution-phase reactant, supplied in front) | I89: 0.1 M KHCO3 (pH 6.8) | J89: - flow - stirring | K89: Nafion 117 | L89: (CEM) | M89: 0.1 M KHCO3 (pH 6.8) | N89: - flow - stirring | O89: (Liquid-phase reactant, supplied in front) | P89: Pt gauze | Q89: ? | R89: ? | S89: CO2 | T89: -1.48 V vs. RHE | U89: -33 mA/cm2 | V89: 67 | X89: B. Zhang et al., Steering CO2 electroreduction toward methane or ethylene production. Nano Energy 88, 106239 (2021). | Y89: 67 | AA89: 0 | AB89: 0 | AC89: 1
A90: 84 | B90: Grainboundary-rich Cu2CO3(OH)2-derived Cu nanoribbons, on carbon paper | C90: Oxide-derived | D90: Cu, O, C | E90: - | F90: Catalyst on top of porous substrate (GDE) | G90: Cu2CO3(OH)2-derived Cu/C | H90: (Gas-phase reactant, supplied from behind) | I90: 1.0 M KOH (pH 14) | J90: + flow - stirring | K90: Fumapem FAA-3-PK-130 | L90: (AEM) | M90: 1.0 M KOH (pH 14) | N90: + flow - stirring | O90: (Liquid-phase reactant, supplied in front) | P90: SS mesh | Q90: ? | R90: ? | S90: CO2 | T90: -1.27 V vs. RHE | U90: -700 mA/cm2 | V90: 67 | X90: L. Bian et al., Grain boundary-abundant copper nanoribbons on balanced gas-liquid diffusion electrodes for efficient CO2 electroreduction to C2H4. Chinese Journal of Catalysis 54, 199-211 (2023). | Y90: 67 | AA90: 1 | AB90: 0 | AC90: 1
A91: 85 | B91: {111}-facet rich octahedral Cu2O NPs supported on hydroxl-rich acetylene black carbon, on glassy carbon | C91: Oxide-derived | D91: Cu, O, C | E91: Nafion | F91: Catalyst on top of solid substrate (NPS) | G91: OH-C/Cu2O | H91: (Solution-phase reactant, supplied in front) | I91: 0.5 M KHCO3 | J91: - flow - stirring | K91: ? | L91: (AEM) | M91: 0.5 M KHCO3 | N91: - flow - stirring | O91: (Liquid-phase reactant, supplied in front) | P91: Carbon rod | Q91: ? | R91: ? | S91: CO2 | T91: -1.1 V vs. RHE | U91: -67 mA/cm2 | V91: 67 | X91: Y. Gao et al., Promoting Electrocatalytic Reduction of CO2 to C2H4 Production by Inhibiting C2H5OH Desorption from Cu2O/C Composite. Small 18, 2105212 (2022). | Y91: 67 | AA91: 0 | AB91: 0 | AC91: 1
A92: 86 | B92: Electroplated (1 C/cm2) Cu2O from lactic-acid containing bath, on GDL | C92: Oxide-derived | D92: Cu, O | E92: - | F92: Catalyst on top of porous substrate (GDE) | G92: Lactate/Cu2O | H92: (Gas-phase reactant, supplied from behind) | I92: 1 M KOH (pH 14) | J92: + flow - stirring | K92: - | L92: (n/a) | M92: 1 M KOH (pH 14) | N92: + flow - stirring | O92: (Liquid-phase reactant, supplied in front) | P92: IrO2/C | Q92: 25 | R92: 1 | S92: CO2 | T92: -0.8 V vs. RHE | U92: -183 mA/cm2 | V92: 67 | X92: D. Anastasiadou, M. Schellekens, M. de Heer, S. Verma, E. Negro, Electrodeposited Cu2O Films on Gas Diffusion Layers for Selective CO2 Electroreduction to Ethylene in an Alkaline Flow Electrolyzer. ChemElectroChem 6, 3928-3932 (2019). | Y92: 67 | AA92: 1 | AB92: 0 | AC92: 1
A93: 87 | B93: Vulcan XC-72 toplayer on Co-TMC midlayer, on Cu-sputtered PTFE GDL | C93: Overlayer | D93: Cu, Co, C | E93: Nafion | F93: Catalyst on top of porous substrate (GDE) | G93: Co-TMC/Cu_sputtered | H93: (Gas-phase reactant, supplied from behind) | I93: 1.0 M KOH | J93: + flow - stirring | K93: Nafion 115 | L93: (CEM) | M93: 1.0 M KOH | N93: + flow - stirring | O93: (Liquid-phase reactant, forced through surface) | P93: Ni foam | Q93: ? | R93: ? | S93: CO2 | T93: -0.79 V - iR vs. RHE | U93: -420 mA/cm2 | V93: 67 | X93: X. Kong et al., Understanding the Effect of *CO Coverage on C–C Coupling toward CO2 Electroreduction. Nano Letters 22, 3801-3808 (2022). | Y93: 67 | AA93: 1 | AB93: 0 | AC93: 1
A94: 88 | B94: Cu NCs doped with AgNO3, on solid substrate | C94: Cubes, Mixed-phase/Janus | D94: Cu, Ag | E94: Nafion | F94: Catalyst on top of solid substrate (NPS) | G94: 0-Cu2O/Ag | H94: (Solution-phase reactant, supplied in front) | I94: 0.5 M KHCO3 (pH 6.8) | J94: - flow - stirring | K94: Nafion 115 | L94: (CEM) | M94: ? | O94: (Liquid-phase reactant, forced through surface) | P94: Pt mesh | Q94: ? | R94: ? | S94: CO2 | T94: -1.2 V vs. RHE | U94: -27 mA/cm2 | V94: 67 | X94: Dong, G., et al. (2023). "Synergetic enhancement of selectivity for electroreduction of CO2 to C2H4 by crystal facet engineering and tandem catalysis over silver-incorporated-cuprous oxides." Materials Reports: Energy 3(2): 100195. | Y94: 67 | AA94: 0 | AB94: 0 | AC94: 1
A95: 89 | B95: Water-etched Cu MOF ([Cu2(benzene-1,3,5-tricarboxylic acid,)(OH)(H2O)]n·2nH2O), on glassy carbon | C95: MOF, supported | D95: Cu | E95: - | F95: Catalyst on top of solid substrate (NPS) | G95: H2O-etch/Cu_MOF | H95: (Solution-phase reactant, supplied in front) | I95: 0.1 M KHCO3 + 0.1 M KCl (pH 6.8) | J95: - flow - stirring | K95: Nafion 117 | L95: (CEM) | M95: 0.1 M KHCO3 + 0.1 M KCl (pH 6.8) | N95: - flow - stirring | O95: (Liquid-phase reactant, supplied in front) | P95: Pt mesh | Q95: ? | R95: ? | S95: CO2 | T95: -1.40 V vs. RHE | U95: -23 mA/cm2 | V95: 67 | X95: C. F. Wen et al., A copper coordination polymer precatalyst with asymmetric building units for selective CO2-to-C2H4 electrolysis. Journal of Materials Chemistry A 11, 12121-12129 (2023). | Y95: 67 | AA95: 0 | AB95: 0 | AC95: 1
A96: 90 | B96: Single atom Cu sites enclosed in an Ir-containing Zr-based MOF framework with rod-like morphology, on GDL | C96: Single atom, Atomically mixed/Crystalline | D96: Cu, Ir, Zr | E96: Nafion | F96: Catalyst on top of porous substrate (GDE) | G96: Ir/Zr/Cu_MOF/NRs | H96: (Gas-phase reactant, supplied from behind) | I96: 1.0 M phosphate buffer saline | J96: + flow - stirring | K96: Nafion 212 | L96: (CEM) | M96: 1.0 M phosphate buffer saline | N96: + flow - stirring | O96: (Liquid-phase reactant, supplied in front) | P96: Pt wire | Q96: 25 | R96: 1 | S96: CO2 | T96: -1.0 V vs. RHE | U96: -80†_Cu-multi_element,1 mA/cm2 | V96: 67 | X96: Q. Mo et al., Engineering Dual Sites into the Confined Nanospace of the Porphyrinic Metal–Organic Framework for Tandem Transformation of CO2 to Ethylene. ACS Sustainable Chemistry & Engineering, (2024). | Y96: 67 | AA96: 0 | AB96: 0 | AC96: 1
A97: 91 | B97: Hydrophobic Cu NPs electroplated from a PTFE-containing solution, on carbon paper | C97: Core/shell (in-)organic | D97: Cu | E97: PTFE | F97: Catalyst on top of porous substrate (GDE) | G97: PTFE/CuOx | H97: (Solution-phase reactant, supplied in front) | I97: 0.1 M CsI | J97: - flow - stirring | K97: Nafion 117 | L97: (CEM) | M97: 0.1 M CsI | N97: - flow - stirring | O97: (Liquid-phase reactant, supplied in front) | P97: Pt gauze | Q97: 25 | R97: ? | S97: CO2 | T97: -1.25 V vs. RHE | U97: -35 mA/cm2 | V97: 67 | X97: T. Deng et al., Polymer Modification Strategy to Modulate Reaction Microenvironment for Enhanced CO2 Electroreduction to Ethylene. Angewandte Chemie International Edition 63, e202313796 (2024). | Y97: 67 | AA97: 0 | AB97: 0 | AC97: 1
A98: 92 | B98: 25 nm-thick Cu layer, evaporated on GDL | C98: Metallic Cu | D98: Cu | E98: - | F98: Catalyst on top of porous substrate (GDE) | G98: 25 nm Cu layer | H98: (Gas-phase reactant, supplied from behind) | I98: 10 M KOH | J98: + flow - stirring | K98: Fumasep FAB-PK-130 | L98: (AEM) | M98: 10 M KOH | N98: + flow - stirring | O98: (Liquid-phase reactant, supplied in front) | P98: Ni foam | Q98: ? | R98: ? | S98: CO2 | T98: -0.54 V - iR vs. RHE | U98: -275 mA/cm2 | V98: 66 | X98: C.-T. Dinh et al., CO2 electroreduction to ethylene via hydroxide-mediated copper catalysis at an abrupt interface. Science 360, 783-787 (2018). | Y98: 66 | AA98: 1 | AB98: 0 | AC98: 1
A99: 93 | B99: 25 nm-thick Cu layer, evaporated on GDL | C99: Oxide-derived | D99: Cu | E99: - | F99: Catalyst on top of porous substrate (GDE) | G99: 25 nm Cu layer | H99: (Gas-phase reactant, supplied from behind) | I99: 10.0 M KOH | J99: + flow - stirring | K99: Fumasep FAB-PK-130 | L99: (AEM) | M99: 10.0 M KOH | N99: + flow - stirring | O99: (Liquid-phase reactant, supplied in front) | P99: Ni foam | Q99: ? | R99: ? | S99: CO2 | T99: -0.54 V - iR vs. RHE | U99: -275 mA/cm2 | V99: 66 | X99: A. Thevenon, A. Rosas-Hernández, J. C. Peters, T. Agapie, In-Situ Nanostructuring and Stabilization of Polycrystalline Copper by an Organic Salt Additive Promotes Electrocatalytic CO2 Reduction to Ethylene. Angewandte Chemie 131, 17108-17114 (2019). | Y99: 66 | AA99: 1 | AB99: 0 | AC99: 1
A100: 94 | B100: Cu3N-derived Cu NWs, on copper foam | C100: Oxide-derived | D100: Cu, N | E100: - | F100: Catalyst on top of porous substrate (GDE) | G100: N-doped/Cu NWs | H100: (Solution-phase reactant, supplied in front) | I100: 0.1 M KHCO3 (pH 6.8) | J100: - flow - stirring | K100: Nafion 115 | L100: (CEM) | M100: 0.1 M KHCO3 (pH 6.8) | N100: - flow - stirring | O100: (Liquid-phase reactant, supplied in front) | P100: Pt foil | Q100: 25 | R100: ? | S100: CO2 | T100: -1.0 V vs. RHE | U100: -51 mA/cm2 | V100: 66 | X100: Y. Mi et al., Selective Electroreduction of CO2 to C2 Products over Cu3N-Derived Cu Nanowires. ChemElectroChem 6, 2393-2397 (2019). | Y100: 66 | AA100: 0 | AB100: 0 | AC100: 1
A101: 95 | B101: CuOx NPs electrodeposited in the presence of CTAB, on Cu plate | C101: Oxide-derived | D101: Cu, O | E101: - | F101: Catalyst on top of solid substrate (NPS) | G101: CTAB/plate/CuOx_NPs | H101: (Solution-phase reactant, supplied in front) | I101: 0.5 M KCl | J101: - flow - stirring | K101: Nafion 115 | L101: (CEM) | M101: 0.5 M KCl | N101: - flow - stirring | O101: (Liquid-phase reactant, supplied in front) | P101: Platinized Ti | Q101: ? | R101: ? | S101: CO2 | T101: -1.0 V vs. RHE | U101: -18 mA/cm2 | V101: 66 | X101: A. Stalinraja, K. Gopalram, Electrochemical reduction of CO2 to C2 products—effect of surfactant on copper electrodeposition. Journal of Solid State Electrochemistry, (2023). | Y101: 66 | AA101: 0 | AB101: 0 | AC101: 1
A102: 96 | B102: In-situ reduced porous CuOx NPs derived from hydrothermal synthesis with tetrapropylammonium, on a GDL | C102: Oxide-derived | D102: Cu, O | E102: Nafion | F102: Catalyst on top of porous substrate (GDE) | G102: CuOx_NPs | H102: (Gas-phase reactant, supplied from behind) | I102: 3.0 M KOH | J102: + flow - stirring | K102: FUMA-FAA-3-PK-130 | L102: (AEM) | M102: 3.0 M KOH | N102: + flow - stirring | O102: (Liquid-phase reactant, forced through surface) | P102: Ni foam | Q102: 25 | R102: ? | S102: CO2 | T102: -1.25 V -iR vs. RHE | U102: -536 mA/cm2 | V102: 66 | X102: Jiao, J. et al. Lattice Strain Engineering Boosts CO2 Electroreduction to C2+ Products. Angewandte Chemie International Edition 63, e202409563, doi:https://doi.org/10.1002/anie.202409563 (2024). | Y102: 66 | AA102: 1 | AB102: 0 | AC102: 1
A103: 97 | B103: {100}-facet rich Cu NWs mixed with Ni-SAC and CNPs, on carbon paper | C103: Mixed-phase/Janus, A-supports-B | D103: Cu, Ni, C, N | E103: PVDF, NMP | F103: Catalyst on top of porous substrate (GDE) | G103: Ni-SAC/Cu_NWs | H103: (Gas-phase reactant, supplied from behind) | I103: 10 M KOH | J103: + flow - stirring | K103: - | L103: (n/a) | M103: 10 M KOH | N103: + flow - stirring | O103: (Liquid-phase reactant, forced through surface) | P103: Ni foam | Q103: ? | R103: ? | S103: CO2 | T103: -0.5 V vs. RHE | U103: -101 mA/cm2 | V103: 66 | X103: Z. Yin et al., Hybrid Catalyst Coupling Single-Atom Ni and Nanoscale Cu for Efficient CO2 Electroreduction to Ethylene. Journal of the American Chemical Society 144, 20931-20938 (2022). | Y103: 66 | AA103: 1 | AB103: 0 | AC103: 1
A104: 98 | B104: Ag flakes (10 mass% vs. Cu) supported on Cu2O NPs (12 nm), on a GDL (YLS-30 T) | C104: Mixed-phase/Janus, A-supports-B | D104: Cu, Ag, O | E104: Nafion | F104: Catalyst on top of porous substrate (GDE) | G104: Ag/CuO_NPs | H104: (Gas-phase reactant, supplied from behind) | I104: 3.0 M KCl | J104: + flow - stirring | K104: Nafion 117 | L104: (CEM) | M104: 3.0 M KOH | N104: + flow - stirring | O104: (Liquid-phase reactant, supplied in front) | P104: Pt sheet | Q104: ? | R104: ? | S104: CO2 | T104: ? | U104: -650 mA/cm2 | V104: 66 | X104: Wei, Z. et al. Constructing Ag/Cu2O Interface for Efficient Neutral CO2 Electroreduction to C2H4. Angewandte Chemie International Edition n/a, e202417066, doi:https://doi.org/10.1002/anie.202417066. | Y104: 66 | AA104: 0 | AB104: 0 | AC104: 1
A105: 99 | B105: 25 nm-thick Cu layer, evaporated on GDL | C105: Metallic Cu | D105: Cu | E105: - | F105: Catalyst on top of porous substrate (GDE) | G105: 25 nm Cu layer | H105: (Gas-phase reactant, supplied from behind) | I105: 5.5 M KOH + 4 M KI | J105: + flow - stirring | K105: Fumasep FAB-PK-130 | L105: (AEM) | M105: 5.5 M KOH + 4 M KI | N105: + flow - stirring | O105: (Liquid-phase reactant, supplied in front) | P105: Ni foam | Q105: ? | R105: ? | S105: CO2 | T105: -0.62 V - iR vs. RHE | U105: -500 mA/cm2 | V105: 65 | X105: C.-T. Dinh et al., CO2 electroreduction to ethylene via hydroxide-mediated copper catalysis at an abrupt interface. Science 360, 783-787 (2018). | Y105: 65 | AA105: 1 | AB105: 0 | AC105: 1
A106: 100 | B106: Cu(OH)F-derived Cu/F, on GDL | C106: Oxide-derived | D106: Cu, O, F | E106: - | F106: Catalyst on top of porous substrate (GDE) | G106: Cu/F | H106: (Gas-phase reactant, supplied from behind) | I106: 2.5 M KOH | J106: - flow - stirring | K106: NEOSEPTA | L106: (AEM) | M106: 2.5 M KOH | N106: (+ flow, - stirring) | O106: (Liquid-phase reactant, forced through surface) | P106: NiFeOx on Nickel foam | Q106: 25 | R106: 1 | S106: CO2 | T106: -0.89 V - iR vs. RHE | U106: -1600 mA/cm2 | V106: 65 | X106: W. Ma et al., Electrocatalytic reduction of CO2 to ethylene and ethanol through hydrogen-assisted C–C coupling over fluorine-modified copper. Nature Catalysis 3, 478-487 (2020). | Y106: 65 | AA106: 1 | AB106: 0 | AC106: 1
A107: 101 | B107: Non-swelling anion exchange ionomer (AEI)-modified electroreduced CuO nanosheets, on GDL | C107: Oxide-derived | D107: Cu, O | E107: AEI: Xenergy Pention D 18, PTFE | F107: Catalyst on top of porous substrate (GDE) | G107: CuO nanosheets with AEI binder | H107: (Gas-phase reactant, supplied from behind) | I107: 1.0 M KOH (pH 14) | J107: + flow - stirring | K107: Fumasep FAA PK 130 | L107: (AEM) | M107: 1.0 M KOH (pH 14) | N107: + flow - stirring | O107: (Liquid-phase reactant, forced through surface) | P107: Ni foam | Q107: ? | R107: ? | S107: CO2 | T107: -0.78 V - iR vs. RHE | U107: -800 mA/cm2 | V107: 65 | X107: Y. Zhao et al., Industrial-Current-Density CO2-to-C2+ Electroreduction by Anti-swelling Anion-Exchange Ionomer-Modified Oxide-Derived Cu Nanosheets. Journal of the American Chemical Society 144, 10446-10454 (2022). | Y107: 65 | AA107: 1 | AB107: 0 | AC107: 1
A108: 102 | B108: 25 nm-thick Cu layer, evaporated on GDL | C108: Oxide-derived | D108: Cu | E108: - | F108: Catalyst on top of porous substrate (GDE) | G108: 25 nm Cu layer | H108: (Gas-phase reactant, supplied from behind) | I108: 5.5 M KOH + 4 M KI | J108: + flow - stirring | K108: Fumasep FAB-PK-130 | L108: (AEM) | M108: 5.5 M KOH + 4 M KI | N108: + flow - stirring | O108: (Liquid-phase reactant, supplied in front) | P108: Ni foam | Q108: ? | R108: ? | S108: CO2 | T108: -0.62 V - iR vs. RHE | U108: -500 mA/cm2 | V108: 65 | X108: A. Thevenon, A. Rosas-Hernández, J. C. Peters, T. Agapie, In-Situ Nanostructuring and Stabilization of Polycrystalline Copper by an Organic Salt Additive Promotes Electrocatalytic CO2 Reduction to Ethylene. Angewandte Chemie 131, 17108-17114 (2019). | Y108: 65 | AA108: 1 | AB108: 0 | AC108: 1
A109: 103 | B109: CuOx NP nanospheres, on GDL | C109: Oxide-derived | D109: Cu, O | E109: Nafion | F109: Catalyst on top of porous substrate (GDE) | G109: CuOx nanospheres | H109: (Gas-phase reactant, supplied from behind) | I109: 1.0 M KOH (pH 14) | J109: + flow - stirring | K109: Fumasep FAA-PK-130 | L109: (AEM) | M109: 1.0 M KOH (pH 14) | N109: + flow - stirring | O109: (Liquid-phase reactant, supplied in front) | P109: Ni foam | Q109: ? | R109: 1 | S109: CO | T109: -0.72 V - iR vs. RHE | U109: -1250 mA/cm2 | V109: 65 | X109: J. Li et al., Constraining CO coverage on copper promotes high-efficiency ethylene electroproduction. Nature Catalysis 2, 1124-1131 (2019). | Y109: 65 | AA109: 0 | AB109: 1 | AC109: 1
A110: 104 | B110: Anodization-dirived Cu2O NWs on Cu-sputtered FTO glass | C110: Oxide-derived | D110: Cu, O | E110: - | F110: Catalyst on top of solid substrate (NPS) | G110: CuOx_NWs | H110: (Solution-phase reactant, supplied in front) | I110: 0.1 M KHCO3 (pH 6.8) | J110: - flow - stirring | K110: - | L110: (n/a) | M110: 0.1 M KHCO3 (pH 6.8) | N110: - flow - stirring | O110: (Liquid-phase reactant, supplied in front) | P110: Pt foil | Q110: ? | R110: ? | S110: CO2 | T110: -0.8 V vs. RHE | U110: -2 mA/cm2 | V110: 65 | X110: A. H. Shah et al., New aspects of C2 selectivity in electrochemical CO2 reduction over oxide-derived copper. Physical Chemistry Chemical Physics 22, 2046-2053 (2020). | Y110: 65 | AA110: 0 | AB110: 0 | AC110: 1
A111: 105 | B111: Electrochemical-assisted chlorine-reconstructed Cu NCs on hollow tubular novelty GDE | C111: Oxide-derived | D111: Cu, O, Cl | E111: - | F111: Catalyst on top of porous substrate (GDE) | G111: Tubular/Cu_NCs | H111: (Gas-phase reactant, forced through surface) | I111: 5.0 M KOH | J111: + flow - stirring | K111: Fumasep FAB-PK-130 | L111: (AEM) | M111: 5.0 M KOH | N111: + flow - stirring | O111: (Liquid-phase reactant, supplied in front) | P111: Pt wire | Q111: ? | R111: 1.7 | S111: CO | T111: -0.8 V vs. RHE | U111: -740 mA/cm2 | V111: 65 | X111: H. Rabiee et al., Tuning flow-through cu-based hollow fiber gas-diffusion electrode for high-efficiency carbon monoxide (CO) electroreduction to C2+products. Applied Catalysis B: Environmental 330, 122589 (2023). | Y111: 65 | AA111: 0 | AB111: 1 | AC111: 1
A112: 106 | B112: Homogeneously dispersed Si(II)Ox clusters with Cu NPs, on Cu-sputtered PTFE GDL | C112: Mixed-phase/Janus | D112: Cu, Si, O | E112: Aquivion | F112: Catalyst on top of porous substrate (GDE) | G112: SiOx/Cu_NPs | H112: (Gas-phase reactant, supplied from behind) | I112: - | J112: (n/a) | K112: Sustainion X37-50 Grade RT | L112: (AEM) | M112: 0.1 M KHCO3 | N112: + flow - stirring | O112: (Liquid-phase reactant, supplied in front) | P112: IrOx/Ti | Q112: ? | R112: ? | S112: CO2 | T112: -4.1 V vs. ANODE | U112: -331 mA/cm2 | V112: 65 | X112: J. Li et al., Silica-copper catalyst interfaces enable carbon-carbon coupling towards ethylene electrosynthesis. Nature Communications 12, 2808 (2021). | Y112: 65 | AA112: 1 | AB112: 0 | AC112: 1
A113: 107 | B113: Water-etched Cu MOF ([Cu2(benzene-1,3,5-tricarboxylic acid,)(OH)(H2O)]n·2nH2O), on a GDL | C113: MOF, supported | D113: Cu | E113: - | F113: Catalyst on top of porous substrate (GDE) | G113: H2O-etch/Cu_MOF#2 | H113: (Gas-phase reactant, supplied from behind) | I113: 1.0 M KOH (pH 14) | J113: + flow - stirring | K113: FAB-PK-130 | L113: (AEM) | M113: 1.0 M KOH (pH 14) | N113: + flow - stirring | O113: (Liquid-phase reactant, supplied in front) | P113: Ni foam | Q113: ? | R113: ? | S113: CO2 | T113: -0.73 V - iR vs. RHE | U113: -350 mA/cm2 | V113: 65 | X113: C. F. Wen et al., A copper coordination polymer precatalyst with asymmetric building units for selective CO2-to-C2H4 electrolysis. Journal of Materials Chemistry A 11, 12121-12129 (2023). | Y113: 65 | AA113: 1 | AB113: 0 | AC113: 1
A114: 108 | B114: Electroplated Cu (90 s @ 400 mA/cm2) from CuBr2/tartrate/1 M KOH-containing bath with active CO2 flow (though CO also seems to work[insert ref]), with N-tolyl substituted tetrahydro-bipyridine (Py) midlayer and hydrophobic (C4HF7O4S.C2F4)x short sidechain (SSC) ionomer toplayer, on Cu-sputtered PTFE GDL | C114: Overlayer | D114: Cu | E114: N-tolyl substituted tetrahydro-bipyridine, (C4HF7O4S.C2F4)x | F114: Catalyst on top of porous substrate (GDE) | G114: Electroplated Cu:Py:SCC | H114: (Gas-phase reactant, supplied from behind) | I114: - | J114: (n/a) | K114: Sustainion X37–50 grade 60 | L114: (AEM) | M114: 3.0 M KOH | N114: + flow - stirring | O114: (Liquid-phase reactant, supplied in front) | P114: IrO2/Ti mesh | Q114: 25 | R114: ? | S114: CO | T114: -2.5 V vs. ANODE | U114: -164 mA/cm2 | V114: 65 | X114: A. Ozden et al., Cascade CO2 electroreduction enables efficient carbonate-free production of ethylene. Joule 5, 706-719 (2021). | Y114: 65 | AA114: 0 | AB114: 1 | AC114: 1
A115: 109 | B115: Cu2P2O7 particles, on glassy carbon | C115: Oxide-derived | D115: Cu, O, P | E115: Nafion | F115: Catalyst on top of solid substrate (NPS) | G115: Cu2P2O7_particles/C | H115: (Solution-phase reactant, supplied in front) | I115: 0.1 M KHCO3 (pH 6.8) | J115: - flow - stirring | K115: Nafion 117 | L115: (CEM) | M115: 0.1 M KHCO3 (pH 6.8) | N115: - flow - stirring | O115: (Liquid-phase reactant, supplied in front) | P115: Pt mesh | Q115: ? | R115: ? | S115: CO2 | T115: -1.40 V vs. RHE | U115: -18 mA/cm2 | V115: 64 | X115: X. Y. Zhang et al., Direct OC-CHO coupling towards highly C2+ products selective electroreduction over stable Cu0/Cu2+ interface. Nature Communications 14, 7681 (2023). | Y115: 64 | AA115: 0 | AB115: 0 | AC115: 1
A116: 110 | B116: Highly porous Zn/Cu layer (10 at. % Zn) generated through partially leaching of co-sputtered Zn/Cu layer on PTFE substrate | C116: Alloyed/Doped | D116: Cu, Zn | E116: - | F116: Catalyst on top of porous substrate (GDE) | G116: Leach-Zn/CuOx | H116: (Gas-phase reactant, supplied from behind) | I116: 3.0 M KCl | J116: + flow - stirring | K116: Nafion 117 | L116: (CEM) | M116: 1.0 M KHCO3 | N116: + flow - stirring | O116: (Liquid-phase reactant, supplied in front) | P116: Pt plate | Q116: 25 | R116: 1 | S116: CO2 | T116: -1.6 V vs. RHE | U116: -300 mA/cm2 | V116: 64 | X116: J. Zhang et al., Accelerating electrochemical CO2 reduction to multi-carbon products via asymmetric intermediate binding at confined nanointerfaces. Nature Communications 14, 1298 (2023). | Y116: 64 | AA116: 0 | AB116: 0 | AC116: 1
A117: 111 | B117: Pd NP-decorated (50 nm) cubic Cu2O microparticles (1 μm) supported on carbon black, on glassy carbon | C117: Mixed-phase/Janus, A-supports-B | D117: Cu, Pd, C, O | E117: Nafion | F117: Catalyst on top of solid substrate (NPS) | G117: Pd_50nm/Cu2O_1um/CNPs | H117: (Solution-phase reactant, supplied in front) | I117: 0.5 M KHCO3 | J117: - flow - stirring | K117: Nafion 117 | L117: (CEM) | M117: 0.5 M KHCO3 | N117: - flow - stirring | O117: (Liquid-phase reactant, supplied in front) | P117: Graphite rod | Q117: ? | R117: ? | S117: CO2 | T117: -1.1 V vs. RHE | U117: -22 mA/cm2 | V117: 64 | X117: D. Xiao et al., Stabilizing Cu2O for enhancing selectivity of CO2 electroreduction to C2H4 with the modification of Pd nanoparticles. Chemical Engineering Journal 452, 139358 (2023). | Y117: 64 | AA117: 0 | AB117: 0 | AC117: 1
A118: 112 | B118: Cu NP layer (0.8 mg/cm2) with Fe-N/C overlayer (only present near CO2 inlet, 5% of total area), on GDL | C118: Overlayer, Tandem catalyst | D118: Cu, Fe, C, N | E118: Sustainion XA-9 | F118: Catalyst on top of porous substrate (GDE) | G118: ZnO-partial-over-Cu_NPs | H118: (Gas-phase reactant, supplied from behind) | I118: - | J118: (n/a) | K118: "Sustainion" | L118: (AEM) | M118: 0.05 M KOH | N118: + flow - stirring | O118: (Liquid-phase reactant, supplied in front) | P118: Ni/FE LDH Ni foam | Q118: ? | R118: ? | S118: CO2 | T118: -3.38 V vs. ANODE | U118: -1200 mA/cm2 | V118: 64 | X118: T. Zhang et al., Highly selective and productive reduction of carbon dioxide to multicarbon products via in situ CO management using segmented tandem electrodes. Nature Catalysis 5, 202-211 (2022). | Y118: 64 | AA118: 1 | AB118: 0 | AC118: 1
A119: 113 | B119: CeO2 NPs supported on CuO NSs (Cu:Ce ratio of 7:1), on carbon paper | C119: Mixed-phase/Janus, A-supports-B | D119: Cu, Ce, O, C | E119: ? | F119: Catalyst on top of porous substrate (GDE) | G119: CeO2/CuO_NSs | H119: (Gas-phase reactant, supplied from behind) | I119: 1 M KOH (pH 14) | J119: + flow - stirring | K119: ? | L119: (AEM) | M119: 1 M KOH (pH 14) | N119: + flow - stirring | O119: (Liquid-phase reactant, supplied in front) | P119: Pt sheet | Q119: ? | R119: ? | S119: CO2 | T119: ? | U119: -600 mA/cm2 | V119: 64 | X119: Yang, S., Sun, F., Cao, R. & Cao, M. Surface modification of copper oxide nanosheets with CeO2 for enhanced CO2 reduction to C2H4. Journal of Materials Chemistry A, doi:10.1039/D4TA07887J (2025). | Y119: 64 | AA119: 1 | AB119: 0 | AC119: 1
A120: 114 | B120: Impregnation-derived Cu NPs supported on N-functionalized carbon, on carbon paper (ill-defined carbon support derived from biological source) | C120: Supported | D120: Cu, C, N | E120: Nafion | F120: Catalyst on top of porous substrate (GDE) | G120: N-C(bio)/Cu-NPs | H120: (Solution-phase reactant, supplied in front) | I120: 0.1 M KHCO3/CO (pH 8.3) | J120: - flow - stirring | K120: Nafion 115 | L120: (CEM) | M120: 0.1 M KHCO3/CO (pH 8.3) | N120: - flow - stirring | O120: (Liquid-phase reactant, supplied in front) | P120: Pt foil | Q120: 25 | R120: ? | S120: CO2 | T120: -1.0 V vs. RHE | U120: -50 mA/cm2 | V120: 64 | X120: Y. Huo, X. Peng, X. Liu, H. Li, J. Luo, High Selectivity Toward C2H4 Production over Cu Particles Supported by Butterfly-Wing-Derived Carbon Frameworks. ACS Applied Materials & Interfaces 10, 12618-12625 (2018). | Y120: 64 | AA120: 0 | AB120: 0 | AC120: 1
A121: 115 | B121: Pre-reduced CuOx NPs supported on sheet-like tannic acid substrate, on GDL | C121: Supported | D121: Cu, O | E121: Nafion | F121: Catalyst on top of porous substrate (GDE) | G121: Tannic/CuOx_NPs | H121: (Gas-phase reactant, supplied from behind) | I121: 1.0 M KOH (pH 14) | J121: + flow - stirring | K121: Nafion 117 | L121: (CEM) | M121: 1.0 M KOH (pH 14) | N121: + flow - stirring | O121: (Liquid-phase reactant, supplied in front) | P121: Ni foam | Q121: 25 | R121: ? | S121: CO2 | T121: -0.7 V - iR vs. RHE | U121: -500 mA/cm2 | V121: 64 | X121: S. Chen et al., Selective CO2 Reduction to Ethylene Mediated by Adaptive Small-molecule Engineering of Copper-based Electrocatalysts. Angewandte Chemie International Edition n/a, e202315621 (2023). | Y121: 64 | AA121: 1 | AB121: 0 | AC121: 1
A122: 116 | B122: Partially reduced, thermally annealed/oxidized electroplated Cu nanodendrites, on carbon paper | C122: Oxide-derived | D122: Cu, O | E122: - | F122: Catalyst on top of porous substrate (GDE) | G122: CuOx-Vo-dendrites | H122: (Solution-phase reactant, supplied in front) | I122: 0.1 M KHCO3 (pH 6.8) | J122: - flow - stirring | K122: Nafion 115 | L122: (CEM) | M122: 0.1 M KHCO3 (pH 6.8) | N122: - flow - stirring | O122: (Liquid-phase reactant, supplied in front) | P122: Pt wire | Q122: 25 | R122: ? | S122: CO2 | T122: -1.4 V (no iR) vs. RHE | U122: -27 mA/cm2 | V122: 63 | X122: Z. Gu et al., Oxygen Vacancy Tuning toward Efficient Electrocatalytic CO2 Reduction to C2H4. Small Methods 3, 1800449 (2019). | Y122: 63 | AA122: 0 | AB122: 0 | AC122: 1
A123: 117 | B123: Ultrasonic-assisted defective CuO-derived Cu nanosheets, on GDL | C123: Oxide-derived | D123: Cu, O | E123: - | F123: Catalyst on top of porous substrate (GDE) | G123: Defective CuO NSs-3 | H123: (Gas-phase reactant, supplied from behind) | I123: 1.0 M KOH (pH 14) | J123: + flow - stirring | K123: Fumasep FAA-3-PK-75 | L123: (AEM) | M123: 1.0 M KOH (pH 14) | N123: + flow - stirring | O123: (Liquid-phase reactant, supplied in front) | P123: Ni foam/CP | Q123: ? | R123: ? | S123: CO2 | T123: -0.52 V - iR vs. RHE | U123: -300 mA/cm2 | V123: 63 | X123: J. Zhang et al., Grain Boundary-Derived Cu+/Cu0 Interfaces in CuO Nanosheets for Low Overpotential Carbon Dioxide Electroreduction to Ethylene. Advanced Science 9, 2200454 (2022). | Y123: 63 | AA123: 1 | AB123: 0 | AC123: 1
A124: 118 | B124: In-situ formed Cu NPs supported on CuO nanosheets, on hydrophobic carbon cloth | C124: Oxide-derived | D124: Cu, O | E124: Nafion | F124: Catalyst on top of porous substrate (GDE) | G124: C_cloth/CuO_NSs | H124: (Gas-phase reactant, supplied from behind) | I124: 2.0 M KCl + 0.01 M HCl | J124: + flow - stirring | K124: "from Fumasep" | L124: (CEM) | M124: 2.0 M KCl + 0.01 M HCl | N124: + flow - stirring | O124: (Liquid-phase reactant, supplied in front) | P124: Home-made DSA | Q124: ? | R124: ? | S124: CO2 | T124: -2.82 V vs. RHE | U124: -700 mA/cm2 | V124: 63 | X124: C. Kang et al., Acidic chloride electrolyte mediates the high conversion ratio of CO2-to-C2H4 and direct production of Cl2. Sustainable Energy & Fuels 8, 1730-1739 (2024). | Y124: 63 | AA124: 0 | AB124: 0 | AC124: 1
A125: 119 | B125: Ni-SAC layer on top of sputtered Cu layer, on GDL | C125: Overlayer, Tandem catalyst | D125: Cu, Ni, C, N | E125: Nafion (?) | F125: Catalyst on top of porous substrate (GDE) | G125: Ni-SAC/Cu_sputter | H125: (Gas-phase reactant, supplied from behind) | I125: 1.0 M KOH | J125: + flow - stirring | K125: ? | L125: ? | M125: 1.0 M KOH | N125: + flow - stirring | O125: (Liquid-phase reactant, supplied in front) | P125: Ni foil | Q125: ? | R125: ? | S125: CO2 | T125: -0.72 V -iR vs. RHE | U125: -160 mA/cm2 | V125: 63 | X125: J. Chen et al., Accelerated Transfer and Spillover of Carbon Monoxide through Tandem Catalysis for Kinetics-boosted Ethylene Electrosynthesis. Angewandte Chemie International Edition 62, e202215406 (2023). | Y125: 63 | AA125: 1 | AB125: 0 | AC125: 1
A126: 120 | B126: ZrO2 supported on Cu-Cu2O NPs prepared via co-precipitation, on carbon paper | C126: Bi-phasic/Janus, A-supports-B | D126: Cu, Zr, O | E126: Nafion | F126: Catalyst on top of porous substrate (GDE) | G126: ZrO2/Cu-Cu2O_NP | H126: (Solution-phase reactant, supplied in front) | I126: 0.1 M KCl | J126: - flow - stirring | K126: Nafion 117 | L126: (CEM) | M126: 0.1 M KCl | N126: - flow - stirring | O126: (Liquid-phase reactant, supplied in front) | P126: Pt | Q126: 25 | R126: 1 | S126: CO2 | T126: -0.70 V vs. RHE | U126: -24 mA/cm2 | V126: 63 | X126: P.-P. Guo et al., Electrocatalytic CO2 reduction to ethylene over ZrO2/Cu-Cu2O catalysts in aqueous electrolytes. Green Chemistry 24, 1527-1533 (2022). | Y126: 63 | AA126: 0 | AB126: 0 | AC126: 1
A127: 121 | B127: Co-precipitated HfOx and CuOx (2:3 ratio) mixed NPs, on carbon paper | C127: Mixed-phase/Janus | D127: Cu, Hf, O | E127: Nafion | F127: Catalyst on top of porous substrate (GDE) | G127: HfOx/CuOx | H127: (Gas-phase reactant, supplied from behind) | I127: 0.1 M KOH | J127: + flow - stirring | K127: ? | L127: (AEM) | M127: 0.1 M KOH | N127: + flow - stirring | O127: (Liquid-phase reactant, supplied in front) | P127: Pt foil | Q127: 25 | R127: 1 | S127: CO2 | T127: ? | U127: -300 mA/cm2 | V127: 63 | X127: X. Li et al., Engineering the CuO–HfO2 interface toward enhanced CO2 electroreduction to C2H4. Chemical Communications 58, 7412-7415 (2022). | Y127: 63 | AA127: 1 | AB127: 0 | AC127: 1
A128: 122 | B128: Cu-MOF calcination derived grainboundary-rich CuOx NPs supported on Ketjen Black, on glassy carbon | C128: MOF, supported | D128: Cu, O, C | E128: Nafion (top-coat) | F128: Catalyst on top of solid substrate (NPS) | G128: Calcined Cu-MOF CuOx/C | H128: (Solution-phase reactant, supplied in front) | I128: 0.1 M KHCO3 (pH 6.8) | J128: - flow - stirring | K128: Nafion 117 | L128: (CEM) | M128: 0.1 M KHCO3 (pH 6.8) | N128: - flow - stirring | O128: (Liquid-phase reactant, supplied in front) | P128: Pt plate | Q128: ? | R128: ? | S128: CO2 | T128: -1.01 V - iR vs. RHE | U128: -11 mA/cm2 | V128: 63 | X128: S. Kim, D. Shin, J. Park, J.-Y. Jung, H. Song, Grain Boundary-Rich Copper Nanocatalysts Generated from Metal-Organic Framework Nanoparticles for CO2-to-C2+ Electroconversion. Advanced Science 10, 2207187 (2023). | Y128: 63 | AA128: 0 | AB128: 0 | AC128: 1
A129: 123 | B129: Cu2O microcubes (1 µm) decorated with small Pd/Ag NPs (20-50 nm, 0.49 and 0.39 wt%, respectively), prepared via galvanic displacement, mixed with carbon black, on glassy carbon | C129: Mixed-phase/Janus, A-supports-B | D129: Cu, Ag, Pd, C | E129: Nafion | F129: Catalyst on top of solid substrate (NPS) | G129: Pd,Ag-NP/Cu2O_cubes | H129: (Solution-phase reactant, supplied in front) | I129: 0.5 M KHCO3 | J129: - flow - stirring | K129: Nafion 117 | L129: (CEM) | M129: 0.5 M KHCO3 | N129: - flow - stirring | O129: (Liquid-phase reactant, supplied in front) | P129: Carbon rod | Q129: ? | R129: ? | S129: CO2 | T129: -1.2 V vs. RHE | U129: -31 mA/cm2 | V129: 63 | X129: X. Xu et al., Pd-Decorated Cu2O–Ag Catalyst Promoting CO2 Electroreduction to C2H4 by Optimizing CO Intermediate Adsorption and Hydrogenation. ACS Applied Materials & Interfaces 16, 16243-16252 (2024). | Y129: 63 | AA129: 0 | AB129: 0 | AC129: 1
A130: 124 | B130: Cu2O NPs coated with a carboxylic-acid terminated C12 alkyl chain, on carbon paper | C130: Core/shell (in-)organic | D130: Cu, O | E130: Nafion, HOOC-(CHy)n-COOH | F130: Catalyst on top of porous substrate (GDE) | G130: Alkyl-chain/Cu2O_NPs | H130: (Solution-phase reactant, supplied in front) | I130: ? 0.1 M KHCO3 (pH 6.8) | J130: + flow - stirring | K130: ? Nafion | L130: (CEM) | M130: ? 0.1 M KHCO3 (pH 6.8) | N130: + flow - stirring | O130: (Liquid-phase reactant, supplied in front) | P130: ? Pt wire | Q130: ? | R130: ? | S130: CO2 | T130: -1.2 V vs. RHE | U130: -7 mA/cm2 | V130: 63 | X130: Li, W. et al. Confined Intermediates Boost C2+ Selectivity in CO2 Electroreduction. ACS Catal 14, 13400-13407, doi:10.1021/acscatal.4c02823 (2024). | Y130: 63 | AA130: 0 | AB130: 0 | AC130: 1
A131: 125 | B131: In-situ reconstruction-driven (2D) defective CuO NWs, on GDL | C131: Oxide-derived | D131: Cu, O | E131: Nafion | F131: Catalyst on top of porous substrate (GDE) | G131: Defective CuO NWs | H131: (Gas-phase reactant, supplied from behind) | I131: 1.0 M KOH (pH 14) | J131: + flow - stirring | K131: Fumasep FAA-3-PK-75 | L131: (AEM) | M131: 1.0 M KOH (pH 14) | N131: + flow - stirring | O131: (Liquid-phase reactant, supplied in front) | P131: Ni foam/CP | Q131: ? | R131: ? | S131: CO2 | T131: -0.56 V - iR vs. RHE | U131: -324 mA/cm2 | V131: 62 | X131: J. Zhang et al., Reconstructing two-dimensional defects in CuO nanowires for efficient CO2 electroreduction to ethylene. Chemical Communications 57, 8276-8279 (2021). | Y131: 62 | AA131: 1 | AB131: 0 | AC131: 1
A132: 126 | B132: In-situ reconstructed defective CuO NWs, on carbon paper | C132: Oxide-derived | D132: Cu, O | E132: Nafion | F132: Catalyst on top of porous substrate (GDE) | G132: CuO_NWs | H132: (Gas-phase reactant, supplied from behind) | I132: 1.0 M KOH | J132: + flow - stirring | K132: FAA-3-PK-75 | L132: (AEM) | M132: 1.0 M KOH | N132: + flow - stirring | O132: ? | P132: ? | Q132: ? | R132: ? | S132: CO2 | T132: -0.56 V - iR vs. RHE | U132: -524 mA/cm2 | V132: 62 | X132: J. Zhang et al., Reconstructing two-dimensional defects in CuO nanowires for efficient CO2 electroreduction to ethylene. Chemical Communications 57, 8276-8279 (2021). | Y132: 62 | AA132: 1 | AB132: 0 | AC132: 1
A133: 127 | B133: Ni-N/C layer on top of Cu NP layer, on a GDL | C133: Overlayer, Tandem catalyst | D133: Cu, Ni, C | E133: Nafion | F133: Catalyst on top of porous substrate (GDE) | G133: Ni_C,N/Cu_NPs | H133: (Gas-phase reactant, supplied from behind) | I133: 1.0 M KOH | J133: + flow - stirring | K133: FAA-3-PK-75 | L133: (AEM) | M133: 1.0 M KOH | N133: + flow - stirring | O133: (Liquid-phase reactant, forced through surface) | P133: Ni foam | Q133: 25 | R133: 1 | S133: CO2 | T133: -0.70 V -iR vs. RHE | U133: -593 mA/cm2 | V133: 62 | X133: X. She et al., Tandem Electrodes for Carbon Dioxide Reduction into C2+ Products at Simultaneously High Production Efficiency and Rate. Cell Reports Physical Science 1, 100051 (2020). | Y133: 62 | AA133: 1 | AB133: 0 | AC133: 1
A134: 128 | B134: Cu NPs supported on Ni-SAC mixed with PTFE, on GDL | C134: Mixed-phase/Janus, A-supports-B | D134: Cu, Ni, C, N | E134: Nafion | F134: Catalyst on top of porous substrate (GDE) | G134: Ni-SAC+PTFE/Cu_NPs | H134: (Gas-phase reactant, supplied from behind) | I134: 1.0 M KHCO3 | J134: + flow - stirring | K134: Selemion DSVN | L134: (AEM) | M134: 1.0 M KHCO3 | N134: + flow - stirring | O134: (Liquid-phase reactant, forced through surface) | P134: IrO2/Ti | Q134: ? | R134: ? | S134: CO2 | T134: -1.33 V -iR vs. RHE | U134: -600 mA/cm2 | V134: 62 | X134: M. Liu et al., Potential Alignment in Tandem Catalysts Enhances CO2-to-C2H4 Conversion Efficiencies. Journal of the American Chemical Society 146, 468-475 (2024). | Y134: 62 | AA134: 0 | AB134: 0 | AC134: 1
A135: 129 | B135: Single atom Cu sites enclosed in a Zr-based MOF framework with rod-like morphology, on GDL | C135: Single atom, Atomically mixed/Crystalline, MOF | D135: Cu, Zr | E135: Nafion | F135: Catalyst on top of porous substrate (GDE) | G135: Cu-SAC/Zr-MOF | H135: (Gas-phase reactant, supplied from behind) | I135: 1.0 M phosphate buffer saline | J135: + flow - stirring | K135: Nafion 212 | L135: (CEM) | M135: 1.0 M phosphate buffer saline | N135: + flow - stirring | O135: (Liquid-phase reactant, supplied in front) | P135: Pt wire | Q135: 25 | R135: 1 | S135: CO | T135: ?: -1.0 V vs. RHE | U135: -125 mA/cm2 | V135: 62 | X135: Q. Mo et al., Engineering Dual Sites into the Confined Nanospace of the Porphyrinic Metal–Organic Framework for Tandem Transformation of CO2 to Ethylene. ACS Sustainable Chemistry & Engineering, (2024). | Y135: =_xlfn.NUMBERVALUE(LEFT(V135,2)) -> 62 | AA135: 0 | AB135: 1 | AC135: 1
A136: 130 | B136: Cu NPs supported on N-doped CNTs, on GDL | C136: Supported | D136: Cu, C, N | E136: Nafion | F136: Catalyst on top of porous substrate (GDE) | G136: N-dopedCNT/Cu-NP | H136: (Gas-phase reactant, supplied from behind) | I136: 5.0 M KOH | J136: + flow - stirring | K136: "Sustainion" | L136: (AEM) | M136: 5.0 M KOH | N136: + flow - stirring | O136: (Liquid-phase reactant, supplied in front) | P136: Pt foil | Q136: ? | R136: ? | S136: CO2 | T136: -0.57 V - iR vs. RHE | U136: -500 mA/cm2 | V136: 62 | X136: J.-C. Lee et al., Thermodynamically driven self-formation of copper-embedded nitrogen-doped carbon nanofiber catalysts for a cascade electroreduction of carbon dioxide to ethylene. Journal of Materials Chemistry A 8, 11632-11641 (2020). | Y136: 62 | AA136: =_xlfn.LET(_xlpm.CO_2,IF(S136="CO2",1,0),_xlpm.AEM_dry,INT(AND(IF(J136="(n/a)",1,0),IF(L136="(AEM)",1,0))), _xlpm.alk_electrolyte,IF(SUM(IFERROR(FIND("KOH",I136),0),IFERROR(FIND("NaOH",I136),0),IFERROR(FIND("CsOH",I136),0), IFERROR(FIND("LiOH",I136),0), IFERROR(FIND("RbOH",I136),0))>0,1,0),_xlpm.alkaline,OR(_xlpm.AEM_dry,_xlpm.alk_electrolyte),_xlpm.rslt,INT(AND(_xlpm.CO_2,_xlpm.alkaline)),_xlpm.rslt) -> 1 | AB136: =IF(S136="CO",1,0) -> 0 | AC136: =IF(_xlfn.NUMBERVALUE(LEFT(V136,2))>=55,1,0) -> 1
A137: =A136+1 -> 131 | B137: In-situ generated Cu NPs from 3-(2-Pyridyl)-5-phenyl-1,2,4-triazole-based Cu-TMC, on Cu-sputtered PTFE | C137: TMC, supported | D137: Cu | E137: Nafion | F137: Catalyst on top of porous substrate (GDE) | G137: 3-(2-Pyridyl)-5-phenyl-1,2,4-triazole-based/Cu-TMC | H137: (Gas-phase reactant, supplied from behind) | I137: 0.05 M H2SO4 + 2.5 M KCl | J137: + flow - stirring | K137: Nafion 117 | L137: (CEM) | M137: 0.05 M H2SO4 | N137: + flow - stirring | O137: (Liquid-phase reactant, forced through surface) | P137: IrO2/Ti felt | Q137: ? | R137: ? | S137: CO2 | T137: -1.64 V - iR vs. RHE | U137: -200 mA/cm2 | V137: 62 | X137: Kim, D. et al. Acid-Stable Cu Cluster Precatalysts Enable High Energy and Carbon Efficiency in CO2 Electroreduction. Journal of the American Chemical Society 146, 27701-27712, doi:10.1021/jacs.4c09230 (2024). | Y137: 62 | AA137: 0 | AB137: 0 | AC137: 1
A138: 132 | B138: Cu2O NPs electroplated on Cu-CuTCPP MOF nanosheets, on GDL | C138: MOF, supported | D138: Cu, O | E138: Nafion | F138: Catalyst on top of porous substrate (GDE) | G138: Cu2O_NP/Cu-TCPP_NSs | H138: (Solution-phase reactant, supplied in front) | I138: 0.1 M KHCO3 (pH 6.8) | J138: - flow - stirring | K138: Nafion 211 | L138: (CEM) | M138: 0.1 M KHCO3 (pH 6.8) | N138: - flow - stirring | O138: (Liquid-phase reactant, supplied in front) | P138: Pt mesh | Q138: ? | R138: ? | S138: CO2 | T138: -1.3 V vs. RHE | U138: -15 mA/cm2 | V138: 62 | X138: M. Sun et al., Controllable preparation of Cu2O/Cu-CuTCPP MOF heterojunction for enhanced electrocatalytic CO2 reduction to C2H4. Applied Surface Science 659, 159937 (2024). | Y138: 62 | AA138: 0 | AB138: 0 | AC138: 1
A139: 133 | B139: Polyvinylpyrrolidone-assisted ("P2") self-assembled Cu-based supramolecular polymer MPs, on glassy carbon | C139: Supramolecular | D139: Cu | E139: ? Nafion | F139: Catalyst on top of porous substrate (GDE) | G139: Cu/supra_MPs | H139: (Solution-phase reactant, supplied in front) | I139: 1.0 M KOH (pH 14) | J139: - flow + stirring | K139: FAB-PK-130 | L139: (AEM) | M139: 1.0 M KOH (pH 14) | N139: - flow + stirring | O139: (Liquid-phase reactant, supplied in front) | P139: Ni mesh | Q139: ? | R139: ? | S139: CO2 | T139: -1.4 V vs. RHE | U139: -128 mA/cm2 | V139: 62 | X139: Wang, C. et al. The regulation of hydrogen bond network promotes highly selective electroreduction of CO2 to C2H4. Applied Catalysis B: Environment and Energy 366, 125006, doi:https://doi.org/10.1016/j.apcatb.2024.125006 (2025). | Y139: 62 | AA139: 1 | AB139: 0 | AC139: 1
A140: 134 | B140: Polystyrene vinylbenzyl imidazolium chloride (PSMIM, 0.25 wt%) coated CuO NSs, on carbon paper | C140: Core/shell (in-)organic | D140: Cu, O | E140: Polystyrene vinylbenzyl imidazolium chloride (PSMIM) | F140: Catalyst on top of porous substrate (GDE) | G140: PSMIM/CuO_NSs | H140: (Gas-phase reactant, supplied from behind) | I140: 1.0 M KOH (pH 14) | J140: + flow - stirring | K140: X37-50 Grade T | L140: (AEM) | M140: 1.0 M KOH (pH 14) | N140: + flow - stirring | O140: (Liquid-phase reactant, supplied in front) | P140: Pt mesh | Q140: 25 | R140: 1 | S140: CO2 | T140: -1.05 V vs. RHE | U140: -119 mA/cm2 | V140: 62 | X140: D. Wang et al., Regulating the local microenvironment on porous Cu nanosheets for enhancing electrocatalytic CO2 reduction selectivity to ethylene. Journal of Materials Chemistry A 12, 11968-11974 (2024). | Y140: 62 | AA140: 1 | AB140: 0 | AC140: 1
A141: 135 | B141: Core/shell-type particles comprising a carbon core with a CuOx shell coated with a PTFE layer, on carbon paper | C141: Core/shell (in-)organic | D141: Cu, C, O | E141: PTFE, nafion | F141: Catalyst on top of porous substrate (GDE) | G141: PTFE/CuOx+C_NPs | H141: (Gas-phase reactant, supplied from behind) | I141: 1.0 M KOH (pH 14) | J141: + flow - stirring | K141: FAB-PK-130 | L141: (AEM) | M141: 1.0 M KOH (pH 14) | N141: + flow - stirring | O141: (Liquid-phase reactant, supplied in front) | P141: Pt sheet | Q141: ? | R141: ? | S141: CO2 | T141: -0.92 V - iR vs. RHE | U141: -230 mA/cm2 | V141: 62 | X141: Liu, W. et al. Electron-rich Cu0-Cu2O heterogeneous interface constructed via controllable electrochemical reconstruction for a single CO2 deep-reduction product ethylene. Applied Catalysis B: Environment and Energy 348, 123831, doi:https://doi.org/10.1016/j.apcatb.2024.123831 (2024). | Y141: 62 | AA141: 1 | AB141: 0 | AC141: 1
A142: 136 | B142: Commercial 25 nm Cu NPs with Hex-Aza COF-based overlayer, on GDL | C142: Overlayer | D142: Cu | E142: Hexaketocyclohexane, 2,3,6,7-tetraamino-phenazine hydrochloride | F142: Catalyst on top of porous substrate (GDE) | G142: Hex-Aza/Cu_NPs#2 | H142: (Gas-phase reactant, supplied from behind) | I142: - | J142: (n/a) | K142: Sustainion X37-50 | L142: (AEM) | M142: 0.1 M KHCO3 (no active CO2 flow) | N142: + flow - stirring | O142: (Liquid-phase reactant, supplied in front) | P142: IrOx/Ni | Q142: 25 | R142: 1 | S142: CO2 | T142: -3.85 V vs. ANODE | U142: -316 mA/cm2 | V142: 62 | X142: A. Ozden et al., Energy- and carbon-efficient CO2/CO electrolysis to multicarbon products via asymmetric ion migration–adsorption. Nature Energy 8, 179-190 (2023). | Y142: 62 | AA142: 1 | AB142: 0 | AC142: 1
A143: 137 | B143: Chloride-derived CuOx NPs prepared via chemical oxidation (H2O2), on Cu-sputtered GDL | C143: Oxide-derived | D143: Cu, O, Cl | E143: - | F143: Catalyst on top of porous substrate (GDE) | G143: Cl/CuOx_H2O2-GDL | H143: (Gas-phase reactant, supplied from behind) | I143: 3.0 M KOH | J143: + flow - stirring | K143: ? | L143: (AEM) | M143: 3.0 M KOH | N143: + flow - stirring | O143: (Liquid-phase reactant, supplied in front) | P143: Ni | Q143: ? | R143: ? | S143: CO2 | T143: -0.68 V -iR vs. RHE | U143: -400 mA/cm2 | V143: 61 | X143: M. G. Kibria et al., A Surface Reconstruction Route to High Productivity and Selectivity in CO2 Electroreduction toward C2+ Hydrocarbons. Advanced Materials 30, 1804867 (2018). | Y143: 61 | AA143: 1 | AB143: 0 | AC143: 1
A144: 138 | B144: Metal–organic polyhedra-derived hollow CuOx NP based spheres | C144: Oxide-derived | D144: Cu, O | E144: Nafion | F144: Catalyst on top of porous substrate (GDE) | G144: Hollow CuOx spheres | H144: (Gas-phase reactant, supplied from behind) | I144: 1.0 M KOH (pH 14) | J144: + flow - stirring | K144: ? | L144: (n/a) | M144: 1.0 M KOH (pH 14) | N144: + flow - stirring | O144: (Liquid-phase reactant, supplied in front) | P144: Pt plate | Q144: ? | R144: ? | S144: CO2 | T144: -0.9 V - iR vs. RHE | U144: -143 mA/cm2 | V144: 61 | X144: R.-X. Yang et al., Self-Assembly of Hydroxyl Metal–Organic Polyhedra and Polymer into Cu-Based Hollow Spheres for Product-Selective CO2 Electroreduction. Small Structures 2, 2100012 (2021). | Y144: 61 | AA144: 1 | AB144: 0 | AC144: 1
A145: 139 | B145: Cu3N NPs, on glassy carbon | C145: Oxide-derived | D145: Cu, N | E145: Nafion | F145: Catalyst on top of solid substrate (NPS) | G145: Cu3N_NPs | H145: (Solution-phase reactant, supplied in front) | I145: 0.1 M KHCO3 (pH 6.8) | J145: - flow - stirring | K145: Nafion 117 | L145: (CEM) | M145: 0.1 M KHCO3 (pH 6.8) | N145: - flow - stirring | O145: (Liquid-phase reactant, supplied in front) | P145: Pt net | Q145: ? | R145: ? | S145: CO2 | T145: -0.8 V vs. RHE | U145: -60 mA/cm2 | V145: 61 | X145: H. Wang et al., Cu3N nanoparticles with both (100) and (111) facets for enhancing the selectivity and activity of CO2 electroreduction to ethylene. New Journal of Chemistry 46, 12523-12529 (2022). | Y145: 61 | AA145: 0 | AB145: 0 | AC145: 1
A146: 140 | B146: Polystyrene template-assisted interconnected mesoporous Cu2O NPs, on GDL | C146: Oxide-derived | D146: Cu, O | E146: Nafion | F146: Catalyst on top of porous substrate (GDE) | G146: Meso-interconnect/Cu2O_NPs | H146: (Gas-phase reactant, supplied from behind) | I146: 1 M KOH (pH 14) | J146: + flow - stirring | K146: Fumatech, FAA-3PK-130 | L146: (AEM) | M146: 1 M KOH (pH 14) | N146: + flow - stirring | O146: (Liquid-phase reactant, supplied in front) | P146: Ni foam | Q146: ? | R146: ? | S146: CO2 | T146: ? | U146: -1000 mA/cm2 | V146: 61 | X146: L. Fan et al., Evoking C2+ production from electrochemical CO2 reduction by the steric confinement effect of ordered porous Cu2O. Chemical Science 14, 13851-13859 (2023). | Y146: 61 | AA146: 1 | AB146: 0 | AC146: 1
A147: 141 | B147: Hollow Cu2O NPs on GDL, electrochemically pre-activated via in-situ reduction in the presence of CO2 | C147: Oxide-derived | D147: Cu, O | E147: Nafion | F147: Catalyst on top of porous substrate (GDE) | G147: CO2-reduced/Cu2O_NCs | H147: (Gas-phase reactant, supplied from behind) | I147: 1.0 M KOH | J147: + flow - stirring | K147: Sustainion® X37-50 grade RT | L147: (AEM) | M147: 1.0 M KOH | N147: + flow - stirring | O147: (Liquid-phase reactant, forced through surface) | P147: Ni foam | Q147: ? | R147: ? | S147: CO2 | T147: -0.6 V vs. RHE | U147: -200 mA/cm2 | V147: 61 | X147: Zhang, C. et al. Exploration of Gas-Dependent Self-Adaptive Reconstruction Behavior of Cu2O for Electrochemical CO2 Conversion to Multi-Carbon Products. Nano-Micro Letters 17, 66, doi:10.1007/s40820-024-01568-1 (2024). | Y147: 61 | AA147: 1 | AB147: 0 | AC147: 1
A148: 142 | B148: Al2O3 partial overlayer (0.8 nm) specifically covering the {111} facets of Cu NPs (10 nm) supported on CNPs, on Ta-sputtered PTFE GDL | C148: Core/shell, A-supports-B | D148: Cu, Al, C, O, Ta | E148: Nafion | F148: Catalyst on top of porous substrate (GDE) | G148: {111}/Al2O3/Cu_NPs | H148: (Gas-phase reactant, supplied from behind) | I148: 5.0 M KOH | J148: + flow - stirring | K148: FAB-PK-130 | L148: (AEM) | M148: 5.0 M KOH | N148: + flow - stirring | O148: (Liquid-phase reactant, supplied in front) | P148: IrO2/Ti | Q148: ? | R148: ? | S148: CO2 | T148: -1.1 V - iR vs. RHE | U148: -253 mA/cm2 | V148: 61 | X148: H. Li et al., Facet-Selective Deposition of Ultrathin Al2O3 on Copper Nanocrystals for Highly Stable CO2 Electroreduction to Ethylene. Angewandte Chemie International Edition 60, 24838-24843 (2021). | Y148: 61 | AA148: 1 | AB148: 0 | AC148: 1
A149: 143 | B149: Mg surface-doped CuOx NPs (Mg0.72Cu), on GDL | C149: Alloyed/Doped | D149: Cu, Mg, O | E149: Nafion | F149: Catalyst on top of porous substrate (GDE) | G149: Mg/CuOx_NPs | H149: (Gas-phase reactant, supplied from behind) | I149: 1.0 M KOH | J149: + flow - stirring | K149: NEOSEPTA, AHA | L149: (AEM) | M149: 1.0 M KOH | N149: + flow - stirring | O149: (Liquid-phase reactant, supplied in front) | P149: Foamed Ni | Q149: ? | R149: ? | S149: CO | T149: ? | U149: ? | V149: 61 | X149: M. Xie et al., Fast Screening for Copper-Based Bimetallic Electrocatalysts: Efficient Electrocatalytic Reduction of CO2 to C2+ Products on Magnesium-Modified Copper. Angewandte Chemie International Edition 61, e202213423 (2022). | Y149: 61 | AA149: 0 | AB149: 1 | AC149: 1
A150: 144 | B150: Lattice-strained, Zn-doped CuO NPs, on carbon paper | C150: Alloyed/Doped | D150: Cu, Zn | E150: Nafion | F150: Catalyst on top of porous substrate (GDE) | G150: Zn/CuO_NPs | H150: (Gas-phase reactant, supplied from behind) | I150: 1.0 M KOH | J150: + flow - stirring | K150: Nafion 117 | L150: (CEM) | M150: 1.0 M KOH | N150: + flow - stirring | O150: (Liquid-phase reactant, supplied in front) | P150: Pt sheet | Q150: ? | R150: ? | S150: CO2 | T150: -0.95 V vs. RHE | U150: -500 mA/cm2 | V150: 61 | X150: Wu, X. et al. Modification of the CuO electronic structure for enhanced selective electrochemical CO2 reduction to ethylene. Nano Research 17, 7194-7202, doi:10.1007/s12274-024-6708-0 (2024). | Y150: 61 | AA150: 1 | AB150: 0 | AC150: 1
A151: 145 | B151: Ultralow (single atom, 0.36 wt%) surface Pd-doped Cu NCs, on a GDL | C151: Alloyed/Doped, SAC | D151: Cu, Pd | E151: - | F151: Catalyst on top of porous substrate (GDE) | G151: Pd-SAA/Cu_NCs | H151: (Gas-phase reactant, supplied from behind) | I151: 0.5 M KHCO3 | J151: + flow - stirring | K151: "Sustanion" | L151: (AEM) | M151: 0.5 M KHCO3 | N151: + flow - stirring | O151: (Liquid-phase reactant, supplied in front) | P151: Pt foil | Q151: ? | R151: ? | S151: CO2 | T151: -1.1 V vs. RHE | U151: -184 mA/cm2 | V151: 61 | X151: Chhetri, M. et al. Dual-site catalysts featuring platinum-group-metal atoms on copper shapes boost hydrocarbon formations in electrocatalytic CO2 reduction. Nature Communications 14, 3075, doi:10.1038/s41467-023-38777-y (2023). | Y151: 61 | AA151: 0 | AB151: 0 | AC151: 1
A152: 146 | B152: Cu NPs mixed with Ni-SAC, on homemade GDL | C152: Mixed-phase/Janus | D152: Cu, Ni, C, N | E152: Nafion | F152: Catalyst on top of porous substrate (GDE) | G152: Ni-SAC/Cu_NPs | H152: (Gas-phase reactant, supplied from behind) | I152: 1.0 M KOH | J152: + flow - stirring | K152: FAB-PK- 130 | L152: (AEM) | M152: 1.0 M KOH | N152: + flow - stirring | O152: (Liquid-phase reactant, forced through surface) | P152: Ni foam/plate | Q152: 25 | R152: ? | S152: CO2 | T152: -0.58 V -iR vs. RHE | U152: -308 mA/cm2 | V152: 61 | X152: L. Li et al., Hydrophobicity graded gas diffusion electrode with enhanced CO intermediate coverage for high-performance electroreduction of CO2 to ethylene. Applied Catalysis B: Environmental 331, 122597 (2023). | Y152: 61 | AA152: 1 | AB152: 0 | AC152: 1
A153: 147 | B153: {100}-rich Cu NPs derived from reconstruction of Cu-tannic acid NSs, on GDL | C153: TMC, supported | D153: Cu | E153: Nafion | F153: Catalyst on top of porous substrate (GDE) | G153: Tannic/CuOx_NPs2 | H153: (Gas-phase reactant, supplied from behind) | I153: 1.0 M KOH | J153: + flow - stirring | K153: FAB-PK-130 | L153: (AEM) | M153: 1.0 M KOH | N153: + flow - stirring | O153: (Liquid-phase reactant, supplied in front) | P153: Pt foil | Q153: ? | R153: ? | S153: CO2 | T153: -2.16 V vs. RHE | U153: -700 mA/cm2 | V153: 61 | X153: M. Wu et al., Sequential *CO management via controlling in situ reconstruction for efficient industrial-current-density CO2-to-C2+ electroreduction. Proceedings of the National Academy of Sciences 120, e2302851120 (2023). | Y153: 61 | AA153: 1 | AB153: 0 | AC153: 1
A154: 148 | B154: Ultrafine Cu NPs supported on N-functionalized carbon, on carbon paper | C154: Supported | D154: Cu, C | E154: Nafion | F154: Catalyst on top of porous substrate (GDE) | G154: N,C/Cu_NPs | H154: (Gas-phase reactant, supplied from behind) | I154: 1.0 M KOH | J154: + flow - stirring | K154: FAA-PK-130 | L154: (AEM) | M154: 1.0 M KOH | N154: + flow - stirring | O154: (Liquid-phase reactant, supplied in front) | P154: Pt plate | Q154: ? | R154: ? | S154: CO2 | T154: -1.05 V vs. RHE | U154: -208 mA/cm2 | V154: 61 | X154: Cao, Y. et al. Stimulating the C−C coupling ability of ultrafine copper nanoclusters via nitrogen coordination for electrocatalytic CO2 reduction. Applied Catalysis B: Environment and Energy 361, 124704, doi:https://doi.org/10.1016/j.apcatb.2024.124704 (2025). | Y154: 61 | AA154: 1 | AB154: 0 | AC154: 1
A155: 149 | B155: Ultrasonically detached N2 atmosphere/high current density-electroplated Cu dendrites, on GDL | C155: Metallic Cu | D155: Cu | E155: Nafion | F155: Catalyst on top of porous substrate (GDE) | G155: N2/Cu_dendrites | H155: (Gas-phase reactant, supplied from behind) | I155: 1.0 M KOH (pH 14) | J155: + flow - stirring | K155: ? (X37–50 Grade 60) | L155: (AEM) | M155: 1.0 M KOH (pH 14) | N155: + flow - stirring | O155: (Liquid-phase reactant, supplied in front) | P155: IrO2/carbon | Q155: ? | R155: ? | S155: CO2 | T155: -1.24 V vs. RHE | U155: -37 mA/cm2 | V155: 60 | X155: Z. Gu et al., Efficient Electrocatalytic CO2 Reduction to C2+ Alcohols at Defect-Site-Rich Cu Surface. Joule 5, 429-440 (2021). | Y155: 60 | AA155: 1 | AB155: 0 | AC155: 1
A156: 150 | B156: {100}-rich Cu NCs, on GDL | C156: Metallic Cu | D156: Cu | E156: - | F156: Catalyst on top of porous substrate (GDE) | G156: Cu_NCs | H156: (Gas-phase reactant, supplied from behind) | I156: 1.0 M KOH (pH 14) | J156: + flow - stirring | K156: Fumasep FAB-PK-130 | L156: (AEM) | M156: 1.0 M KOH (pH 14) | N156: + flow - stirring | O156: (Liquid-phase reactant, supplied in front) | P156: Ni mesh | Q156: ? | R156: ? | S156: CO2 | T156: -0.70 V - iR vs. RHE | U156: -200 mA/cm2 | V156: 60 | X156: G. L. De Gregorio et al., Facet-Dependent Selectivity of Cu Catalysts in Electrochemical CO2 Reduction at Commercially Viable Current Densities. ACS Catal 10, 4854-4862 (2020). | Y156: 60 | AA156: 1 | AB156: 0 | AC156: 1
A157: 151 | B157: Cu NCs, on GDL | C157: Metallic Cu | D157: Cu | E157: - | F157: Catalyst on top of porous substrate (GDE) | G157: Cu_NCs#2 | H157: (Gas-phase reactant, supplied from behind) | I157: 10.0 M KOH | J157: + flow - stirring | K157: Fumasep FAB-PK-130 | L157: (AEM) | M157: 10.0 M KOH | N157: + flow - stirring | O157: (Liquid-phase reactant, supplied in front) | P157: IrO2/carbon | Q157: ? | R157: ? | S157: CO2 | T157: -0.47 V - iR vs. RHE | U157: -75 mA/cm2 | V157: 60 | X157: Y. Wang et al., Copper Nanocubes for CO2 Reduction in Gas Diffusion Electrodes. Nano Letters 19, 8461-8468 (2019). | Y157: 60 | AA157: 1 | AB157: 0 | AC157: 1
A158: 152 | B158: Metallic Cu NPs, on GDL | C158: Metallic Cu | D158: Cu | E158: Nafion | F158: Catalyst on top of porous substrate (GDE) | G158: Cu_NPs | H158: (Gas-phase reactant, supplied from behind) | I158: 1.0 M KOH | J158: + flow - stirring | K158: NEOSEPTA, AHA | L158: (AEM) | M158: 1.0 M KOH | N158: + flow - stirring | O158: (Liquid-phase reactant, supplied in front) | P158: Foamed Ni | Q158: ? | R158: ? | S158: CO | T158: -0.69 V - iR vs. RHE | U158: ? | V158: 60 | X158: M. Xie et al., Fast Screening for Copper-Based Bimetallic Electrocatalysts: Efficient Electrocatalytic Reduction of CO2 to C2+ Products on Magnesium-Modified Copper. Angew Chem Int Ed 61, e202213423 (2022). | Y158: 60 | AA158: 0 | AB158: 1 | AC158: 1
A159: 153 | B159: O2 plasma-treated (2 min, 20 W) Cu plate | C159: Oxide-derived | D159: Cu, O | E159: - | F159: Catalyst on top of solid substrate (NPS) | G159: CuOx-plasma | H159: (Solution-phase reactant, supplied in front) | I159: 0.1 M KHCO3 (pH 6.8) | J159: - flow - stirring | K159: Nafion | L159: (CEM) | M159: 0.1 M KHCO3 (pH 6.8) | N159: - flow - stirring | O159: (Liquid-phase reactant, supplied in front) | P159: Pt mesh | Q159: ? | R159: ? | S159: CO2 | T159: -0.9 V -iR vs. RHE | U159: -10 mA/cm2 | V159: 60 | X159: H. Mistry et al., Highly selective plasma-activated copper catalysts for carbon dioxide reduction to ethylene. Nature Communications 7, 12123 (2016). | Y159: 60 | AA159: 0 | AB159: 0 | AC159: 1
A160: 154 | B160: Cu3N NCs_20nm supported on Ketjen Carbon, on carbon paper | C160: Oxide-derived | D160: Cu, N, C | E160: Polyvinylidene fluoride (PVDF) | F160: Catalyst on top of solid substrate (NPS) | G160: Cu3N_NCs_25nm | H160: (Solution-phase reactant, supplied in front) | I160: 0.1 M KHCO3 (pH 6.8) | J160: - flow - stirring | K160: Nafion 212 | L160: (CEM) | M160: 0.1 M KHCO3 (pH 6.8) | N160: - flow - stirring | O160: (Liquid-phase reactant, supplied in front) | P160: Pt wire | Q160: 25 | R160: 1 | S160: CO2 | T160: -1.6 V vs. RHE | U160: -30 mA/cm2 | V160: 60 | X160: Z. Yin et al., Cu3N Nanocubes for Selective Electrochemical Reduction of CO2 to Ethylene. Nano Letters 19, 8658-8663 (2019). | Y160: 60 | AA160: 0 | AB160: 0 | AC160: 1
A161: 155 | B161: Hybrid material composed of graphene oxide nanodots on CuO nanosheets, on GDL | C161: Oxide-derived | D161: Cu, O, C | E161: Nafion | F161: Catalyst on top of porous substrate (GDE) | G161: GO-nanodot/CuO_NSs | H161: (Gas-phase reactant, supplied from behind) | I161: 1.0 M KOH (pH 14) | J161: + flow - stirring | K161: Fumasep FAA–PK–130) | L161: (AEM) | M161: 1.0 M KOH (pH 14) | N161: + flow - stirring | O161: (Liquid-phase reactant, supplied in front) | P161: IrO2/C | Q161: ? | R161: ? | S161: CO2 | T161: -0.82 V - iR vs. RHE | U161: -500 mA/cm2 | V161: 60 | X161: R. Du et al., Cu-C(O) Interfaces Deliver Remarkable Selectivity and Stability for CO2 Reduction to C2+ Products at Industrial Current Density of 500 mA cm−2. Small 19, 2301289 (2023). | Y161: 60 | AA161: 1 | AB161: 0 | AC161: 1
A162: 156 | B162: Nitridized Cu NPs, on GDL | C162: Oxide-derived | D162: Cu, N | E162: Nafion | F162: Catalyst on top of porous substrate (GDE) | G162: N/Cu-NPs | H162: (Gas-phase reactant, supplied from behind) | I162: 1.0 M KOH (pH 14) | J162: + flow - stirring | K162: Sustainion, X37-50 Grade T | L162: (AEM) | M162: 1.0 M KOH (pH 14) | N162: + flow - stirring | O162: (Liquid-phase reactant, supplied in front) | P162: Ni foam | Q162: ? | R162: ? | S162: CO | T162: ? | U162: -100 mA/cm2 | V162: 60 | X162: H. Phong Duong et al., Silver and Copper Nitride Cooperate for CO Electroreduction to Propanol. Angewandte Chemie International Edition n/a, e202310788 (2023). | Y162: 60 | AA162: 0 | AB162: 1 | AC162: 1
A163: 157 | B163: Electrochemical-assisted iodine-reconstructed Cu foil | C163: Oxide-derived | D163: Cu, O, I | E163: - | F163: Catalyst on top of solid substrate (NPS) | G163: I/CuOx | H163: (Solution-phase reactant, supplied in front) | I163: 0.1 M KHCO3 (pH 6.8) | J163: - flow - stirring | K163: Nafion 117 | L163: (CEM) | M163: 0.1 M KHCO3 (pH 6.8) | N163: - flow - stirring | O163: (Liquid-phase reactant, supplied in front) | P163: Pt gauze | Q163: ? | R163: ? | S163: CO2 | T163: -1.09 V vs. RHE | U163: -26 mA/cm2 | V163: 60 | X163: J. Han et al., A reconstructed porous copper surface promotes selectivity and efficiency toward C2 products by electrocatalytic CO2 reduction. Chemical Science 11, 10698-10704 (2020). | Y163: 60 | AA163: 0 | AB163: 0 | AC163: 1
A164: 158 | B164: Cu2(OH)2CO3 NPs, on glassy carbon | C164: Oxide-derived | D164: Cu, O | E164: Nafion | F164: Catalyst on top of solid substrate (NPS) | G164: Cu2(OH)2CO3_NPs | H164: (Solution-phase reactant, supplied in front) | I164: 0.5 M KHCO3 | J164: - flow - stirring | K164: ? | L164: (AEM) | M164: 0.5 M KHCO3 | N164: - flow - stirring | O164: (Liquid-phase reactant, supplied in front) | P164: Pt | Q164: ? | R164: ? | S164: CO2 | T164: -0.9 V vs. RHE | U164: -50 mA/cm2 | V164: 60 | X164: Y. Gao et al., Revealing the Lattice Carbonate Mediated Mechanism in Cu2(OH)2CO3 for Electrocatalytic Reduction of CO2 to C2H4. Advanced Science n/a, 2308949. | Y164: 60 | AA164: 0 | AB164: 0 | AC164: 1
A165: 159 | B165: Plasma-fluorinated Cu sputter-deposited on PTFE GDL | C165: Oxide-derived | D165: Cu, F | E165: Nafion | F165: Catalyst on top of porous substrate (GDE) | G165: F/Cu_NPs | H165: (Gas-phase reactant, supplied from behind) | I165: 1.0 M KOH | J165: + flow - stirring | K165: FAA-3-PK-130 | L165: (AEM) | M165: 1.0 M KOH | N165: + flow - stirring | O165: (Liquid-phase reactant, forced through surface) | P165: Ni foam | Q165: 25 | R165: 1 | S165: CO2 | T165: -0.57 V -iR vs. RHE | U165: -250 mA/cm2 | V165: 60 | X165: Z. Zhou, X. Hu, J. Li, H. Xie, L. Wen, Enhanced CO2 Electroreduction to Multi-Carbon Products on Copper via Plasma Fluorination. Advanced Science n/a, 2309963. | Y165: 60 | AA165: 1 | AB165: 0 | AC165: 1
A166: 160 | B166: Surface Pd-doped ("6.2%") Cu-sputtered PTFE GDL | C166: Alloyed/Doped | D166: Cu, Pd | E166: - | F166: Catalyst on top of porous substrate (GDE) | G166: Pd/Cu-PTFE | H166: (Gas-phase reactant, supplied from behind) | I166: 0.5 M K2SO4 + x M H2SO4 (pH 2) | J166: + flow - stirring | K166: Nafion 117 | L166: (CEM) | M166: 0.5 M K2SO4 | N166: + flow - stirring | O166: (Liquid-phase reactant, supplied in front) | P166: Pt mesh | Q166: ? | R166: ? | S166: CO2 | T166: ? | U166: -500 mA/cm2 | V166: 60 | X166: Xie, Y. et al. High carbon utilization in CO2 reduction to multi-carbon products in acidic media. Nature Catalysis 5, 564-570, doi:10.1038/s41929-022-00788-1 (2022). | Y166: 60 | AA166: 0 | AB166: 0 | AC166: 1
A167: 161 | B167: Cu NWs from ACS Materials doped with AgNO3, on a GDL | C167: Nanowire, Mixed-phase/Janus | D167: Cu, Ag | E167: - | F167: Catalyst on top of porous substrate (GDE) | G167: Ag-63 doped Cu-nanowire | H167: (Gas-phase reactant, supplied from behind) | I167: - | J167: (n/a) | K167: PiperIon 40 μm | L167: (AEM) | M167: 0.1 M KOH (pH 13) | O167: (Liquid-phase reactant, supplied from behind) | P167: Ir on GDL | Q167: 30 | R167: ? | S167: CO2 | T167: -3.2 V cell potential | U167: -80 mA/cm2 | V167: 60 | X167: Jiang, R., et al. (2023). "Copper-Nanowires Incorporated with Silver-Nanoparticles for Catalytic CO2 Reduction in Alkaline Zero Gap Electrolyzer." ACS Applied Energy Materials 6(20): 10475-10486. | Y167: 60 | AA167: 1 | AB167: 0 | AC167: 1
A168: 162 | B168: La2CuO4 perovskite nanobamboo fibers with abundant grain boundaries, on glassy carbon | C168: Atomically mixed | D168: Cu, La, O | E168: Nafion | F168: Catalyst on top of solid substrate (NPS) | G168: La2CuO4_nanobamboo | H168: (Solution-phase reactant, supplied in front) | I168: 0.1 M KHCO3 (pH 6.8) | J168: - flow - stirring | K168: Nafion 117 | L168: (CEM) | M168: 0.1 M KHCO3 (pH 6.8) | N168: - flow - stirring | O168: (Liquid-phase reactant, supplied in front) | P168: Graphite rod | Q168: ? | R168: ? | S168: CO2 | T168: -1.0 V vs. Ag/AgCl | U168: -3 mA/cm2 | V168: 60 | X168: J. Wang et al., Grain-Boundary-Engineered La2CuO4 Perovskite Nanobamboos for Efficient CO2 Reduction Reaction. Nano Letters 21, 980-987 (2021). | Y168: 60 | AA168: 0 | AB168: 0 | AC168: 1
A169: 163 | B169: Cu NPs supported on vacuum-calcined (1800 C) UD-90 nanodiamonds from NanoBlox,Inc., on glassy carbon | C169: Supported | D169: Cu, C | E169: Nafion | F169: Catalyst on top of solid substrate (NPS) | G169: Calcined-NanoDiamond/Cu-NPs | H169: (Solution-phase reactant, supplied in front) | I169: 0.1 M KHCO3/CO (pH 8.3) | J169: - flow - stirring | K169: - | L169: (n/a) | M169: 0.1 M KHCO3/CO (pH 8.3) | N169: - flow - stirring | O169: (Liquid-phase reactant, supplied in front) | P169: Pt mesh | Q169: ? | R169: ? | S169: CO2 | T169: -1.8 V vs. RHE | U169: -6 mA/cm2 | V169: 60 | X169: O. Baturina et al., Effect of nanostructured carbon support on copper electrocatalytic activity toward CO2 electroreduction to hydrocarbon fuels. Catal Today 288, 2-10 (2017). | Y169: 60 | AA169: 0 | AB169: 0 | AC169: 1
A170: 164 | B170: Honeycomb-like CuO supported on amorphous carbon annealed at 600 °C, on carbon paper | C170: Supported | D170: Cu, O, C | E170: Nafion | F170: Catalyst on top of porous substrate (GDE) | G170: Honeycomb/CuO_NPs | H170: (Solution-phase reactant, supplied in front) | I170: 0.1 M KHCO3 (pH 6.8) | J170: - flow - stirring | K170: Nafion 117 | L170: (CEM) | M170: 0.1 M KHCO3 (pH 6.8) | N170: - flow - stirring | O170: (Liquid-phase reactant, supplied in front) | P170: ? | Q170: ? | R170: ? | S170: CO2 | T170: -1.2 V vs. RHE | U170: -18 mA/cm2 | V170: 60 | X170: L. Zhang, X. Li, L. Chen, C. Zhai, H. Tao, Honeycomb-like CuO@C for electroreduction of carbon dioxide to ethylene. Journal of Colloid and Interface Science 640, 783-790 (2023). | Y170: 60 | AA170: 0 | AB170: 0 | AC170: 1
A171: 165 | B171: Cu-SAC (<1 wt%) on hetero-atom (S) doped C3N4 lamellae, on carbon paper | C171: SAC, supported | D171: Cu, C, N, S | E171: Nafion | F171: Catalyst on top of porous substrate (GDE) | G171: S-C3N4/Cu_SAC | H171: (Solution-phase reactant, supplied in front) | I171: 0.1 M KHCO3 | J171: - flow - stirring | K171: "ion exchange membrane" | L171: ? | M171: 0.1 M KHCO3 | N171: - flow - stirring | O171: (Liquid-phase reactant, forced through surface) | P171: Ni foam | Q171: ? | R171: ? | S171: CO2 | T171: -0.9 V vs. RHE | U171: -20 mA/cm2 | V171: 60 | X171: Y. Shen et al., Enhanced electrochemical CO2-to-ethylene conversion through second-shell coordination on a Cu single-atom catalyst. Journal of Materials Chemistry A 12, 9075-9087 (2024). | Y171: 60 | AA171: 0 | AB171: 0 | AC171: 1
A172: 166 | B172: Sulfur-doped Cu-MOF Cu3(benzene-1,3,5- tricarboxylate)2∙xH2O, on glassy carbon | C172: MOF, supported | D172: Cu, O, S | E172: Nafion | F172: Catalyst on top of solid substrate (NPS) | G172: S-doped/Cu-MOF | H172: (Solution-phase reactant, supplied in front) | I172: 0.1 M KHCO3 (pH 6.8) | J172: - flow - stirring | K172: Nafion 117 | L172: (CEM) | M172: 0.1 M KHCO3 (pH 6.8) | N172: - flow - stirring | O172: (Liquid-phase reactant, supplied in front) | P172: Pt mesh | Q172: ? | R172: ? | S172: CO2 | T172: -1.32 V - iR vs. RHE | U172: -19 mA/cm2 | V172: 60 | X172: C. F. Wen et al., Highly Ethylene-Selective Electrocatalytic CO2 Reduction Enabled by Isolated Cu−S Motifs in Metal–Organic Framework Based Precatalysts. Angewandte Chemie International Edition 61, e202111700 (2022). | Y172: 60 | AA172: 0 | AB172: 0 | AC172: 1
A173: 167 | B173: Polyvinylpyrrolidone-assisted ("P2") self-assembled Cu-based supramolecular polymer MPs, on glassy carbon | C173: Supramolecular | D173: Cu | E173: Nafion | F173: Catalyst on top of solid substrate (NPS) | G173: Cu/supra_MPs | H173: (Solution-phase reactant, supplied in front) | I173: 0.1 M KHCO3 | J173: - flow - stirring | K173: Nafion 117 | L173: (CEM) | M173: 0.1 M KHCO3 | N173: - flow - stirring | O173: (Liquid-phase reactant, supplied in front) | P173: Pt plate | Q173: ? | R173: ? | S173: CO2 | T173: -1.4 V vs. RHE | U173: -29 mA/cm2 | V173: 60 | X173: Wang, C. et al. The regulation of hydrogen bond network promotes highly selective electroreduction of CO2 to C2H4. Applied Catalysis B: Environment and Energy 366, 125006, doi:https://doi.org/10.1016/j.apcatb.2024.125006 (2025). | Y173: 60 | AA173: 0 | AB173: 0 | AC173: 1
A174: 168 | B174: Water-insoluble organosuperbase-modified Cu2O NCs, on GDL | C174: Core/shell (in-)organic | D174: Cu | E174: Nafion, 1,8-bis(dimethylamino) naphthalene | F174: Catalyst on top of porous substrate (GDE) | G174: Supebase/Cu2O-NPs | H174: (Gas-phase reactant, supplied from behind) | I174: 1.0 M KHCO3 | J174: + flow - stirring | K174: Nafion 117 | L174: (CEM) | M174: 1.0 M KHCO3 | N174: + flow - stirring | O174: (Liquid-phase reactant, supplied in front) | P174: Ni foam | Q174: 25 | R174: ? | S174: CO2 | T174: ? | U174: -300 mA/cm2 | V174: 60 | X174: L. Fan et al., Proton sponge promotion of electrochemical CO2 reduction to multi-carbon products. Joule 6, 205-220 (2022). | Y174: 60 | AA174: 0 | AB174: 0 | AC174: 1
A175: 169 | B175: Electroplated Cu (60 s @ 400 mA/cm2) from CuBr2/tartrate/1 M KOH-containing bath with active CO2 flow (though CO also seems to work), with Carbon NP midlayer and graphite toplayer, on Cu-sputtered PTFE GDL (ambiguously reported) | C175: Overlayer | D175: Cu, C | E175: CNPs/Nafion, Graphite/Nafion | F175: Catalyst on top of porous substrate (GDE) | G175: CO2/plated_Cu | H175: (Gas-phase reactant, supplied from behind) | I175: - | J175: (n/a) | K175: Sustainion X37-50 grade 60 | L175: (AEM) | M175: 0.15 M KHCO3 | N175: + flow - stirring | O175: (Liquid-phase reactant, supplied in front) | P175: IrOx/Ti mesh | Q175: ? | R175: ? | S175: CO2 | T175: -3.7 V vs. ANODE | U175: -330 mA/cm2 | V175: 60 | X175: Y. Wang et al., Catalyst synthesis under CO2 electroreduction favours faceting and promotes renewable fuels electrosynthesis. Nature Catalysis, (2019). | Y175: 60 | AA175: 1 | AB175: 0 | AC175: 1
A176: 170 | B176: 25 nm Cu NPs/nafion mix sprayed on top of nafion pre-covered Cu-sputtered PTFE nanowires | C176: Overlayer | D176: Cu | E176: Nafion | F176: Catalyst on top of porous substrate (GDE) | G176: Cu-NPs/Nafion-modified PTFE | H176: (Gas-phase reactant, supplied from behind) | I176: 7.0 M KOH (pH 14.7) | J176: + flow - stirring | K176: Fumasep FAB-PK-130 | L176: (AEM) | M176: 7.0 M KOH (pH 14.7) | N176: + flow - stirring | O176: (Liquid-phase reactant, supplied in front) | P176: Ni foam | Q176: 25 | R176: ? | S176: CO2 | T176: -1.3 V -iR vs. RHE | U176: -800 mA/cm2 | V176: 60 | X176: F. P. G. d. Arquer et al., CO2 electrolysis to multicarbon products at activities greater than 1 A cm-2. Science 367, 661-666 (2020). | Y176: 60 | AA176: 1 | AB176: 0 | AC176: 1
